{"text_format":"1","workbook":"xlsx","n_sheets":3,"sheets":["LABB 2019","Macro","MacroLega"],"not_rendered":{"charts":0,"images":0,"macros":1,"external_links":0,"defined_names":6,"comments":1,"pivot_tables":0},"unopened":[],"bounds":{"document_bytes":16777216,"sheet_cells":100000,"rows_first":2000,"rows_last":500,"rows_between":2000,"halvings":0,"cell_chars":16384,"cell_head_chars":4096},"cells_cut":0,"cells_raw":0,"read":"whole","date_system":"1900"}

{"sheet":"LABB 2019","index":0,"n_rows":27,"n_cols":43,"rows_kept":27,"cut":false,"hidden":false,"merged":[[22,11,22,18],[23,11,23,18],[24,11,24,18],[25,11,25,18],[20,1,20,2],[22,9,22,10],[23,9,23,10],[24,9,24,10],[25,9,25,10],[20,11,20,18],[21,8,21,10],[18,8,20,10],[18,1,19,7],[25,1,25,2],[20,4,20,7],[22,4,22,7],[23,4,23,7],[24,4,24,7],[25,4,25,7],[21,4,21,7],[21,1,21,2],[22,1,22,2],[23,1,23,2],[24,1,24,2],[6,9,6,10],[1,9,1,10],[5,9,5,10],[4,9,4,10],[3,9,3,10],[2,9,2,10],[13,9,13,10],[17,9,17,10],[18,14,18,18],[8,9,8,10],[7,9,7,10],[25,19,25,27],[25,28,25,29],[24,28,24,29],[9,9,9,10],[23,28,23,29],[19,28,19,29],[20,28,20,29],[22,28,22,29],[21,28,21,29],[18,28,18,29],[14,9,14,10],[15,9,15,10],[16,9,16,10],[10,9,10,10],[11,9,11,10],[12,9,12,10],[19,14,19,18],[18,11,18,13],[19,11,19,13],[18,19,18,27],[24,19,24,27],[19,25,19,26],[20,25,20,26],[21,25,21,26],[22,25,22,26],[23,25,23,26],[19,19,19,22],[20,19,20,22],[21,19,21,22],[22,19,22,22],[23,19,23,22],[21,11,21,18]]}
[]
[null,"N","Players Name","Position","MA","ST","AG","AV","Standard Skills","Upgrades",null,"M","N.I.","♦","Norm.","Dopp.","Inc.","MA","ST","AG","AV","Punti    Extra","INT","COMP","TD","CAS","MVP","SPP","Infortunati","Valore",null,"Skill 1","Skill 2","Skill 3","Skill 4","Skill 5","Skill 6",null,null,"MA","ST","AG","AV"]
[null,1,null,{"$f":"IF(Macro!I3<=1,\"\",VLOOKUP(Macro!I3,Macro!AH:AI,2,FALSE))","v":""},{"$f":"IF(D3<>\"\",VLOOKUP(D3,Macro!$Q:$Z,2,FALSE)+R3+MacroLega!F3,\"\")","v":""},{"$f":"IF(D3<>\"\",VLOOKUP(D3,Macro!$Q:$Z,3,FALSE)+S3+MacroLega!G3,\"\")","v":""},{"$f":"IF(D3<>\"\",VLOOKUP(D3,Macro!$Q:$Z,4,FALSE)+T3+MacroLega!H3,\"\")","v":""},{"$f":"IF(D3<>\"\",VLOOKUP(D3,Macro!$Q:$Z,5,FALSE)+U3+MacroLega!I3,\"\")","v":""},{"$f":"IF(D3=\"\",\"\",IF(COUNTIF(D3:D18,D3)>VLOOKUP(D3,Macro!Q:Z,10,FALSE),\"ERRORE! TROPPI GIOCATORI IN QUESTO RUOLO!\",VLOOKUP(D3,Macro!Q:Z,6,FALSE)))","v":""},{"$f":"IF(MacroLega!N37=0,IF(MacroLega!P37>0,\"ERRORE!\",AF3&AG3&AH3&AI3&AJ3&AK3),AF3&AG3&AH3&AI3&AJ3&AK3)","v":""},null,null,null,{"$f":"IF(AB3=\"Star\",\"n/a\",IF(AB3>=176,\"7\",IF(AB3>=126,\"6\",IF(AB3>=76,\"5\",IF(AB3>=51,\"4\",IF(AB3>=31,\"3\",IF(AB3>=16,\"2\",IF(AB3>=6,\"1\",\"\"))))))))","v":""},{"$f":"(IF(D3<>\"\",VLOOKUP(D3,Macro!Q:Z,8,FALSE),\"\"))","v":""},{"$f":"(IF(D3<>\"\",VLOOKUP(D3,Macro!Q:Z,9,FALSE),\"\"))","v":""},{"$f":"IF(AB3<>\"Star\",(IF(ISNUMBER(FIND(MacroLega!R37,O3)),20,0)+IF(ISNUMBER(FIND(MacroLega!S37,O3)),20,0)+IF(ISNUMBER(FIND(MacroLega!T37,O3)),20,0)+IF(ISNUMBER(FIND(MacroLega!U37,O3)),20,0)+IF(ISNUMBER(FIND(MacroLega!V37,O3)),20,0)+IF(ISNUMBER(FIND(MacroLega!W37,O3)),20,0)+IF(ISNUMBER(FIND(MacroLega!R37,P3)),30,0)+IF(ISNUMBER(FIND(MacroLega!S37,P3)),30,0)+IF(ISNUMBER(FIND(MacroLega!T37,P3)),30,0)+IF(ISNUMBER(FIND(MacroLega!U37,P3)),30,0)+IF(ISNUMBER(FIND(MacroLega!V37,P3)),30,0)+IF(ISNUMBER(FIND(MacroLega!W37,P3)),30,0)+SUM(MacroLega!R37:'MacroLega'!W37)),0)+IF(ISNUMBER(FIND(\"Horns Luccini\",AF3)),20,0)+IF(ISNUMBER(FIND(\"Horns Luccini\",AG3)),20,0)+IF(ISNUMBER(FIND(\"Horns Luccini\",AH3)),20,0)+IF(ISNUMBER(FIND(\"Horns Luccini\",AI3)),20,0)+IF(ISNUMBER(FIND(\"Horns Luccini\",AJ3)),20,0)+IF(ISNUMBER(FIND(\"Horns Luccini\",AK3)),20,0)","v":0},null,null,null,null,null,null,null,null,null,null,{"$f":"IF(LEFT(D3,1)=\"*\",\"Star\",V3*1+W3*2+X3*1+Y3*3+Z3*2+AA3*5)","v":0},{"$f":"IF(L3<>\"\",(IF(L3=\"M\",Macro!N3)),(\"\"))","v":""},{"$f":"IF(L3<>\"\",(IF(L3=\"M\",\"\")),(Macro!N3))","v":0},null,{"$f":"IF(MacroLega!K3>1,VLOOKUP(MacroLega!K3,MacroLega!$B$2:$C$67,2),\"\")","v":""},{"$f":"IF(MacroLega!L3>1,IF(AF3<>\"\",\", \",\"\")&VLOOKUP(MacroLega!L3,MacroLega!$B$2:$C$67,2),\"\")","v":""},{"$f":"IF(MacroLega!M3>1,IF(AF3&AG3<>\"\",\", \",\"\")&VLOOKUP(MacroLega!M3,MacroLega!$B$2:$C$67,2),\"\")","v":""},{"$f":"IF(MacroLega!N3>1,IF(AF3&AG3&AH3<>\"\",\", \",\"\")&VLOOKUP(MacroLega!N3,MacroLega!$B$2:$C$65,2),\"\")","v":""},{"$f":"IF(MacroLega!O3>1,IF(AF3&AG3&AH3&AI3<>\"\",\", \",\"\")&VLOOKUP(MacroLega!O3,MacroLega!$B$2:$C$65,2),\"\")","v":""},{"$f":"IF(MacroLega!P3>1,IF(AF3&AG3&AH3&AI3&AJ3<>\"\",\", \",\"\")&VLOOKUP(MacroLega!P3,MacroLega!$B$2:$C$65,2),\"\")","v":""},null,null,{"$f":"Macro!J3","v":{"$error":"#N/A"}},{"$f":"Macro!K3","v":{"$error":"#N/A"}},{"$f":"Macro!L3","v":{"$error":"#N/A"}},{"$f":"Macro!M3","v":{"$error":"#N/A"}}]
[null,2,null,{"$f":"IF(Macro!I4<=1,\"\",VLOOKUP(Macro!I4,Macro!AH:AI,2,FALSE))","v":""},{"$f":"IF(D4<>\"\",VLOOKUP(D4,Macro!$Q:$Z,2,FALSE)+R4+MacroLega!F4,\"\")","v":""},{"$f":"IF(D4<>\"\",VLOOKUP(D4,Macro!$Q:$Z,3,FALSE)+S4+MacroLega!G4,\"\")","v":""},{"$f":"IF(D4<>\"\",VLOOKUP(D4,Macro!$Q:$Z,4,FALSE)+T4+MacroLega!H4,\"\")","v":""},{"$f":"IF(D4<>\"\",VLOOKUP(D4,Macro!$Q:$Z,5,FALSE)+U4+MacroLega!I4,\"\")","v":""},{"$f":"IF(D4=\"\",\"\",IF(COUNTIF(D3:D18,D4)>VLOOKUP(D4,Macro!Q:Z,10,FALSE),\"ERRORE! TROPPI GIOCATORI IN QUESTO RUOLO!\",VLOOKUP(D4,Macro!Q:Z,6,FALSE)))","v":""},{"$f":"IF(MacroLega!N38=0,IF(MacroLega!P38>0,\"ERRORE!\",AF4&AG4&AH4&AI4&AJ4&AK4),AF4&AG4&AH4&AI4&AJ4&AK4)","v":""},null,null,null,"",{"$f":"(IF(D4<>\"\",VLOOKUP(D4,Macro!Q:Z,8,FALSE),\"\"))","v":""},{"$f":"(IF(D4<>\"\",VLOOKUP(D4,Macro!Q:Z,9,FALSE),\"\"))","v":""},{"$f":"IF(AB4<>\"Star\",(IF(ISNUMBER(FIND(MacroLega!R38,O4)),20,0)+IF(ISNUMBER(FIND(MacroLega!S38,O4)),20,0)+IF(ISNUMBER(FIND(MacroLega!T38,O4)),20,0)+IF(ISNUMBER(FIND(MacroLega!U38,O4)),20,0)+IF(ISNUMBER(FIND(MacroLega!V38,O4)),20,0)+IF(ISNUMBER(FIND(MacroLega!W38,O4)),20,0)+IF(ISNUMBER(FIND(MacroLega!R38,P4)),30,0)+IF(ISNUMBER(FIND(MacroLega!S38,P4)),30,0)+IF(ISNUMBER(FIND(MacroLega!T38,P4)),30,0)+IF(ISNUMBER(FIND(MacroLega!U38,P4)),30,0)+IF(ISNUMBER(FIND(MacroLega!V38,P4)),30,0)+IF(ISNUMBER(FIND(MacroLega!W38,P4)),30,0)+SUM(MacroLega!R38:'MacroLega'!W38)),0)+IF(ISNUMBER(FIND(\"Horns Luccini\",AF4)),20,0)+IF(ISNUMBER(FIND(\"Horns Luccini\",AG4)),20,0)+IF(ISNUMBER(FIND(\"Horns Luccini\",AH4)),20,0)+IF(ISNUMBER(FIND(\"Horns Luccini\",AI4)),20,0)+IF(ISNUMBER(FIND(\"Horns Luccini\",AJ4)),20,0)+IF(ISNUMBER(FIND(\"Horns Luccini\",AK4)),20,0)","v":0},null,null,null,null,null,null,null,null,null,null,{"$f":"IF(LEFT(D4,1)=\"*\",\"Star\",V4*1+W4*2+X4*1+Y4*3+Z4*2+AA4*5)","v":0},{"$f":"IF(L4<>\"\",(IF(L4=\"M\",Macro!N4)),(\"\"))","v":""},{"$f":"IF(L4<>\"\",(IF(L4=\"M\",\"\")),(Macro!N4))","v":0},null,{"$f":"IF(MacroLega!K4>1,VLOOKUP(MacroLega!K4,MacroLega!$B$2:$C$67,2),\"\")","v":""},{"$f":"IF(MacroLega!L4>1,IF(AF4<>\"\",\", \",\"\")&VLOOKUP(MacroLega!L4,MacroLega!$B$2:$C$67,2),\"\")","v":""},{"$f":"IF(MacroLega!M4>1,IF(AF4&AG4<>\"\",\", \",\"\")&VLOOKUP(MacroLega!M4,MacroLega!$B$2:$C$67,2),\"\")","v":""},{"$f":"IF(MacroLega!N4>1,IF(AF4&AG4&AH4<>\"\",\", \",\"\")&VLOOKUP(MacroLega!N4,MacroLega!$B$2:$C$65,2),\"\")","v":""},{"$f":"IF(MacroLega!O4>1,IF(AF4&AG4&AH4&AI4<>\"\",\", \",\"\")&VLOOKUP(MacroLega!O4,MacroLega!$B$2:$C$65,2),\"\")","v":""},{"$f":"IF(MacroLega!P4>1,IF(AF4&AG4&AH4&AI4&AJ4<>\"\",\", \",\"\")&VLOOKUP(MacroLega!P4,MacroLega!$B$2:$C$65,2),\"\")","v":""},null,null,{"$f":"Macro!J4","v":{"$error":"#N/A"}},{"$f":"Macro!K4","v":{"$error":"#N/A"}},{"$f":"Macro!L4","v":{"$error":"#N/A"}},{"$f":"Macro!M4","v":{"$error":"#N/A"}}]
[null,3,null,{"$f":"IF(Macro!I5<=1,\"\",VLOOKUP(Macro!I5,Macro!AH:AI,2,FALSE))","v":""},{"$f":"IF(D5<>\"\",VLOOKUP(D5,Macro!$Q:$Z,2,FALSE)+R5+MacroLega!F5,\"\")","v":""},{"$f":"IF(D5<>\"\",VLOOKUP(D5,Macro!$Q:$Z,3,FALSE)+S5+MacroLega!G5,\"\")","v":""},{"$f":"IF(D5<>\"\",VLOOKUP(D5,Macro!$Q:$Z,4,FALSE)+T5+MacroLega!H5,\"\")","v":""},{"$f":"IF(D5<>\"\",VLOOKUP(D5,Macro!$Q:$Z,5,FALSE)+U5+MacroLega!I5,\"\")","v":""},{"$f":"IF(D5=\"\",\"\",IF(COUNTIF(D3:D18,D5)>VLOOKUP(D5,Macro!Q:Z,10,FALSE),\"ERRORE! TROPPI GIOCATORI IN QUESTO RUOLO!\",VLOOKUP(D5,Macro!Q:Z,6,FALSE)))","v":""},{"$f":"IF(MacroLega!N39=0,IF(MacroLega!P39>0,\"ERRORE!\",AF5&AG5&AH5&AI5&AJ5&AK5),AF5&AG5&AH5&AI5&AJ5&AK5)","v":""},null,null,null,"",{"$f":"(IF(D5<>\"\",VLOOKUP(D5,Macro!Q:Z,8,FALSE),\"\"))","v":""},{"$f":"(IF(D5<>\"\",VLOOKUP(D5,Macro!Q:Z,9,FALSE),\"\"))","v":""},{"$f":"IF(AB5<>\"Star\",(IF(ISNUMBER(FIND(MacroLega!R39,O5)),20,0)+IF(ISNUMBER(FIND(MacroLega!S39,O5)),20,0)+IF(ISNUMBER(FIND(MacroLega!T39,O5)),20,0)+IF(ISNUMBER(FIND(MacroLega!U39,O5)),20,0)+IF(ISNUMBER(FIND(MacroLega!V39,O5)),20,0)+IF(ISNUMBER(FIND(MacroLega!W39,O5)),20,0)+IF(ISNUMBER(FIND(MacroLega!R39,P5)),30,0)+IF(ISNUMBER(FIND(MacroLega!S39,P5)),30,0)+IF(ISNUMBER(FIND(MacroLega!T39,P5)),30,0)+IF(ISNUMBER(FIND(MacroLega!U39,P5)),30,0)+IF(ISNUMBER(FIND(MacroLega!V39,P5)),30,0)+IF(ISNUMBER(FIND(MacroLega!W39,P5)),30,0)+SUM(MacroLega!R39:'MacroLega'!W39)),0)+IF(ISNUMBER(FIND(\"Horns Luccini\",AF5)),20,0)+IF(ISNUMBER(FIND(\"Horns Luccini\",AG5)),20,0)+IF(ISNUMBER(FIND(\"Horns Luccini\",AH5)),20,0)+IF(ISNUMBER(FIND(\"Horns Luccini\",AI5)),20,0)+IF(ISNUMBER(FIND(\"Horns Luccini\",AJ5)),20,0)+IF(ISNUMBER(FIND(\"Horns Luccini\",AK5)),20,0)","v":0},null,null,null,null,null,null,null,null,null,null,0,{"$f":"IF(L5<>\"\",(IF(L5=\"M\",Macro!N5)),(\"\"))","v":""},{"$f":"IF(L5<>\"\",(IF(L5=\"M\",\"\")),(Macro!N5))","v":0},null,{"$f":"IF(MacroLega!K5>1,VLOOKUP(MacroLega!K5,MacroLega!$B$2:$C$67,2),\"\")","v":""},{"$f":"IF(MacroLega!L5>1,IF(AF5<>\"\",\", \",\"\")&VLOOKUP(MacroLega!L5,MacroLega!$B$2:$C$67,2),\"\")","v":""},{"$f":"IF(MacroLega!M5>1,IF(AF5&AG5<>\"\",\", \",\"\")&VLOOKUP(MacroLega!M5,MacroLega!$B$2:$C$67,2),\"\")","v":""},{"$f":"IF(MacroLega!N5>1,IF(AF5&AG5&AH5<>\"\",\", \",\"\")&VLOOKUP(MacroLega!N5,MacroLega!$B$2:$C$65,2),\"\")","v":""},{"$f":"IF(MacroLega!O5>1,IF(AF5&AG5&AH5&AI5<>\"\",\", \",\"\")&VLOOKUP(MacroLega!O5,MacroLega!$B$2:$C$65,2),\"\")","v":""},{"$f":"IF(MacroLega!P5>1,IF(AF5&AG5&AH5&AI5&AJ5<>\"\",\", \",\"\")&VLOOKUP(MacroLega!P5,MacroLega!$B$2:$C$65,2),\"\")","v":""},null,null,{"$f":"Macro!J5","v":{"$error":"#N/A"}},{"$f":"Macro!K5","v":{"$error":"#N/A"}},{"$f":"Macro!L5","v":{"$error":"#N/A"}},{"$f":"Macro!M5","v":{"$error":"#N/A"}}]
[null,4,null,{"$f":"IF(Macro!I6<=1,\"\",VLOOKUP(Macro!I6,Macro!AH:AI,2,FALSE))","v":""},{"$f":"IF(D6<>\"\",VLOOKUP(D6,Macro!$Q:$Z,2,FALSE)+R6+MacroLega!F6,\"\")","v":""},{"$f":"IF(D6<>\"\",VLOOKUP(D6,Macro!$Q:$Z,3,FALSE)+S6+MacroLega!G6,\"\")","v":""},{"$f":"IF(D6<>\"\",VLOOKUP(D6,Macro!$Q:$Z,4,FALSE)+T6+MacroLega!H6,\"\")","v":""},{"$f":"IF(D6<>\"\",VLOOKUP(D6,Macro!$Q:$Z,5,FALSE)+U6+MacroLega!I6,\"\")","v":""},{"$f":"IF(D6=\"\",\"\",IF(COUNTIF(D3:D18,D6)>VLOOKUP(D6,Macro!Q:Z,10,FALSE),\"ERRORE! TROPPI GIOCATORI IN QUESTO RUOLO!\",VLOOKUP(D6,Macro!Q:Z,6,FALSE)))","v":""},{"$f":"IF(MacroLega!N40=0,IF(MacroLega!P40>0,\"ERRORE!\",AF6&AG6&AH6&AI6&AJ6&AK6),AF6&AG6&AH6&AI6&AJ6&AK6)","v":""},null,null,null,"",{"$f":"(IF(D6<>\"\",VLOOKUP(D6,Macro!Q:Z,8,FALSE),\"\"))","v":""},{"$f":"(IF(D6<>\"\",VLOOKUP(D6,Macro!Q:Z,9,FALSE),\"\"))","v":""},{"$f":"IF(AB6<>\"Star\",(IF(ISNUMBER(FIND(MacroLega!R40,O6)),20,0)+IF(ISNUMBER(FIND(MacroLega!S40,O6)),20,0)+IF(ISNUMBER(FIND(MacroLega!T40,O6)),20,0)+IF(ISNUMBER(FIND(MacroLega!U40,O6)),20,0)+IF(ISNUMBER(FIND(MacroLega!V40,O6)),20,0)+IF(ISNUMBER(FIND(MacroLega!W40,O6)),20,0)+IF(ISNUMBER(FIND(MacroLega!R40,P6)),30,0)+IF(ISNUMBER(FIND(MacroLega!S40,P6)),30,0)+IF(ISNUMBER(FIND(MacroLega!T40,P6)),30,0)+IF(ISNUMBER(FIND(MacroLega!U40,P6)),30,0)+IF(ISNUMBER(FIND(MacroLega!V40,P6)),30,0)+IF(ISNUMBER(FIND(MacroLega!W40,P6)),30,0)+SUM(MacroLega!R40:'MacroLega'!W40)),0)+IF(ISNUMBER(FIND(\"Horns Luccini\",AF6)),20,0)+IF(ISNUMBER(FIND(\"Horns Luccini\",AG6)),20,0)+IF(ISNUMBER(FIND(\"Horns Luccini\",AH6)),20,0)+IF(ISNUMBER(FIND(\"Horns Luccini\",AI6)),20,0)+IF(ISNUMBER(FIND(\"Horns Luccini\",AJ6)),20,0)+IF(ISNUMBER(FIND(\"Horns Luccini\",AK6)),20,0)","v":0},null,null,null,null,null,null,null,null,null,null,0,{"$f":"IF(L6<>\"\",(IF(L6=\"M\",Macro!N6)),(\"\"))","v":""},{"$f":"IF(L6<>\"\",(IF(L6=\"M\",\"\")),(Macro!N6))","v":0},null,{"$f":"IF(MacroLega!K6>1,VLOOKUP(MacroLega!K6,MacroLega!$B$2:$C$67,2),\"\")","v":""},{"$f":"IF(MacroLega!L6>1,IF(AF6<>\"\",\", \",\"\")&VLOOKUP(MacroLega!L6,MacroLega!$B$2:$C$67,2),\"\")","v":""},{"$f":"IF(MacroLega!M6>1,IF(AF6&AG6<>\"\",\", \",\"\")&VLOOKUP(MacroLega!M6,MacroLega!$B$2:$C$67,2),\"\")","v":""},{"$f":"IF(MacroLega!N6>1,IF(AF6&AG6&AH6<>\"\",\", \",\"\")&VLOOKUP(MacroLega!N6,MacroLega!$B$2:$C$65,2),\"\")","v":""},{"$f":"IF(MacroLega!O6>1,IF(AF6&AG6&AH6&AI6<>\"\",\", \",\"\")&VLOOKUP(MacroLega!O6,MacroLega!$B$2:$C$65,2),\"\")","v":""},{"$f":"IF(MacroLega!P6>1,IF(AF6&AG6&AH6&AI6&AJ6<>\"\",\", \",\"\")&VLOOKUP(MacroLega!P6,MacroLega!$B$2:$C$65,2),\"\")","v":""},null,null,{"$f":"Macro!J6","v":{"$error":"#N/A"}},{"$f":"Macro!K6","v":{"$error":"#N/A"}},{"$f":"Macro!L6","v":{"$error":"#N/A"}},{"$f":"Macro!M6","v":{"$error":"#N/A"}}]
[null,5,null,{"$f":"IF(Macro!I7<=1,\"\",VLOOKUP(Macro!I7,Macro!AH:AI,2,FALSE))","v":""},{"$f":"IF(D7<>\"\",VLOOKUP(D7,Macro!$Q:$Z,2,FALSE)+R7+MacroLega!F7,\"\")","v":""},{"$f":"IF(D7<>\"\",VLOOKUP(D7,Macro!$Q:$Z,3,FALSE)+S7+MacroLega!G7,\"\")","v":""},{"$f":"IF(D7<>\"\",VLOOKUP(D7,Macro!$Q:$Z,4,FALSE)+T7+MacroLega!H7,\"\")","v":""},{"$f":"IF(D7<>\"\",VLOOKUP(D7,Macro!$Q:$Z,5,FALSE)+U7+MacroLega!I7,\"\")","v":""},{"$f":"IF(D7=\"\",\"\",IF(COUNTIF(D3:D18,D7)>VLOOKUP(D7,Macro!Q:Z,10,FALSE),\"ERRORE! TROPPI GIOCATORI IN QUESTO RUOLO!\",VLOOKUP(D7,Macro!Q:Z,6,FALSE)))","v":""},{"$f":"IF(MacroLega!N41=0,IF(MacroLega!P41>0,\"ERRORE!\",AF7&AG7&AH7&AI7&AJ7&AK7),AF7&AG7&AH7&AI7&AJ7&AK7)","v":""},null,null,null,"",{"$f":"(IF(D7<>\"\",VLOOKUP(D7,Macro!Q:Z,8,FALSE),\"\"))","v":""},{"$f":"(IF(D7<>\"\",VLOOKUP(D7,Macro!Q:Z,9,FALSE),\"\"))","v":""},{"$f":"IF(AB7<>\"Star\",(IF(ISNUMBER(FIND(MacroLega!R41,O7)),20,0)+IF(ISNUMBER(FIND(MacroLega!S41,O7)),20,0)+IF(ISNUMBER(FIND(MacroLega!T41,O7)),20,0)+IF(ISNUMBER(FIND(MacroLega!U41,O7)),20,0)+IF(ISNUMBER(FIND(MacroLega!V41,O7)),20,0)+IF(ISNUMBER(FIND(MacroLega!W41,O7)),20,0)+IF(ISNUMBER(FIND(MacroLega!R41,P7)),30,0)+IF(ISNUMBER(FIND(MacroLega!S41,P7)),30,0)+IF(ISNUMBER(FIND(MacroLega!T41,P7)),30,0)+IF(ISNUMBER(FIND(MacroLega!U41,P7)),30,0)+IF(ISNUMBER(FIND(MacroLega!V41,P7)),30,0)+IF(ISNUMBER(FIND(MacroLega!W41,P7)),30,0)+SUM(MacroLega!R41:'MacroLega'!W41)),0)+IF(ISNUMBER(FIND(\"Horns Luccini\",AF7)),20,0)+IF(ISNUMBER(FIND(\"Horns Luccini\",AG7)),20,0)+IF(ISNUMBER(FIND(\"Horns Luccini\",AH7)),20,0)+IF(ISNUMBER(FIND(\"Horns Luccini\",AI7)),20,0)+IF(ISNUMBER(FIND(\"Horns Luccini\",AJ7)),20,0)+IF(ISNUMBER(FIND(\"Horns Luccini\",AK7)),20,0)","v":0},null,null,null,null,null,null,null,null,null,null,0,{"$f":"IF(L7<>\"\",(IF(L7=\"M\",Macro!N7)),(\"\"))","v":""},{"$f":"IF(L7<>\"\",(IF(L7=\"M\",\"\")),(Macro!N7))","v":0},null,{"$f":"IF(MacroLega!K7>1,VLOOKUP(MacroLega!K7,MacroLega!$B$2:$C$67,2),\"\")","v":""},{"$f":"IF(MacroLega!L7>1,IF(AF7<>\"\",\", \",\"\")&VLOOKUP(MacroLega!L7,MacroLega!$B$2:$C$67,2),\"\")","v":""},{"$f":"IF(MacroLega!M7>1,IF(AF7&AG7<>\"\",\", \",\"\")&VLOOKUP(MacroLega!M7,MacroLega!$B$2:$C$67,2),\"\")","v":""},{"$f":"IF(MacroLega!N7>1,IF(AF7&AG7&AH7<>\"\",\", \",\"\")&VLOOKUP(MacroLega!N7,MacroLega!$B$2:$C$65,2),\"\")","v":""},{"$f":"IF(MacroLega!O7>1,IF(AF7&AG7&AH7&AI7<>\"\",\", \",\"\")&VLOOKUP(MacroLega!O7,MacroLega!$B$2:$C$65,2),\"\")","v":""},{"$f":"IF(MacroLega!P7>1,IF(AF7&AG7&AH7&AI7&AJ7<>\"\",\", \",\"\")&VLOOKUP(MacroLega!P7,MacroLega!$B$2:$C$65,2),\"\")","v":""},null,null,{"$f":"Macro!J7","v":{"$error":"#N/A"}},{"$f":"Macro!K7","v":{"$error":"#N/A"}},{"$f":"Macro!L7","v":{"$error":"#N/A"}},{"$f":"Macro!M7","v":{"$error":"#N/A"}}]
[null,6,null,{"$f":"IF(Macro!I8<=1,\"\",VLOOKUP(Macro!I8,Macro!AH:AI,2,FALSE))","v":""},{"$f":"IF(D8<>\"\",VLOOKUP(D8,Macro!$Q:$Z,2,FALSE)+R8+MacroLega!F8,\"\")","v":""},{"$f":"IF(D8<>\"\",VLOOKUP(D8,Macro!$Q:$Z,3,FALSE)+S8+MacroLega!G8,\"\")","v":""},{"$f":"IF(D8<>\"\",VLOOKUP(D8,Macro!$Q:$Z,4,FALSE)+T8+MacroLega!H8,\"\")","v":""},{"$f":"IF(D8<>\"\",VLOOKUP(D8,Macro!$Q:$Z,5,FALSE)+U8+MacroLega!I8,\"\")","v":""},{"$f":"IF(D8=\"\",\"\",IF(COUNTIF(D3:D18,D8)>VLOOKUP(D8,Macro!Q:Z,10,FALSE),\"ERRORE! TROPPI GIOCATORI IN QUESTO RUOLO!\",VLOOKUP(D8,Macro!Q:Z,6,FALSE)))","v":""},{"$f":"IF(MacroLega!N42=0,IF(MacroLega!P42>0,\"ERRORE!\",AF8&AG8&AH8&AI8&AJ8&AK8),AF8&AG8&AH8&AI8&AJ8&AK8)","v":""},null,null,null,"",{"$f":"(IF(D8<>\"\",VLOOKUP(D8,Macro!Q:Z,8,FALSE),\"\"))","v":""},{"$f":"(IF(D8<>\"\",VLOOKUP(D8,Macro!Q:Z,9,FALSE),\"\"))","v":""},{"$f":"IF(AB8<>\"Star\",(IF(ISNUMBER(FIND(MacroLega!R42,O8)),20,0)+IF(ISNUMBER(FIND(MacroLega!S42,O8)),20,0)+IF(ISNUMBER(FIND(MacroLega!T42,O8)),20,0)+IF(ISNUMBER(FIND(MacroLega!U42,O8)),20,0)+IF(ISNUMBER(FIND(MacroLega!V42,O8)),20,0)+IF(ISNUMBER(FIND(MacroLega!W42,O8)),20,0)+IF(ISNUMBER(FIND(MacroLega!R42,P8)),30,0)+IF(ISNUMBER(FIND(MacroLega!S42,P8)),30,0)+IF(ISNUMBER(FIND(MacroLega!T42,P8)),30,0)+IF(ISNUMBER(FIND(MacroLega!U42,P8)),30,0)+IF(ISNUMBER(FIND(MacroLega!V42,P8)),30,0)+IF(ISNUMBER(FIND(MacroLega!W42,P8)),30,0)+SUM(MacroLega!R42:'MacroLega'!W42)),0)+IF(ISNUMBER(FIND(\"Horns Luccini\",AF8)),20,0)+IF(ISNUMBER(FIND(\"Horns Luccini\",AG8)),20,0)+IF(ISNUMBER(FIND(\"Horns Luccini\",AH8)),20,0)+IF(ISNUMBER(FIND(\"Horns Luccini\",AI8)),20,0)+IF(ISNUMBER(FIND(\"Horns Luccini\",AJ8)),20,0)+IF(ISNUMBER(FIND(\"Horns Luccini\",AK8)),20,0)","v":0},null,null,null,null,null,null,null,null,null,null,0,{"$f":"IF(L8<>\"\",(IF(L8=\"M\",Macro!N8)),(\"\"))","v":""},{"$f":"IF(L8<>\"\",(IF(L8=\"M\",\"\")),(Macro!N8))","v":0},null,{"$f":"IF(MacroLega!K8>1,VLOOKUP(MacroLega!K8,MacroLega!$B$2:$C$67,2),\"\")","v":""},{"$f":"IF(MacroLega!L8>1,IF(AF8<>\"\",\", \",\"\")&VLOOKUP(MacroLega!L8,MacroLega!$B$2:$C$67,2),\"\")","v":""},{"$f":"IF(MacroLega!M8>1,IF(AF8&AG8<>\"\",\", \",\"\")&VLOOKUP(MacroLega!M8,MacroLega!$B$2:$C$67,2),\"\")","v":""},{"$f":"IF(MacroLega!N8>1,IF(AF8&AG8&AH8<>\"\",\", \",\"\")&VLOOKUP(MacroLega!N8,MacroLega!$B$2:$C$65,2),\"\")","v":""},{"$f":"IF(MacroLega!O8>1,IF(AF8&AG8&AH8&AI8<>\"\",\", \",\"\")&VLOOKUP(MacroLega!O8,MacroLega!$B$2:$C$65,2),\"\")","v":""},{"$f":"IF(MacroLega!P8>1,IF(AF8&AG8&AH8&AI8&AJ8<>\"\",\", \",\"\")&VLOOKUP(MacroLega!P8,MacroLega!$B$2:$C$65,2),\"\")","v":""},null,null,{"$f":"Macro!J8","v":{"$error":"#N/A"}},{"$f":"Macro!K8","v":{"$error":"#N/A"}},{"$f":"Macro!L8","v":{"$error":"#N/A"}},{"$f":"Macro!M8","v":{"$error":"#N/A"}}]
[null,7,null,{"$f":"IF(Macro!I9<=1,\"\",VLOOKUP(Macro!I9,Macro!AH:AI,2,FALSE))","v":""},{"$f":"IF(D9<>\"\",VLOOKUP(D9,Macro!$Q:$Z,2,FALSE)+R9+MacroLega!F9,\"\")","v":""},{"$f":"IF(D9<>\"\",VLOOKUP(D9,Macro!$Q:$Z,3,FALSE)+S9+MacroLega!G9,\"\")","v":""},{"$f":"IF(D9<>\"\",VLOOKUP(D9,Macro!$Q:$Z,4,FALSE)+T9+MacroLega!H9,\"\")","v":""},{"$f":"IF(D9<>\"\",VLOOKUP(D9,Macro!$Q:$Z,5,FALSE)+U9+MacroLega!I9,\"\")","v":""},{"$f":"IF(D9=\"\",\"\",IF(COUNTIF(D3:D18,D9)>VLOOKUP(D9,Macro!Q:Z,10,FALSE),\"ERRORE! TROPPI GIOCATORI IN QUESTO RUOLO!\",VLOOKUP(D9,Macro!Q:Z,6,FALSE)))","v":""},{"$f":"IF(MacroLega!N43=0,IF(MacroLega!P43>0,\"ERRORE!\",AF9&AG9&AH9&AI9&AJ9&AK9),AF9&AG9&AH9&AI9&AJ9&AK9)","v":""},null,null,null,"",{"$f":"(IF(D9<>\"\",VLOOKUP(D9,Macro!Q:Z,8,FALSE),\"\"))","v":""},{"$f":"(IF(D9<>\"\",VLOOKUP(D9,Macro!Q:Z,9,FALSE),\"\"))","v":""},{"$f":"IF(AB9<>\"Star\",(IF(ISNUMBER(FIND(MacroLega!R43,O9)),20,0)+IF(ISNUMBER(FIND(MacroLega!S43,O9)),20,0)+IF(ISNUMBER(FIND(MacroLega!T43,O9)),20,0)+IF(ISNUMBER(FIND(MacroLega!U43,O9)),20,0)+IF(ISNUMBER(FIND(MacroLega!V43,O9)),20,0)+IF(ISNUMBER(FIND(MacroLega!W43,O9)),20,0)+IF(ISNUMBER(FIND(MacroLega!R43,P9)),30,0)+IF(ISNUMBER(FIND(MacroLega!S43,P9)),30,0)+IF(ISNUMBER(FIND(MacroLega!T43,P9)),30,0)+IF(ISNUMBER(FIND(MacroLega!U43,P9)),30,0)+IF(ISNUMBER(FIND(MacroLega!V43,P9)),30,0)+IF(ISNUMBER(FIND(MacroLega!W43,P9)),30,0)+SUM(MacroLega!R43:'MacroLega'!W43)),0)+IF(ISNUMBER(FIND(\"Horns Luccini\",AF9)),20,0)+IF(ISNUMBER(FIND(\"Horns Luccini\",AG9)),20,0)+IF(ISNUMBER(FIND(\"Horns Luccini\",AH9)),20,0)+IF(ISNUMBER(FIND(\"Horns Luccini\",AI9)),20,0)+IF(ISNUMBER(FIND(\"Horns Luccini\",AJ9)),20,0)+IF(ISNUMBER(FIND(\"Horns Luccini\",AK9)),20,0)","v":0},null,null,null,null,null,null,null,null,null,null,0,{"$f":"IF(L9<>\"\",(IF(L9=\"M\",Macro!N9)),(\"\"))","v":""},{"$f":"IF(L9<>\"\",(IF(L9=\"M\",\"\")),(Macro!N9))","v":0},null,{"$f":"IF(MacroLega!K9>1,VLOOKUP(MacroLega!K9,MacroLega!$B$2:$C$67,2),\"\")","v":""},{"$f":"IF(MacroLega!L9>1,IF(AF9<>\"\",\", \",\"\")&VLOOKUP(MacroLega!L9,MacroLega!$B$2:$C$67,2),\"\")","v":""},{"$f":"IF(MacroLega!M9>1,IF(AF9&AG9<>\"\",\", \",\"\")&VLOOKUP(MacroLega!M9,MacroLega!$B$2:$C$67,2),\"\")","v":""},{"$f":"IF(MacroLega!N9>1,IF(AF9&AG9&AH9<>\"\",\", \",\"\")&VLOOKUP(MacroLega!N9,MacroLega!$B$2:$C$65,2),\"\")","v":""},{"$f":"IF(MacroLega!O9>1,IF(AF9&AG9&AH9&AI9<>\"\",\", \",\"\")&VLOOKUP(MacroLega!O9,MacroLega!$B$2:$C$65,2),\"\")","v":""},{"$f":"IF(MacroLega!P9>1,IF(AF9&AG9&AH9&AI9&AJ9<>\"\",\", \",\"\")&VLOOKUP(MacroLega!P9,MacroLega!$B$2:$C$65,2),\"\")","v":""},null,null,{"$f":"Macro!J9","v":{"$error":"#N/A"}},{"$f":"Macro!K9","v":{"$error":"#N/A"}},{"$f":"Macro!L9","v":{"$error":"#N/A"}},{"$f":"Macro!M9","v":{"$error":"#N/A"}}]
[null,8,null,{"$f":"IF(Macro!I10<=1,\"\",VLOOKUP(Macro!I10,Macro!AH:AI,2,FALSE))","v":""},{"$f":"IF(D10<>\"\",VLOOKUP(D10,Macro!$Q:$Z,2,FALSE)+R10+MacroLega!F10,\"\")","v":""},{"$f":"IF(D10<>\"\",VLOOKUP(D10,Macro!$Q:$Z,3,FALSE)+S10+MacroLega!G10,\"\")","v":""},{"$f":"IF(D10<>\"\",VLOOKUP(D10,Macro!$Q:$Z,4,FALSE)+T10+MacroLega!H10,\"\")","v":""},{"$f":"IF(D10<>\"\",VLOOKUP(D10,Macro!$Q:$Z,5,FALSE)+U10+MacroLega!I10,\"\")","v":""},{"$f":"IF(D10=\"\",\"\",IF(COUNTIF(D3:D18,D10)>VLOOKUP(D10,Macro!Q:Z,10,FALSE),\"ERRORE! TROPPI GIOCATORI IN QUESTO RUOLO!\",VLOOKUP(D10,Macro!Q:Z,6,FALSE)))","v":""},{"$f":"IF(MacroLega!N44=0,IF(MacroLega!P44>0,\"ERRORE!\",AF10&AG10&AH10&AI10&AJ10&AK10),AF10&AG10&AH10&AI10&AJ10&AK10)","v":""},null,null,null,"",{"$f":"(IF(D10<>\"\",VLOOKUP(D10,Macro!Q:Z,8,FALSE),\"\"))","v":""},{"$f":"(IF(D10<>\"\",VLOOKUP(D10,Macro!Q:Z,9,FALSE),\"\"))","v":""},{"$f":"IF(AB10<>\"Star\",(IF(ISNUMBER(FIND(MacroLega!R44,O10)),20,0)+IF(ISNUMBER(FIND(MacroLega!S44,O10)),20,0)+IF(ISNUMBER(FIND(MacroLega!T44,O10)),20,0)+IF(ISNUMBER(FIND(MacroLega!U44,O10)),20,0)+IF(ISNUMBER(FIND(MacroLega!V44,O10)),20,0)+IF(ISNUMBER(FIND(MacroLega!W44,O10)),20,0)+IF(ISNUMBER(FIND(MacroLega!R44,P10)),30,0)+IF(ISNUMBER(FIND(MacroLega!S44,P10)),30,0)+IF(ISNUMBER(FIND(MacroLega!T44,P10)),30,0)+IF(ISNUMBER(FIND(MacroLega!U44,P10)),30,0)+IF(ISNUMBER(FIND(MacroLega!V44,P10)),30,0)+IF(ISNUMBER(FIND(MacroLega!W44,P10)),30,0)+SUM(MacroLega!R44:'MacroLega'!W44)),0)+IF(ISNUMBER(FIND(\"Horns Luccini\",AF10)),20,0)+IF(ISNUMBER(FIND(\"Horns Luccini\",AG10)),20,0)+IF(ISNUMBER(FIND(\"Horns Luccini\",AH10)),20,0)+IF(ISNUMBER(FIND(\"Horns Luccini\",AI10)),20,0)+IF(ISNUMBER(FIND(\"Horns Luccini\",AJ10)),20,0)+IF(ISNUMBER(FIND(\"Horns Luccini\",AK10)),20,0)","v":0},null,null,null,null,null,null,null,null,null,null,0,{"$f":"IF(L10<>\"\",(IF(L10=\"M\",Macro!N10)),(\"\"))","v":""},{"$f":"IF(L10<>\"\",(IF(L10=\"M\",\"\")),(Macro!N10))","v":0},null,{"$f":"IF(MacroLega!K10>1,VLOOKUP(MacroLega!K10,MacroLega!$B$2:$C$67,2),\"\")","v":""},{"$f":"IF(MacroLega!L10>1,IF(AF10<>\"\",\", \",\"\")&VLOOKUP(MacroLega!L10,MacroLega!$B$2:$C$67,2),\"\")","v":""},{"$f":"IF(MacroLega!M10>1,IF(AF10&AG10<>\"\",\", \",\"\")&VLOOKUP(MacroLega!M10,MacroLega!$B$2:$C$67,2),\"\")","v":""},{"$f":"IF(MacroLega!N10>1,IF(AF10&AG10&AH10<>\"\",\", \",\"\")&VLOOKUP(MacroLega!N10,MacroLega!$B$2:$C$65,2),\"\")","v":""},{"$f":"IF(MacroLega!O10>1,IF(AF10&AG10&AH10&AI10<>\"\",\", \",\"\")&VLOOKUP(MacroLega!O10,MacroLega!$B$2:$C$65,2),\"\")","v":""},{"$f":"IF(MacroLega!P10>1,IF(AF10&AG10&AH10&AI10&AJ10<>\"\",\", \",\"\")&VLOOKUP(MacroLega!P10,MacroLega!$B$2:$C$65,2),\"\")","v":""},null,null,{"$f":"Macro!J10","v":{"$error":"#N/A"}},{"$f":"Macro!K10","v":{"$error":"#N/A"}},{"$f":"Macro!L10","v":{"$error":"#N/A"}},{"$f":"Macro!M10","v":{"$error":"#N/A"}}]
[null,9,null,{"$f":"IF(Macro!I11<=1,\"\",VLOOKUP(Macro!I11,Macro!AH:AI,2,FALSE))","v":""},{"$f":"IF(D11<>\"\",VLOOKUP(D11,Macro!$Q:$Z,2,FALSE)+R11+MacroLega!F11,\"\")","v":""},{"$f":"IF(D11<>\"\",VLOOKUP(D11,Macro!$Q:$Z,3,FALSE)+S11+MacroLega!G11,\"\")","v":""},{"$f":"IF(D11<>\"\",VLOOKUP(D11,Macro!$Q:$Z,4,FALSE)+T11+MacroLega!H11,\"\")","v":""},{"$f":"IF(D11<>\"\",VLOOKUP(D11,Macro!$Q:$Z,5,FALSE)+U11+MacroLega!I11,\"\")","v":""},{"$f":"IF(D11=\"\",\"\",IF(COUNTIF(D3:D18,D11)>VLOOKUP(D11,Macro!Q:Z,10,FALSE),\"ERRORE! TROPPI GIOCATORI IN QUESTO RUOLO!\",VLOOKUP(D11,Macro!Q:Z,6,FALSE)))","v":""},{"$f":"IF(MacroLega!N45=0,IF(MacroLega!P45>0,\"ERRORE!\",AF11&AG11&AH11&AI11&AJ11&AK11),AF11&AG11&AH11&AI11&AJ11&AK11)","v":""},null,null,null,"",{"$f":"(IF(D11<>\"\",VLOOKUP(D11,Macro!Q:Z,8,FALSE),\"\"))","v":""},{"$f":"(IF(D11<>\"\",VLOOKUP(D11,Macro!Q:Z,9,FALSE),\"\"))","v":""},{"$f":"IF(AB11<>\"Star\",(IF(ISNUMBER(FIND(MacroLega!R45,O11)),20,0)+IF(ISNUMBER(FIND(MacroLega!S45,O11)),20,0)+IF(ISNUMBER(FIND(MacroLega!T45,O11)),20,0)+IF(ISNUMBER(FIND(MacroLega!U45,O11)),20,0)+IF(ISNUMBER(FIND(MacroLega!V45,O11)),20,0)+IF(ISNUMBER(FIND(MacroLega!W45,O11)),20,0)+IF(ISNUMBER(FIND(MacroLega!R45,P11)),30,0)+IF(ISNUMBER(FIND(MacroLega!S45,P11)),30,0)+IF(ISNUMBER(FIND(MacroLega!T45,P11)),30,0)+IF(ISNUMBER(FIND(MacroLega!U45,P11)),30,0)+IF(ISNUMBER(FIND(MacroLega!V45,P11)),30,0)+IF(ISNUMBER(FIND(MacroLega!W45,P11)),30,0)+SUM(MacroLega!R45:'MacroLega'!W45)),0)+IF(ISNUMBER(FIND(\"Horns Luccini\",AF11)),20,0)+IF(ISNUMBER(FIND(\"Horns Luccini\",AG11)),20,0)+IF(ISNUMBER(FIND(\"Horns Luccini\",AH11)),20,0)+IF(ISNUMBER(FIND(\"Horns Luccini\",AI11)),20,0)+IF(ISNUMBER(FIND(\"Horns Luccini\",AJ11)),20,0)+IF(ISNUMBER(FIND(\"Horns Luccini\",AK11)),20,0)","v":0},null,null,null,null,null,null,null,null,null,null,0,{"$f":"IF(L11<>\"\",(IF(L11=\"M\",Macro!N11)),(\"\"))","v":""},{"$f":"IF(L11<>\"\",(IF(L11=\"M\",\"\")),(Macro!N11))","v":0},null,{"$f":"IF(MacroLega!K11>1,VLOOKUP(MacroLega!K11,MacroLega!$B$2:$C$67,2),\"\")","v":""},{"$f":"IF(MacroLega!L11>1,IF(AF11<>\"\",\", \",\"\")&VLOOKUP(MacroLega!L11,MacroLega!$B$2:$C$67,2),\"\")","v":""},{"$f":"IF(MacroLega!M11>1,IF(AF11&AG11<>\"\",\", \",\"\")&VLOOKUP(MacroLega!M11,MacroLega!$B$2:$C$67,2),\"\")","v":""},{"$f":"IF(MacroLega!N11>1,IF(AF11&AG11&AH11<>\"\",\", \",\"\")&VLOOKUP(MacroLega!N11,MacroLega!$B$2:$C$65,2),\"\")","v":""},{"$f":"IF(MacroLega!O11>1,IF(AF11&AG11&AH11&AI11<>\"\",\", \",\"\")&VLOOKUP(MacroLega!O11,MacroLega!$B$2:$C$65,2),\"\")","v":""},{"$f":"IF(MacroLega!P11>1,IF(AF11&AG11&AH11&AI11&AJ11<>\"\",\", \",\"\")&VLOOKUP(MacroLega!P11,MacroLega!$B$2:$C$65,2),\"\")","v":""},null,null,{"$f":"Macro!J11","v":{"$error":"#N/A"}},{"$f":"Macro!K11","v":{"$error":"#N/A"}},{"$f":"Macro!L11","v":{"$error":"#N/A"}},{"$f":"Macro!M11","v":{"$error":"#N/A"}}]
[null,10,null,{"$f":"IF(Macro!I12<=1,\"\",VLOOKUP(Macro!I12,Macro!AH:AI,2,FALSE))","v":""},{"$f":"IF(D12<>\"\",VLOOKUP(D12,Macro!$Q:$Z,2,FALSE)+R12+MacroLega!F12,\"\")","v":""},{"$f":"IF(D12<>\"\",VLOOKUP(D12,Macro!$Q:$Z,3,FALSE)+S12+MacroLega!G12,\"\")","v":""},{"$f":"IF(D12<>\"\",VLOOKUP(D12,Macro!$Q:$Z,4,FALSE)+T12+MacroLega!H12,\"\")","v":""},{"$f":"IF(D12<>\"\",VLOOKUP(D12,Macro!$Q:$Z,5,FALSE)+U12+MacroLega!I12,\"\")","v":""},{"$f":"IF(D12=\"\",\"\",IF(COUNTIF(D3:D18,D12)>VLOOKUP(D12,Macro!Q:Z,10,FALSE),\"ERRORE! TROPPI GIOCATORI IN QUESTO RUOLO!\",VLOOKUP(D12,Macro!Q:Z,6,FALSE)))","v":""},{"$f":"IF(MacroLega!N46=0,IF(MacroLega!P46>0,\"ERRORE!\",AF12&AG12&AH12&AI12&AJ12&AK12),AF12&AG12&AH12&AI12&AJ12&AK12)","v":""},null,null,null,"",{"$f":"(IF(D12<>\"\",VLOOKUP(D12,Macro!Q:Z,8,FALSE),\"\"))","v":""},{"$f":"(IF(D12<>\"\",VLOOKUP(D12,Macro!Q:Z,9,FALSE),\"\"))","v":""},{"$f":"IF(AB12<>\"Star\",(IF(ISNUMBER(FIND(MacroLega!R46,O12)),20,0)+IF(ISNUMBER(FIND(MacroLega!S46,O12)),20,0)+IF(ISNUMBER(FIND(MacroLega!T46,O12)),20,0)+IF(ISNUMBER(FIND(MacroLega!U46,O12)),20,0)+IF(ISNUMBER(FIND(MacroLega!V46,O12)),20,0)+IF(ISNUMBER(FIND(MacroLega!W46,O12)),20,0)+IF(ISNUMBER(FIND(MacroLega!R46,P12)),30,0)+IF(ISNUMBER(FIND(MacroLega!S46,P12)),30,0)+IF(ISNUMBER(FIND(MacroLega!T46,P12)),30,0)+IF(ISNUMBER(FIND(MacroLega!U46,P12)),30,0)+IF(ISNUMBER(FIND(MacroLega!V46,P12)),30,0)+IF(ISNUMBER(FIND(MacroLega!W46,P12)),30,0)+SUM(MacroLega!R46:'MacroLega'!W46)),0)+IF(ISNUMBER(FIND(\"Horns Luccini\",AF12)),20,0)+IF(ISNUMBER(FIND(\"Horns Luccini\",AG12)),20,0)+IF(ISNUMBER(FIND(\"Horns Luccini\",AH12)),20,0)+IF(ISNUMBER(FIND(\"Horns Luccini\",AI12)),20,0)+IF(ISNUMBER(FIND(\"Horns Luccini\",AJ12)),20,0)+IF(ISNUMBER(FIND(\"Horns Luccini\",AK12)),20,0)","v":0},null,null,null,null,null,null,null,null,null,null,0,{"$f":"IF(L12<>\"\",(IF(L12=\"M\",Macro!N12)),(\"\"))","v":""},{"$f":"IF(L12<>\"\",(IF(L12=\"M\",\"\")),(Macro!N12))","v":0},null,{"$f":"IF(MacroLega!K12>1,VLOOKUP(MacroLega!K12,MacroLega!$B$2:$C$67,2),\"\")","v":""},{"$f":"IF(MacroLega!L12>1,IF(AF12<>\"\",\", \",\"\")&VLOOKUP(MacroLega!L12,MacroLega!$B$2:$C$67,2),\"\")","v":""},{"$f":"IF(MacroLega!M12>1,IF(AF12&AG12<>\"\",\", \",\"\")&VLOOKUP(MacroLega!M12,MacroLega!$B$2:$C$67,2),\"\")","v":""},{"$f":"IF(MacroLega!N12>1,IF(AF12&AG12&AH12<>\"\",\", \",\"\")&VLOOKUP(MacroLega!N12,MacroLega!$B$2:$C$65,2),\"\")","v":""},{"$f":"IF(MacroLega!O12>1,IF(AF12&AG12&AH12&AI12<>\"\",\", \",\"\")&VLOOKUP(MacroLega!O12,MacroLega!$B$2:$C$65,2),\"\")","v":""},{"$f":"IF(MacroLega!P12>1,IF(AF12&AG12&AH12&AI12&AJ12<>\"\",\", \",\"\")&VLOOKUP(MacroLega!P12,MacroLega!$B$2:$C$65,2),\"\")","v":""},null,null,{"$f":"Macro!J12","v":{"$error":"#N/A"}},{"$f":"Macro!K12","v":{"$error":"#N/A"}},{"$f":"Macro!L12","v":{"$error":"#N/A"}},{"$f":"Macro!M12","v":{"$error":"#N/A"}}]
[null,11,null,{"$f":"IF(Macro!I13<=1,\"\",VLOOKUP(Macro!I13,Macro!AH:AI,2,FALSE))","v":""},{"$f":"IF(D13<>\"\",VLOOKUP(D13,Macro!$Q:$Z,2,FALSE)+R13+MacroLega!F13,\"\")","v":""},{"$f":"IF(D13<>\"\",VLOOKUP(D13,Macro!$Q:$Z,3,FALSE)+S13+MacroLega!G13,\"\")","v":""},{"$f":"IF(D13<>\"\",VLOOKUP(D13,Macro!$Q:$Z,4,FALSE)+T13+MacroLega!H13,\"\")","v":""},{"$f":"IF(D13<>\"\",VLOOKUP(D13,Macro!$Q:$Z,5,FALSE)+U13+MacroLega!I13,\"\")","v":""},{"$f":"IF(D13=\"\",\"\",IF(COUNTIF(D3:D18,D13)>VLOOKUP(D13,Macro!Q:Z,10,FALSE),\"ERRORE! TROPPI GIOCATORI IN QUESTO RUOLO!\",VLOOKUP(D13,Macro!Q:Z,6,FALSE)))","v":""},{"$f":"IF(MacroLega!N47=0,IF(MacroLega!P47>0,\"ERRORE!\",AF13&AG13&AH13&AI13&AJ13&AK13),AF13&AG13&AH13&AI13&AJ13&AK13)","v":""},null,null,null,"",{"$f":"(IF(D13<>\"\",VLOOKUP(D13,Macro!Q:Z,8,FALSE),\"\"))","v":""},{"$f":"(IF(D13<>\"\",VLOOKUP(D13,Macro!Q:Z,9,FALSE),\"\"))","v":""},{"$f":"IF(AB13<>\"Star\",(IF(ISNUMBER(FIND(MacroLega!R47,O13)),20,0)+IF(ISNUMBER(FIND(MacroLega!S47,O13)),20,0)+IF(ISNUMBER(FIND(MacroLega!T47,O13)),20,0)+IF(ISNUMBER(FIND(MacroLega!U47,O13)),20,0)+IF(ISNUMBER(FIND(MacroLega!V47,O13)),20,0)+IF(ISNUMBER(FIND(MacroLega!W47,O13)),20,0)+IF(ISNUMBER(FIND(MacroLega!R47,P13)),30,0)+IF(ISNUMBER(FIND(MacroLega!S47,P13)),30,0)+IF(ISNUMBER(FIND(MacroLega!T47,P13)),30,0)+IF(ISNUMBER(FIND(MacroLega!U47,P13)),30,0)+IF(ISNUMBER(FIND(MacroLega!V47,P13)),30,0)+IF(ISNUMBER(FIND(MacroLega!W47,P13)),30,0)+SUM(MacroLega!R47:'MacroLega'!W47)),0)+IF(ISNUMBER(FIND(\"Horns Luccini\",AF13)),20,0)+IF(ISNUMBER(FIND(\"Horns Luccini\",AG13)),20,0)+IF(ISNUMBER(FIND(\"Horns Luccini\",AH13)),20,0)+IF(ISNUMBER(FIND(\"Horns Luccini\",AI13)),20,0)+IF(ISNUMBER(FIND(\"Horns Luccini\",AJ13)),20,0)+IF(ISNUMBER(FIND(\"Horns Luccini\",AK13)),20,0)","v":0},null,null,null,null,null,null,null,null,null,null,0,{"$f":"IF(L13<>\"\",(IF(L13=\"M\",Macro!N13)),(\"\"))","v":""},{"$f":"IF(L13<>\"\",(IF(L13=\"M\",\"\")),(Macro!N13))","v":0},null,{"$f":"IF(MacroLega!K13>1,VLOOKUP(MacroLega!K13,MacroLega!$B$2:$C$67,2),\"\")","v":""},{"$f":"IF(MacroLega!L13>1,IF(AF13<>\"\",\", \",\"\")&VLOOKUP(MacroLega!L13,MacroLega!$B$2:$C$67,2),\"\")","v":""},{"$f":"IF(MacroLega!M13>1,IF(AF13&AG13<>\"\",\", \",\"\")&VLOOKUP(MacroLega!M13,MacroLega!$B$2:$C$67,2),\"\")","v":""},{"$f":"IF(MacroLega!N13>1,IF(AF13&AG13&AH13<>\"\",\", \",\"\")&VLOOKUP(MacroLega!N13,MacroLega!$B$2:$C$65,2),\"\")","v":""},{"$f":"IF(MacroLega!O13>1,IF(AF13&AG13&AH13&AI13<>\"\",\", \",\"\")&VLOOKUP(MacroLega!O13,MacroLega!$B$2:$C$65,2),\"\")","v":""},{"$f":"IF(MacroLega!P13>1,IF(AF13&AG13&AH13&AI13&AJ13<>\"\",\", \",\"\")&VLOOKUP(MacroLega!P13,MacroLega!$B$2:$C$65,2),\"\")","v":""},null,null,{"$f":"Macro!J13","v":{"$error":"#N/A"}},{"$f":"Macro!K13","v":{"$error":"#N/A"}},{"$f":"Macro!L13","v":{"$error":"#N/A"}},{"$f":"Macro!M13","v":{"$error":"#N/A"}}]
[null,12,null,{"$f":"IF(Macro!I14<=1,\"\",VLOOKUP(Macro!I14,Macro!AH:AI,2,FALSE))","v":""},{"$f":"IF(D14<>\"\",VLOOKUP(D14,Macro!$Q:$Z,2,FALSE)+R14+MacroLega!F14,\"\")","v":""},{"$f":"IF(D14<>\"\",VLOOKUP(D14,Macro!$Q:$Z,3,FALSE)+S14+MacroLega!G14,\"\")","v":""},{"$f":"IF(D14<>\"\",VLOOKUP(D14,Macro!$Q:$Z,4,FALSE)+T14+MacroLega!H14,\"\")","v":""},{"$f":"IF(D14<>\"\",VLOOKUP(D14,Macro!$Q:$Z,5,FALSE)+U14+MacroLega!I14,\"\")","v":""},{"$f":"IF(D14=\"\",\"\",IF(COUNTIF(D3:D18,D14)>VLOOKUP(D14,Macro!Q:Z,10,FALSE),\"ERRORE! TROPPI GIOCATORI IN QUESTO RUOLO!\",VLOOKUP(D14,Macro!Q:Z,6,FALSE)))","v":""},{"$f":"IF(MacroLega!N48=0,IF(MacroLega!P48>0,\"ERRORE!\",AF14&AG14&AH14&AI14&AJ14&AK14),AF14&AG14&AH14&AI14&AJ14&AK14)","v":""},null,null,null,"",{"$f":"(IF(D14<>\"\",VLOOKUP(D14,Macro!Q:Z,8,FALSE),\"\"))","v":""},{"$f":"(IF(D14<>\"\",VLOOKUP(D14,Macro!Q:Z,9,FALSE),\"\"))","v":""},{"$f":"IF(AB14<>\"Star\",(IF(ISNUMBER(FIND(MacroLega!R48,O14)),20,0)+IF(ISNUMBER(FIND(MacroLega!S48,O14)),20,0)+IF(ISNUMBER(FIND(MacroLega!T48,O14)),20,0)+IF(ISNUMBER(FIND(MacroLega!U48,O14)),20,0)+IF(ISNUMBER(FIND(MacroLega!V48,O14)),20,0)+IF(ISNUMBER(FIND(MacroLega!W48,O14)),20,0)+IF(ISNUMBER(FIND(MacroLega!R48,P14)),30,0)+IF(ISNUMBER(FIND(MacroLega!S48,P14)),30,0)+IF(ISNUMBER(FIND(MacroLega!T48,P14)),30,0)+IF(ISNUMBER(FIND(MacroLega!U48,P14)),30,0)+IF(ISNUMBER(FIND(MacroLega!V48,P14)),30,0)+IF(ISNUMBER(FIND(MacroLega!W48,P14)),30,0)+SUM(MacroLega!R48:'MacroLega'!W48)),0)+IF(ISNUMBER(FIND(\"Horns Luccini\",AF14)),20,0)+IF(ISNUMBER(FIND(\"Horns Luccini\",AG14)),20,0)+IF(ISNUMBER(FIND(\"Horns Luccini\",AH14)),20,0)+IF(ISNUMBER(FIND(\"Horns Luccini\",AI14)),20,0)+IF(ISNUMBER(FIND(\"Horns Luccini\",AJ14)),20,0)+IF(ISNUMBER(FIND(\"Horns Luccini\",AK14)),20,0)","v":0},null,null,null,null,null,null,null,null,null,null,0,{"$f":"IF(L14<>\"\",(IF(L14=\"M\",Macro!N14)),(\"\"))","v":""},{"$f":"IF(L14<>\"\",(IF(L14=\"M\",\"\")),(Macro!N14))","v":0},null,{"$f":"IF(MacroLega!K14>1,VLOOKUP(MacroLega!K14,MacroLega!$B$2:$C$67,2),\"\")","v":""},{"$f":"IF(MacroLega!L14>1,IF(AF14<>\"\",\", \",\"\")&VLOOKUP(MacroLega!L14,MacroLega!$B$2:$C$67,2),\"\")","v":""},{"$f":"IF(MacroLega!M14>1,IF(AF14&AG14<>\"\",\", \",\"\")&VLOOKUP(MacroLega!M14,MacroLega!$B$2:$C$67,2),\"\")","v":""},{"$f":"IF(MacroLega!N14>1,IF(AF14&AG14&AH14<>\"\",\", \",\"\")&VLOOKUP(MacroLega!N14,MacroLega!$B$2:$C$65,2),\"\")","v":""},{"$f":"IF(MacroLega!O14>1,IF(AF14&AG14&AH14&AI14<>\"\",\", \",\"\")&VLOOKUP(MacroLega!O14,MacroLega!$B$2:$C$65,2),\"\")","v":""},{"$f":"IF(MacroLega!P14>1,IF(AF14&AG14&AH14&AI14&AJ14<>\"\",\", \",\"\")&VLOOKUP(MacroLega!P14,MacroLega!$B$2:$C$65,2),\"\")","v":""},null,null,{"$f":"Macro!J14","v":{"$error":"#N/A"}},{"$f":"Macro!K14","v":{"$error":"#N/A"}},{"$f":"Macro!L14","v":{"$error":"#N/A"}},{"$f":"Macro!M14","v":{"$error":"#N/A"}}]
[null,13,null,{"$f":"IF(Macro!I15<=1,\"\",VLOOKUP(Macro!I15,Macro!AH:AI,2,FALSE))","v":""},{"$f":"IF(D15<>\"\",VLOOKUP(D15,Macro!$Q:$Z,2,FALSE)+R15+MacroLega!F15,\"\")","v":""},{"$f":"IF(D15<>\"\",VLOOKUP(D15,Macro!$Q:$Z,3,FALSE)+S15+MacroLega!G15,\"\")","v":""},{"$f":"IF(D15<>\"\",VLOOKUP(D15,Macro!$Q:$Z,4,FALSE)+T15+MacroLega!H15,\"\")","v":""},{"$f":"IF(D15<>\"\",VLOOKUP(D15,Macro!$Q:$Z,5,FALSE)+U15+MacroLega!I15,\"\")","v":""},{"$f":"IF(D15=\"\",\"\",IF(COUNTIF(D3:D18,D15)>VLOOKUP(D15,Macro!Q:Z,10,FALSE),\"ERRORE! TROPPI GIOCATORI IN QUESTO RUOLO!\",VLOOKUP(D15,Macro!Q:Z,6,FALSE)))","v":""},{"$f":"IF(MacroLega!N49=0,IF(MacroLega!P49>0,\"ERRORE!\",AF15&AG15&AH15&AI15&AJ15&AK15),AF15&AG15&AH15&AI15&AJ15&AK15)","v":""},null,null,null,"",{"$f":"(IF(D15<>\"\",VLOOKUP(D15,Macro!Q:Z,8,FALSE),\"\"))","v":""},{"$f":"(IF(D15<>\"\",VLOOKUP(D15,Macro!Q:Z,9,FALSE),\"\"))","v":""},{"$f":"IF(AB15<>\"Star\",(IF(ISNUMBER(FIND(MacroLega!R49,O15)),20,0)+IF(ISNUMBER(FIND(MacroLega!S49,O15)),20,0)+IF(ISNUMBER(FIND(MacroLega!T49,O15)),20,0)+IF(ISNUMBER(FIND(MacroLega!U49,O15)),20,0)+IF(ISNUMBER(FIND(MacroLega!V49,O15)),20,0)+IF(ISNUMBER(FIND(MacroLega!W49,O15)),20,0)+IF(ISNUMBER(FIND(MacroLega!R49,P15)),30,0)+IF(ISNUMBER(FIND(MacroLega!S49,P15)),30,0)+IF(ISNUMBER(FIND(MacroLega!T49,P15)),30,0)+IF(ISNUMBER(FIND(MacroLega!U49,P15)),30,0)+IF(ISNUMBER(FIND(MacroLega!V49,P15)),30,0)+IF(ISNUMBER(FIND(MacroLega!W49,P15)),30,0)+SUM(MacroLega!R49:'MacroLega'!W49)),0)+IF(ISNUMBER(FIND(\"Horns Luccini\",AF15)),20,0)+IF(ISNUMBER(FIND(\"Horns Luccini\",AG15)),20,0)+IF(ISNUMBER(FIND(\"Horns Luccini\",AH15)),20,0)+IF(ISNUMBER(FIND(\"Horns Luccini\",AI15)),20,0)+IF(ISNUMBER(FIND(\"Horns Luccini\",AJ15)),20,0)+IF(ISNUMBER(FIND(\"Horns Luccini\",AK15)),20,0)","v":0},null,null,null,null,null,null,null,null,null,null,0,{"$f":"IF(L15<>\"\",(IF(L15=\"M\",Macro!N15)),(\"\"))","v":""},{"$f":"IF(L15<>\"\",(IF(L15=\"M\",\"\")),(Macro!N15))","v":0},null,{"$f":"IF(MacroLega!K15>1,VLOOKUP(MacroLega!K15,MacroLega!$B$2:$C$67,2),\"\")","v":""},{"$f":"IF(MacroLega!L15>1,IF(AF15<>\"\",\", \",\"\")&VLOOKUP(MacroLega!L15,MacroLega!$B$2:$C$67,2),\"\")","v":""},{"$f":"IF(MacroLega!M15>1,IF(AF15&AG15<>\"\",\", \",\"\")&VLOOKUP(MacroLega!M15,MacroLega!$B$2:$C$67,2),\"\")","v":""},{"$f":"IF(MacroLega!N15>1,IF(AF15&AG15&AH15<>\"\",\", \",\"\")&VLOOKUP(MacroLega!N15,MacroLega!$B$2:$C$65,2),\"\")","v":""},{"$f":"IF(MacroLega!O15>1,IF(AF15&AG15&AH15&AI15<>\"\",\", \",\"\")&VLOOKUP(MacroLega!O15,MacroLega!$B$2:$C$65,2),\"\")","v":""},{"$f":"IF(MacroLega!P15>1,IF(AF15&AG15&AH15&AI15&AJ15<>\"\",\", \",\"\")&VLOOKUP(MacroLega!P15,MacroLega!$B$2:$C$65,2),\"\")","v":""},null,null,{"$f":"Macro!J15","v":{"$error":"#N/A"}},{"$f":"Macro!K15","v":{"$error":"#N/A"}},{"$f":"Macro!L15","v":{"$error":"#N/A"}},{"$f":"Macro!M15","v":{"$error":"#N/A"}}]
[null,14,null,{"$f":"IF(Macro!I16<=1,\"\",VLOOKUP(Macro!I16,Macro!AH:AI,2,FALSE))","v":""},{"$f":"IF(D16<>\"\",VLOOKUP(D16,Macro!$Q:$Z,2,FALSE)+R16+MacroLega!F16,\"\")","v":""},{"$f":"IF(D16<>\"\",VLOOKUP(D16,Macro!$Q:$Z,3,FALSE)+S16+MacroLega!G16,\"\")","v":""},{"$f":"IF(D16<>\"\",VLOOKUP(D16,Macro!$Q:$Z,4,FALSE)+T16+MacroLega!H16,\"\")","v":""},{"$f":"IF(D16<>\"\",VLOOKUP(D16,Macro!$Q:$Z,5,FALSE)+U16+MacroLega!I16,\"\")","v":""},{"$f":"IF(D16=\"\",\"\",IF(COUNTIF(D3:D18,D16)>VLOOKUP(D16,Macro!Q:Z,10,FALSE),\"ERRORE! TROPPI GIOCATORI IN QUESTO RUOLO!\",VLOOKUP(D16,Macro!Q:Z,6,FALSE)))","v":""},{"$f":"IF(MacroLega!N50=0,IF(MacroLega!P50>0,\"ERRORE!\",AF16&AG16&AH16&AI16&AJ16&AK16),AF16&AG16&AH16&AI16&AJ16&AK16)","v":""},null,null,null,"",{"$f":"(IF(D16<>\"\",VLOOKUP(D16,Macro!Q:Z,8,FALSE),\"\"))","v":""},{"$f":"(IF(D16<>\"\",VLOOKUP(D16,Macro!Q:Z,9,FALSE),\"\"))","v":""},{"$f":"IF(AB16<>\"Star\",(IF(ISNUMBER(FIND(MacroLega!R50,O16)),20,0)+IF(ISNUMBER(FIND(MacroLega!S50,O16)),20,0)+IF(ISNUMBER(FIND(MacroLega!T50,O16)),20,0)+IF(ISNUMBER(FIND(MacroLega!U50,O16)),20,0)+IF(ISNUMBER(FIND(MacroLega!V50,O16)),20,0)+IF(ISNUMBER(FIND(MacroLega!W50,O16)),20,0)+IF(ISNUMBER(FIND(MacroLega!R50,P16)),30,0)+IF(ISNUMBER(FIND(MacroLega!S50,P16)),30,0)+IF(ISNUMBER(FIND(MacroLega!T50,P16)),30,0)+IF(ISNUMBER(FIND(MacroLega!U50,P16)),30,0)+IF(ISNUMBER(FIND(MacroLega!V50,P16)),30,0)+IF(ISNUMBER(FIND(MacroLega!W50,P16)),30,0)+SUM(MacroLega!R50:'MacroLega'!W50)),0)+IF(ISNUMBER(FIND(\"Horns Luccini\",AF16)),20,0)+IF(ISNUMBER(FIND(\"Horns Luccini\",AG16)),20,0)+IF(ISNUMBER(FIND(\"Horns Luccini\",AH16)),20,0)+IF(ISNUMBER(FIND(\"Horns Luccini\",AI16)),20,0)+IF(ISNUMBER(FIND(\"Horns Luccini\",AJ16)),20,0)+IF(ISNUMBER(FIND(\"Horns Luccini\",AK16)),20,0)","v":0},null,null,null,null,null,null,null,null,null,null,0,{"$f":"IF(L16<>\"\",(IF(L16=\"M\",Macro!N16)),(\"\"))","v":""},{"$f":"IF(L16<>\"\",(IF(L16=\"M\",\"\")),(Macro!N16))","v":0},null,{"$f":"IF(MacroLega!K16>1,VLOOKUP(MacroLega!K16,MacroLega!$B$2:$C$67,2),\"\")","v":""},{"$f":"IF(MacroLega!L16>1,IF(AF16<>\"\",\", \",\"\")&VLOOKUP(MacroLega!L16,MacroLega!$B$2:$C$67,2),\"\")","v":""},{"$f":"IF(MacroLega!M16>1,IF(AF16&AG16<>\"\",\", \",\"\")&VLOOKUP(MacroLega!M16,MacroLega!$B$2:$C$67,2),\"\")","v":""},{"$f":"IF(MacroLega!N16>1,IF(AF16&AG16&AH16<>\"\",\", \",\"\")&VLOOKUP(MacroLega!N16,MacroLega!$B$2:$C$65,2),\"\")","v":""},{"$f":"IF(MacroLega!O16>1,IF(AF16&AG16&AH16&AI16<>\"\",\", \",\"\")&VLOOKUP(MacroLega!O16,MacroLega!$B$2:$C$65,2),\"\")","v":""},{"$f":"IF(MacroLega!P16>1,IF(AF16&AG16&AH16&AI16&AJ16<>\"\",\", \",\"\")&VLOOKUP(MacroLega!P16,MacroLega!$B$2:$C$65,2),\"\")","v":""},null,null,{"$f":"Macro!J16","v":{"$error":"#N/A"}},{"$f":"Macro!K16","v":{"$error":"#N/A"}},{"$f":"Macro!L16","v":{"$error":"#N/A"}},{"$f":"Macro!M16","v":{"$error":"#N/A"}}]
[null,15,null,{"$f":"IF(Macro!I17<=1,\"\",VLOOKUP(Macro!I17,Macro!AH:AI,2,FALSE))","v":""},{"$f":"IF(D17<>\"\",VLOOKUP(D17,Macro!$Q:$Z,2,FALSE)+R17+MacroLega!F17,\"\")","v":""},{"$f":"IF(D17<>\"\",VLOOKUP(D17,Macro!$Q:$Z,3,FALSE)+S17+MacroLega!G17,\"\")","v":""},{"$f":"IF(D17<>\"\",VLOOKUP(D17,Macro!$Q:$Z,4,FALSE)+T17+MacroLega!H17,\"\")","v":""},{"$f":"IF(D17<>\"\",VLOOKUP(D17,Macro!$Q:$Z,5,FALSE)+U17+MacroLega!I17,\"\")","v":""},{"$f":"IF(D17=\"\",\"\",IF(COUNTIF(D3:D18,D17)>VLOOKUP(D17,Macro!Q:Z,10,FALSE),\"ERRORE! TROPPI GIOCATORI IN QUESTO RUOLO!\",VLOOKUP(D17,Macro!Q:Z,6,FALSE)))","v":""},{"$f":"IF(MacroLega!N51=0,IF(MacroLega!P51>0,\"ERRORE!\",AF17&AG17&AH17&AI17&AJ17&AK17),AF17&AG17&AH17&AI17&AJ17&AK17)","v":""},null,null,null,"",{"$f":"(IF(D17<>\"\",VLOOKUP(D17,Macro!Q:Z,8,FALSE),\"\"))","v":""},{"$f":"(IF(D17<>\"\",VLOOKUP(D17,Macro!Q:Z,9,FALSE),\"\"))","v":""},{"$f":"IF(AB17<>\"Star\",(IF(ISNUMBER(FIND(MacroLega!R51,O17)),20,0)+IF(ISNUMBER(FIND(MacroLega!S51,O17)),20,0)+IF(ISNUMBER(FIND(MacroLega!T51,O17)),20,0)+IF(ISNUMBER(FIND(MacroLega!U51,O17)),20,0)+IF(ISNUMBER(FIND(MacroLega!V51,O17)),20,0)+IF(ISNUMBER(FIND(MacroLega!W51,O17)),20,0)+IF(ISNUMBER(FIND(MacroLega!R51,P17)),30,0)+IF(ISNUMBER(FIND(MacroLega!S51,P17)),30,0)+IF(ISNUMBER(FIND(MacroLega!T51,P17)),30,0)+IF(ISNUMBER(FIND(MacroLega!U51,P17)),30,0)+IF(ISNUMBER(FIND(MacroLega!V51,P17)),30,0)+IF(ISNUMBER(FIND(MacroLega!W51,P17)),30,0)+SUM(MacroLega!R51:'MacroLega'!W51)),0)+IF(ISNUMBER(FIND(\"Horns Luccini\",AF17)),20,0)+IF(ISNUMBER(FIND(\"Horns Luccini\",AG17)),20,0)+IF(ISNUMBER(FIND(\"Horns Luccini\",AH17)),20,0)+IF(ISNUMBER(FIND(\"Horns Luccini\",AI17)),20,0)+IF(ISNUMBER(FIND(\"Horns Luccini\",AJ17)),20,0)+IF(ISNUMBER(FIND(\"Horns Luccini\",AK17)),20,0)","v":0},null,null,null,null,null,null,null,null,null,null,0,{"$f":"IF(L17<>\"\",(IF(L17=\"M\",Macro!N17)),(\"\"))","v":""},{"$f":"IF(L17<>\"\",(IF(L17=\"M\",\"\")),(Macro!N17))","v":0},null,{"$f":"IF(MacroLega!K17>1,VLOOKUP(MacroLega!K17,MacroLega!$B$2:$C$67,2),\"\")","v":""},{"$f":"IF(MacroLega!L17>1,IF(AF17<>\"\",\", \",\"\")&VLOOKUP(MacroLega!L17,MacroLega!$B$2:$C$67,2),\"\")","v":""},{"$f":"IF(MacroLega!M17>1,IF(AF17&AG17<>\"\",\", \",\"\")&VLOOKUP(MacroLega!M17,MacroLega!$B$2:$C$67,2),\"\")","v":""},{"$f":"IF(MacroLega!N17>1,IF(AF17&AG17&AH17<>\"\",\", \",\"\")&VLOOKUP(MacroLega!N17,MacroLega!$B$2:$C$65,2),\"\")","v":""},{"$f":"IF(MacroLega!O17>1,IF(AF17&AG17&AH17&AI17<>\"\",\", \",\"\")&VLOOKUP(MacroLega!O17,MacroLega!$B$2:$C$65,2),\"\")","v":""},{"$f":"IF(MacroLega!P17>1,IF(AF17&AG17&AH17&AI17&AJ17<>\"\",\", \",\"\")&VLOOKUP(MacroLega!P17,MacroLega!$B$2:$C$65,2),\"\")","v":""},null,null,{"$f":"Macro!J17","v":{"$error":"#N/A"}},{"$f":"Macro!K17","v":{"$error":"#N/A"}},{"$f":"Macro!L17","v":{"$error":"#N/A"}},{"$f":"Macro!M17","v":{"$error":"#N/A"}}]
[null,16,null,{"$f":"IF(Macro!I18<=1,\"\",VLOOKUP(Macro!I18,Macro!AH:AI,2,FALSE))","v":""},{"$f":"IF(D18<>\"\",VLOOKUP(D18,Macro!$Q:$Z,2,FALSE)+R18+MacroLega!F18,\"\")","v":""},{"$f":"IF(D18<>\"\",VLOOKUP(D18,Macro!$Q:$Z,3,FALSE)+S18+MacroLega!G18,\"\")","v":""},{"$f":"IF(D18<>\"\",VLOOKUP(D18,Macro!$Q:$Z,4,FALSE)+T18+MacroLega!H18,\"\")","v":""},{"$f":"IF(D18<>\"\",VLOOKUP(D18,Macro!$Q:$Z,5,FALSE)+U18+MacroLega!I18,\"\")","v":""},{"$f":"IF(D18=\"\",\"\",IF(COUNTIF(D3:D18,D18)>VLOOKUP(D18,Macro!Q:Z,10,FALSE),\"ERRORE! TROPPI GIOCATORI IN QUESTO RUOLO!\",VLOOKUP(D18,Macro!Q:Z,6,FALSE)))","v":""},{"$f":"IF(MacroLega!N52=0,IF(MacroLega!P52>0,\"ERRORE!\",AF18&AG18&AH18&AI18&AJ18&AK18),AF18&AG18&AH18&AI18&AJ18&AK18)","v":""},null,null,null,"",{"$f":"(IF(D18<>\"\",VLOOKUP(D18,Macro!Q:Z,8,FALSE),\"\"))","v":""},{"$f":"(IF(D18<>\"\",VLOOKUP(D18,Macro!Q:Z,9,FALSE),\"\"))","v":""},{"$f":"IF(AB18<>\"Star\",(IF(ISNUMBER(FIND(MacroLega!R52,O18)),20,0)+IF(ISNUMBER(FIND(MacroLega!S52,O18)),20,0)+IF(ISNUMBER(FIND(MacroLega!T52,O18)),20,0)+IF(ISNUMBER(FIND(MacroLega!U52,O18)),20,0)+IF(ISNUMBER(FIND(MacroLega!V52,O18)),20,0)+IF(ISNUMBER(FIND(MacroLega!W52,O18)),20,0)+IF(ISNUMBER(FIND(MacroLega!R52,P18)),30,0)+IF(ISNUMBER(FIND(MacroLega!S52,P18)),30,0)+IF(ISNUMBER(FIND(MacroLega!T52,P18)),30,0)+IF(ISNUMBER(FIND(MacroLega!U52,P18)),30,0)+IF(ISNUMBER(FIND(MacroLega!V52,P18)),30,0)+IF(ISNUMBER(FIND(MacroLega!W52,P18)),30,0)+SUM(MacroLega!R52:'MacroLega'!W52)),0)+IF(ISNUMBER(FIND(\"Horns Luccini\",AF18)),20,0)+IF(ISNUMBER(FIND(\"Horns Luccini\",AG18)),20,0)+IF(ISNUMBER(FIND(\"Horns Luccini\",AH18)),20,0)+IF(ISNUMBER(FIND(\"Horns Luccini\",AI18)),20,0)+IF(ISNUMBER(FIND(\"Horns Luccini\",AJ18)),20,0)+IF(ISNUMBER(FIND(\"Horns Luccini\",AK18)),20,0)","v":0},null,null,null,null,null,null,null,null,null,null,0,{"$f":"IF(L18<>\"\",(IF(L18=\"M\",Macro!N18)),(\"\"))","v":""},{"$f":"IF(L18<>\"\",(IF(L18=\"M\",\"\")),(Macro!N18))","v":0},null,{"$f":"IF(MacroLega!K18>1,VLOOKUP(MacroLega!K18,MacroLega!$B$2:$C$67,2),\"\")","v":""},{"$f":"IF(MacroLega!L18>1,IF(AF18<>\"\",\", \",\"\")&VLOOKUP(MacroLega!L18,MacroLega!$B$2:$C$67,2),\"\")","v":""},{"$f":"IF(MacroLega!M18>1,IF(AF18&AG18<>\"\",\", \",\"\")&VLOOKUP(MacroLega!M18,MacroLega!$B$2:$C$67,2),\"\")","v":""},{"$f":"IF(MacroLega!N18>1,IF(AF18&AG18&AH18<>\"\",\", \",\"\")&VLOOKUP(MacroLega!N18,MacroLega!$B$2:$C$65,2),\"\")","v":""},{"$f":"IF(MacroLega!O18>1,IF(AF18&AG18&AH18&AI18<>\"\",\", \",\"\")&VLOOKUP(MacroLega!O18,MacroLega!$B$2:$C$65,2),\"\")","v":""},{"$f":"IF(MacroLega!P18>1,IF(AF18&AG18&AH18&AI18&AJ18<>\"\",\", \",\"\")&VLOOKUP(MacroLega!P18,MacroLega!$B$2:$C$65,2),\"\")","v":""},null,null,{"$f":"Macro!J18","v":{"$error":"#N/A"}},{"$f":"Macro!K18","v":{"$error":"#N/A"}},{"$f":"Macro!L18","v":{"$error":"#N/A"}},{"$f":"Macro!M18","v":{"$error":"#N/A"}}]
[null,"Lega Apuana Blood Bowl",null,null,null,null,null,null,null,null,null,"SQUADRA : ",null,null,{"$f":"VLOOKUP(Macro!J22,Macro!AB2:'Macro'!AC27,2,FALSE)","v":"Underworld"},null,null,null,null,"COSTO DEI GIOCATORI : ",null,null,null,null,null,null,null,null,{"$f":"SUM(AD3:AD18)","v":0},null,null,"M = inserire M quando il giocatore salta la partita"]
[null,null,null,null,null,null,null,null,null,null,null,"TESORERIA : ",null,null,0,null,null,null,null,"RE-ROLLS",null,null,null,3,"x",{"$f":"IF(O19<>\"\",VLOOKUP(O19,Macro!AC2:'Macro'!AD27,2,FALSE),0)","v":70000},null,"gp",{"$f":"X20*Z20","v":210000},null,null,"N.I. = inserire ! Per ogni Niggling Injuries subita dal giocatore"]
[null,"2D6 : KICKOFF TABLE",null,"7 : Changing Weather","2D6 : WEATHER TABLE",null,null,null,null,null,null,"2D6 : IMPROVEMENTS TABLE",null,null,null,null,null,null,null,"FAN FACTOR",null,null,null,0,"x",10000,null,"gp",{"$f":"X21*Z21","v":0},null,null,"♦ = il numero di avanzamenti del giocatore"]
[null,"2 : Get the Ref",null,"8 : Brilliant Coaching","2 : Sweltering Heat",null,null,null,"D68 : CASUALTY TABLE",null,null,"2-9 : Nuova Abilità Normale",null,null,null,null,null,null,null,"ASSISTANT C.",null,null,null,0,"x",10000,null,"gp",{"$f":"X22*Z22","v":0},null,null,"Norm. = le abilità Normali del giocatore"]
[null,"3 : Riot",null,"9 : Quick Snap","3 : Very Sunny",null,null,null,"11-38 : Partita Finita","55-56 : -1 AV + Miss",null,"10 : +1 MA, +1 AV o Nuova Abilità Normale",null,null,null,null,null,null,null,"CHEERLEADERS",null,null,null,0,"x",10000,null,"gp",{"$f":"X23*Z23","v":0},null,null,"Dopp. = le abilità Doppie del giocatore"]
[null,"4 : Perfect Defense",null,"10 : Blitz!","4-10 : Nice",null,null,null,"41-48 : Miss Next Game","57 : -1 AG + Miss",null,"11 : +1 AG o Nuova Abilità Normale",null,null,null,null,null,null,null,{"$f":"IF(IF(O19<>\"\",VLOOKUP(O19,Macro!AE2:'Macro'!AF27,2,FALSE),0)=1,\"APOTECARIO\",\"\")","v":"APOTECARIO"},null,null,null,0,{"$f":"IF(IF(O19<>\"\",VLOOKUP(O19,Macro!AE2:AF27,2,FALSE),0)=1,\"x\",\"\")","v":"x"},{"$f":"IF(IF(O19<>\"\",VLOOKUP(O19,Macro!AE2:AF27,2,FALSE),0)=1,50000,\"\")","v":50000},null,{"$f":"IF(O19=\"Shambling Undead\",\"\",(IF(O19=\"Necromantic Horror\",\"\",(IF(O19=\"Khemri Tomb Kings\",\"\",(IF(O19=\"Nurgle\",\"\",\"gp\")))))))","v":"gp"},{"$f":"IF(O19=\"Shambling Undead\",0,(IF(O19=\"Necromantic Horror\",0,(IF(O19=\"Khemri Tomb Kings\",0,(IF(O19=\"Nurgle\",0,(IF(X24<>1,0,50000)))))))))","v":0},null,null,"Inc. = l'aumento del valore del giocatore in seguito agli avanzamenti"]
[null,"5 : High Kick",null,"11 : Throw a Rock","11 : Pouring Rain",null,null,null,"51-52 : N.I. + Miss","58 : -1 ST + Miss",null,"12 : +1 ST o Nuova Abilità Normale",null,null,null,null,null,null,null,"COSTO DEGLI EXTRA : ",null,null,null,null,null,null,null,null,{"$f":"SUM(AC20:AC24)","v":210000},null,null,"MA, ST, AG, AV = inserire -1 per ogni diminuzione di caratteristica del giocatore"]
[null,"6 : Cheering Fans",null,"12 : Pitch Invasion","12 : Blizzard",null,null,null,"53-54 : -1 MA + Miss","61-68 : Morto!",null,"Doppio : Nuova Abilità Normale o Doppia",null,null,null,null,null,null,null,"VALORE TOTALE DELLA SQUADRA : ",null,null,null,null,null,null,null,null,{"$f":"AC19+AC25","v":210000},null,null,"Punti Extra = punti Star Player aggiuntivi del giocatore"]
[null,"Fatta da Andrea Parrella LBBF, modificata da Simone Mannella LABB"]

{"sheet":"Macro","index":1,"n_rows":243,"n_cols":63,"rows_kept":243,"cut":false,"hidden":true,"merged":[[110,26,111,26],[112,26,116,26],[79,26,82,26],[83,26,84,26],[85,26,90,26],[91,26,95,26],[96,26,99,26],[100,26,104,26],[105,26,109,26],[56,26,60,26],[61,26,64,26],[65,26,67,26],[68,26,72,26],[73,26,78,26],[24,26,28,26],[52,26,55,26],[42,26,49,26],[2,26,5,26],[6,26,8,26],[9,26,11,26],[12,26,15,26],[29,26,32,26],[16,26,23,26],[33,26,37,26],[38,26,41,26],[50,26,51,26]]}
[null,null,null,null,null,null,null,null,null,null,null,null,null,null,null,null,null,null,null,null,null,null,null,null,null,null,null,null,"Razza","Apo gp","Razza","Apo S/N",null,1]
[null,"G -> Generali","A -> Agilità","P -> Passaggio","S -> Forza","M -> Mutazioni","E -> Straordinarie",null,null,"MA","ST","AG","AV",null,null,1,"Ruolo","MA","ST","AG","VA","Skill","gp","Skill N","Skill D","Q.tà","Razza",1,"Amazon",50000,"Amazon",1,null,{"$f":"IF(AI2=\"\",\"\",AH1+1)","v":2},{"$f":"IF(AJ2=0,\"\",AJ2)","v":"Goblin°°"},{"$f":"HLOOKUP('LABB 2019'!O$19,AL$2:BK$11,2,FALSE)","v":"Goblin°°"},null,"Amazon","Bretonnia","Chaos Chosen","Chaos Dwarf","Chaos Renegades","Dark Elf","Daemon of Khorne","Dwarf","Elven Union","Goblin","Halfling","High Elf","Human","Khemri Tomb Kings","Lizardman","Necromantic Horror","Norse","Nurgle","Ogre","Orc","Shambling Undead","Skaven","Slann","Underworld","Vampire","Wood Elf"]
[null,"Block (Blocco)","Catch (Ricezione)","Accurate (Accurato)","Break Tackle (Rompere marc.)","Big Hand (Manona)","Always Hungry (Sempre affamato)",null,1,{"$f":"VLOOKUP('LABB 2019'!D3,$Q:$Z,2,FALSE)","v":{"$error":"#N/A"}},{"$f":"VLOOKUP('LABB 2019'!D3,$Q:$Z,3,FALSE)","v":{"$error":"#N/A"}},{"$f":"VLOOKUP('LABB 2019'!D3,$Q:$Z,4,FALSE)","v":{"$error":"#N/A"}},{"$f":"VLOOKUP('LABB 2019'!D3,$Q:$Z,5,FALSE)","v":{"$error":"#N/A"}},{"$f":"(IF('LABB 2019'!D3<>\"\",VLOOKUP('LABB 2019'!D3,Q:Z,7,FALSE),\"0\")+('LABB 2019'!Q3*1000))","v":0},null,2,"Tribal Linewoman",6,3,3,7,"Dodge",50000,"G","ASP",16,"Amazon",2,"Bretonnia",70000,"Bretonnia",1,null,{"$f":"IF(AI3=\"\",\"\",AH2+1)","v":3},{"$f":"IF(AJ3=0,\"\",AJ3)","v":"Skaven Lineman°"},{"$f":"HLOOKUP('LABB 2019'!O$19,AL$2:BK$11,3,FALSE)","v":"Skaven Lineman°"},null,"Tribal Linewoman","Bretonnia Lineman","Beastman Runner","Hobgoblin Runner","Renegade Human Lineman","Dark Elf Lineman","Pit Fighter","Dwarf Blocker","Elven Union Lineman","Goblin","Halfling Hopeful","High Elf Lineman","Human Lineman","Skeleton Lineman","Skink Runner","Zombie","Norse Lineman","Rotter","Runt","Orc Lineman","Skeleton Lineman","Skaven Lineman","Slann Lineman","Goblin°°","Thrall Lineman","Wood Elf Lineman"]
[null,"Dauntless (Incosciente)","Diving Catch (Ricez. in tuffo)","Dump-Off (Scaricare)","Grab (Trascinare)","Claws (Artigli)","Animosity",null,1,{"$f":"VLOOKUP('LABB 2019'!D4,$Q:$Z,2,FALSE)","v":{"$error":"#N/A"}},{"$f":"VLOOKUP('LABB 2019'!D4,$Q:$Z,3,FALSE)","v":{"$error":"#N/A"}},{"$f":"VLOOKUP('LABB 2019'!D4,$Q:$Z,4,FALSE)","v":{"$error":"#N/A"}},{"$f":"VLOOKUP('LABB 2019'!D4,$Q:$Z,5,FALSE)","v":{"$error":"#N/A"}},{"$f":"(IF('LABB 2019'!D4<>\"\",VLOOKUP('LABB 2019'!D4,Q:Z,7,FALSE),\"0\")+('LABB 2019'!Q4*1000))","v":0},null,3,"Eagle Warrior Thrower",6,3,3,7,"Dodge, Pass",70000,"GP","AS",2,null,3,"Chaos Chosen",60000,"Chaos Chosen",1,null,4,"Skaven Thrower°",{"$f":"HLOOKUP('LABB 2019'!O$19,AL$2:BK$11,4,FALSE)","v":"Skaven Thrower°"},null,"Eagle Warrior Thrower","Bretonnia Blitzer","Chosen Blocker","Chaos Dwarf Blocker","Renegade Goblin","Dark Elf Runner","Bloodletter Daemon","Dwarf Runner","Elven Union Thrower","Bomma","Treeman","High Elf Thrower","Human Catcher","Anointed Thrower","Saurus Blocker","Ghoul Runner°","Norse Thrower","Pestigor","Ogre°","Goblin°","Zombie","Skaven Thrower","Slann Catcher","Skaven Lineman°","Vampire Blitzer","Wood Elf Catcher"]
[null,"Dirty Player (Gioco sporco)","Diving Tackle (Placc. in tuffo)","Hail Mary Pass (Lancio disper.)","Guard (Guardia)","Disturbing Presence (Fastidioso)","Ball & Chain (Palla e Catena)",null,1,{"$f":"VLOOKUP('LABB 2019'!D5,$Q:$Z,2,FALSE)","v":{"$error":"#N/A"}},{"$f":"VLOOKUP('LABB 2019'!D5,$Q:$Z,3,FALSE)","v":{"$error":"#N/A"}},{"$f":"VLOOKUP('LABB 2019'!D5,$Q:$Z,4,FALSE)","v":{"$error":"#N/A"}},{"$f":"VLOOKUP('LABB 2019'!D5,$Q:$Z,5,FALSE)","v":{"$error":"#N/A"}},{"$f":"(IF('LABB 2019'!D5<>\"\",VLOOKUP('LABB 2019'!D5,Q:Z,7,FALSE),\"0\")+('LABB 2019'!Q5*1000))","v":0},null,4,"Piranha Warrior Catcher",6,3,3,7,"Dodge, Catch",70000,"GA","SP",2,null,4,"Chaos Dwarf",70000,"Chaos Dwarf",1,null,5,"Skaven Blitzer°",{"$f":"HLOOKUP('LABB 2019'!O$19,AL$2:BK$11,5,FALSE)","v":"Skaven Blitzer°"},null,"Piranha Warrior Catcher","Yeoman","Minotaur","Bull Centaur Blitzer","Renegade Orc Lineman","Assassin","Khorne Herald","Dwarf Blitzer","Elven Union Catcher","Looney","Halfling Loner","High Elf Catcher","Human Thrower","Anointed Blitzer","Kroxigor","Wight Blitzer","Norse Catcher","Bloater","Snotling Loner","Orc Thrower","Ghoul Runner","Gutter Runner","Slann Blitzer","Skaven Thrower°","Thrall Loner","Wood Elf Thrower"]
[null,"Fend (Arresto)","Dodge (Smarcarsi)","Leader (Capitano)","Juggernaut (Inarrestabile)","Extra Arms (Braccia in più)","Blood Lust (Sete di sangue)",null,1,{"$f":"VLOOKUP('LABB 2019'!D6,$Q:$Z,2,FALSE)","v":{"$error":"#N/A"}},{"$f":"VLOOKUP('LABB 2019'!D6,$Q:$Z,3,FALSE)","v":{"$error":"#N/A"}},{"$f":"VLOOKUP('LABB 2019'!D6,$Q:$Z,4,FALSE)","v":{"$error":"#N/A"}},{"$f":"VLOOKUP('LABB 2019'!D6,$Q:$Z,5,FALSE)","v":{"$error":"#N/A"}},{"$f":"(IF('LABB 2019'!D6<>\"\",VLOOKUP('LABB 2019'!D6,Q:Z,7,FALSE),\"0\")+('LABB 2019'!Q6*1000))","v":0},null,5,"Koka Kalim Blitzers",6,3,3,7,"Dodge, Block",90000,"GS","AP",4,null,5,"Chaos Renegades",70000,"Chaos Renegades",1,null,6,"Troll°°°",{"$f":"HLOOKUP('LABB 2019'!O$19,AL$2:BK$11,6,FALSE)","v":"Troll°°°"},null,"Koka Kalim Blitzers","Bretonnia Loner","Beastman Loner","Enslaved Minotaur","Renegade Skaven Lineman","Dark Elf Blitzer","Bloodthirster","Troll Slayer","Elven Union Blitzer","Fanatic",null,"High Elf Blitzer","Human Blitzer","Tomb Guardian","Skink Loner","Flesh Golem","Norse Berserker","Rotspawn",null,"Black Orc Blocker","Wight Blitzer","Skaven Blitzer","Kroxigor°","Skaven Blitzer°",null,"Wardancer"]
[null,"Frenzy (Furia)","Jump Up (Saltar su)","Nerves of Steel (Nervi d’acciaio)","Mighty Blow (Colpo possente)","Foul Appearance (Repellente)","Bombardier (Bombarolo)",null,1,{"$f":"VLOOKUP('LABB 2019'!D7,$Q:$Z,2,FALSE)","v":{"$error":"#N/A"}},{"$f":"VLOOKUP('LABB 2019'!D7,$Q:$Z,3,FALSE)","v":{"$error":"#N/A"}},{"$f":"VLOOKUP('LABB 2019'!D7,$Q:$Z,4,FALSE)","v":{"$error":"#N/A"}},{"$f":"VLOOKUP('LABB 2019'!D7,$Q:$Z,5,FALSE)","v":{"$error":"#N/A"}},{"$f":"(IF('LABB 2019'!D7<>\"\",VLOOKUP('LABB 2019'!D7,Q:Z,7,FALSE),\"0\")+('LABB 2019'!Q7*1000))","v":0},null,6,"Bretonnia Lineman",6,3,2,7,"Fend",40000,"G","ASP",16,"Bretonnia",6,"Dark Elf",50000,"Dark Elf",1,null,7,"Goblin Loner°",{"$f":"HLOOKUP('LABB 2019'!O$19,AL$2:BK$11,7,FALSE)","v":"Goblin Loner°"},null,"Amazon Loner",null,null,"Hobgoblin Loner","Renegade Dark Elf  Lineman","Witch Elf","Pit Fighter Loner","Deathroller","Elven Union Loner","Doom Diver",null,"High Elf Loner","Ogre","Skeleton Loner°",null,"Werewolf","Ulfwerenar","Rotter Loner",null,"Orc Blitzer","Mummy","Rat Ogre","Slann Loner","Troll°°°",null,"Treeman°"]
[null,"Kick (Calcio)","Leap (Balzo)","Pass (Passare)","Multiple Block (Blocco multiplo)","Horns (Corna)","Bone-head (Tonto)",null,1,{"$f":"VLOOKUP('LABB 2019'!D8,$Q:$Z,2,FALSE)","v":{"$error":"#N/A"}},{"$f":"VLOOKUP('LABB 2019'!D8,$Q:$Z,3,FALSE)","v":{"$error":"#N/A"}},{"$f":"VLOOKUP('LABB 2019'!D8,$Q:$Z,4,FALSE)","v":{"$error":"#N/A"}},{"$f":"VLOOKUP('LABB 2019'!D8,$Q:$Z,5,FALSE)","v":{"$error":"#N/A"}},{"$f":"(IF('LABB 2019'!D8<>\"\",VLOOKUP('LABB 2019'!D8,Q:Z,7,FALSE),\"0\")+('LABB 2019'!Q8*1000))","v":0},null,7,"Bretonnia Blitzer",7,3,3,8,"Block, Catch, Dauntless",110000,"GAP","S",4,null,7,"Daemon of Khorne",70000,"Daemon of Khorne",1,null,"","",{"$f":"HLOOKUP('LABB 2019'!O$19,AL$2:BK$11,8,FALSE)","v":0},null,null,null,null,null,"Troll°°","Dark Elf Loner",null,"Blocker Loner",null,"Pogoer",null,null,"Human Loner",null,null,"Zombie Loner°","Yhetee",null,null,"Troll°","Skeleton Loner","Skaven Loner",null,"Goblin Loner°",null,"Wood Elf Loner"]
[null,"Kick-Off Return (Ritorno K-O)","Side Step (Schivare)","Safe Throw (Lancio sicuro)","Piling On (Schiacciare)","Prehensile Tail (Coda prensile)","Chainsaw (Motosega)",null,1,{"$f":"VLOOKUP('LABB 2019'!D9,$Q:$Z,2,FALSE)","v":{"$error":"#N/A"}},{"$f":"VLOOKUP('LABB 2019'!D9,$Q:$Z,3,FALSE)","v":{"$error":"#N/A"}},{"$f":"VLOOKUP('LABB 2019'!D9,$Q:$Z,4,FALSE)","v":{"$error":"#N/A"}},{"$f":"VLOOKUP('LABB 2019'!D9,$Q:$Z,5,FALSE)","v":{"$error":"#N/A"}},{"$f":"(IF('LABB 2019'!D9<>\"\",VLOOKUP('LABB 2019'!D9,Q:Z,7,FALSE),\"0\")+('LABB 2019'!Q9*1000))","v":0},null,8,"Yeoman",6,3,3,8,"Wrestle",70000,"GS","AP",4,null,8,"Dwarf",50000,"Dwarf",1,null,"","",{"$f":"HLOOKUP('LABB 2019'!O$19,AL$2:BK$11,9,FALSE)","v":0},null,null,null,null,null,"Ogre°°",null,null,null,null,"Ooligan",null,null,null,null,null,null,"Norse Loner",null,null,"Orc Loner","Zombie Loner"]
[null,"Pass Block (Interferenza)","Sneaky Git (Fallo furtivo)",null,"Stand Firm (Massiccio)","Tentacles (Tentacoli)","Decay (Marcio)",null,1,{"$f":"VLOOKUP('LABB 2019'!D10,$Q:$Z,2,FALSE)","v":{"$error":"#N/A"}},{"$f":"VLOOKUP('LABB 2019'!D10,$Q:$Z,3,FALSE)","v":{"$error":"#N/A"}},{"$f":"VLOOKUP('LABB 2019'!D10,$Q:$Z,4,FALSE)","v":{"$error":"#N/A"}},{"$f":"VLOOKUP('LABB 2019'!D10,$Q:$Z,5,FALSE)","v":{"$error":"#N/A"}},{"$f":"(IF('LABB 2019'!D10<>\"\",VLOOKUP('LABB 2019'!D10,Q:Z,7,FALSE),\"0\")+('LABB 2019'!Q10*1000))","v":0},null,9,"Beastman Runner",6,3,3,8,"Horns",60000,"GSM","AP",16,"Chaos Chosen",9,"Elven Union",50000,"Elven Union",1,null,10,{"$f":"IF(AJ10=0,\"\",AJ10)","v":""},{"$f":"HLOOKUP('LABB 2019'!O$19,AL$2:BK$11,10,FALSE)","v":0},null,null,null,null,null,"Minotaur°°",null,null,null,null,"Troll"]
[null,"Pro (Pro)","Sprint (Scattare)",null,"Strong Arm (Braccio forte)","Two Heads (Due teste)","Fan Favourite (Idolo dei tifosi)",null,1,{"$f":"VLOOKUP('LABB 2019'!D11,$Q:$Z,2,FALSE)","v":{"$error":"#N/A"}},{"$f":"VLOOKUP('LABB 2019'!D11,$Q:$Z,3,FALSE)","v":{"$error":"#N/A"}},{"$f":"VLOOKUP('LABB 2019'!D11,$Q:$Z,4,FALSE)","v":{"$error":"#N/A"}},{"$f":"VLOOKUP('LABB 2019'!D11,$Q:$Z,5,FALSE)","v":{"$error":"#N/A"}},{"$f":"(IF('LABB 2019'!D11<>\"\",VLOOKUP('LABB 2019'!D11,Q:Z,7,FALSE),\"0\")+('LABB 2019'!Q11*1000))","v":0},null,10,"Chosen Blocker",5,4,3,9,null,100000,"GSM","AP",4,null,10,"Goblin",60000,"Goblin",1,null,null,null,null,null,null,null,null,null,"Renegade Human Loner",null,null,null,null,"Goblin Loner"]
[null,"Shadowing (Marcare)","Sure Feet (Piè fermo)",null,"Thick Skull (Pelle dura)","Very Long Legs (Gambe lunghe)","Hypnotic Gaze (Sguardo ipnotico)",null,1,{"$f":"VLOOKUP('LABB 2019'!D12,$Q:$Z,2,FALSE)","v":{"$error":"#N/A"}},{"$f":"VLOOKUP('LABB 2019'!D12,$Q:$Z,3,FALSE)","v":{"$error":"#N/A"}},{"$f":"VLOOKUP('LABB 2019'!D12,$Q:$Z,4,FALSE)","v":{"$error":"#N/A"}},{"$f":"VLOOKUP('LABB 2019'!D12,$Q:$Z,5,FALSE)","v":{"$error":"#N/A"}},{"$f":"(IF('LABB 2019'!D12<>\"\",VLOOKUP('LABB 2019'!D12,Q:Z,7,FALSE),\"0\")+('LABB 2019'!Q12*1000))","v":0},null,11,"Minotaur",5,5,2,8,"Loner, Frenzy, Horns, Mighty Blow, Thick Skull, Wild Animal",150000,"SM","GAP",1,null,11,"Halfling",60000,"Halfling",1]
[null,"Strip Ball (Rubar palla)",null,null,null,null,"Loner (Solitario)",null,1,{"$f":"VLOOKUP('LABB 2019'!D13,$Q:$Z,2,FALSE)","v":{"$error":"#N/A"}},{"$f":"VLOOKUP('LABB 2019'!D13,$Q:$Z,3,FALSE)","v":{"$error":"#N/A"}},{"$f":"VLOOKUP('LABB 2019'!D13,$Q:$Z,4,FALSE)","v":{"$error":"#N/A"}},{"$f":"VLOOKUP('LABB 2019'!D13,$Q:$Z,5,FALSE)","v":{"$error":"#N/A"}},{"$f":"(IF('LABB 2019'!D13<>\"\",VLOOKUP('LABB 2019'!D13,Q:Z,7,FALSE),\"0\")+('LABB 2019'!Q13*1000))","v":0},null,12,"Hobgoblin Runner",6,3,3,7,null,40000,"G","ASP",16,"Chaos Dwarf",12,"High Elf",50000,"High Elf",1]
[null,"Sure Hands (Presa sicura)",null,null,null,null,"No Hands (Senza mani)",null,1,{"$f":"VLOOKUP('LABB 2019'!D14,$Q:$Z,2,FALSE)","v":{"$error":"#N/A"}},{"$f":"VLOOKUP('LABB 2019'!D14,$Q:$Z,3,FALSE)","v":{"$error":"#N/A"}},{"$f":"VLOOKUP('LABB 2019'!D14,$Q:$Z,4,FALSE)","v":{"$error":"#N/A"}},{"$f":"VLOOKUP('LABB 2019'!D14,$Q:$Z,5,FALSE)","v":{"$error":"#N/A"}},{"$f":"(IF('LABB 2019'!D14<>\"\",VLOOKUP('LABB 2019'!D14,Q:Z,7,FALSE),\"0\")+('LABB 2019'!Q14*1000))","v":0},null,13,"Chaos Dwarf Blocker",4,3,2,9,"Block, Tackle, Thick Skull",70000,"GS","APM",6,null,13,"Human",50000,"Human",1]
[null,"Tackle (Placcaggio)",null,null,null,null,"Nurgle's Rot (Cancrena di Nurgle)",null,1,{"$f":"VLOOKUP('LABB 2019'!D15,$Q:$Z,2,FALSE)","v":{"$error":"#N/A"}},{"$f":"VLOOKUP('LABB 2019'!D15,$Q:$Z,3,FALSE)","v":{"$error":"#N/A"}},{"$f":"VLOOKUP('LABB 2019'!D15,$Q:$Z,4,FALSE)","v":{"$error":"#N/A"}},{"$f":"VLOOKUP('LABB 2019'!D15,$Q:$Z,5,FALSE)","v":{"$error":"#N/A"}},{"$f":"(IF('LABB 2019'!D15<>\"\",VLOOKUP('LABB 2019'!D15,Q:Z,7,FALSE),\"0\")+('LABB 2019'!Q15*1000))","v":0},null,14,"Bull Centaur Blitzer",6,4,2,9,"Sprint, Sure Feet, Thick Skull",130000,"GS","AP",2,null,14,"Khemri Tomb Kings",70000,"Khemri Tomb Kings",0]
[null,"Wrestle (Lottare)",null,null,null,null,"Really Stupid (Stupido)",null,1,{"$f":"VLOOKUP('LABB 2019'!D16,$Q:$Z,2,FALSE)","v":{"$error":"#N/A"}},{"$f":"VLOOKUP('LABB 2019'!D16,$Q:$Z,3,FALSE)","v":{"$error":"#N/A"}},{"$f":"VLOOKUP('LABB 2019'!D16,$Q:$Z,4,FALSE)","v":{"$error":"#N/A"}},{"$f":"VLOOKUP('LABB 2019'!D16,$Q:$Z,5,FALSE)","v":{"$error":"#N/A"}},{"$f":"(IF('LABB 2019'!D16<>\"\",VLOOKUP('LABB 2019'!D16,Q:Z,7,FALSE),\"0\")+('LABB 2019'!Q16*1000))","v":0},null,15,"Enslaved Minotaur",5,5,2,8,"Loner, Frenzy, Horns, Mighty Blow, Thick Skull, Wild Animal",150000,"S","GAPM",1,null,15,"Lizardman",60000,"Lizardman",1]
[null,null,null,null,null,null,"Regeneration (Rigenerazione)",null,1,{"$f":"VLOOKUP('LABB 2019'!D17,$Q:$Z,2,FALSE)","v":{"$error":"#N/A"}},{"$f":"VLOOKUP('LABB 2019'!D17,$Q:$Z,3,FALSE)","v":{"$error":"#N/A"}},{"$f":"VLOOKUP('LABB 2019'!D17,$Q:$Z,4,FALSE)","v":{"$error":"#N/A"}},{"$f":"VLOOKUP('LABB 2019'!D17,$Q:$Z,5,FALSE)","v":{"$error":"#N/A"}},{"$f":"(IF('LABB 2019'!D17<>\"\",VLOOKUP('LABB 2019'!D17,Q:Z,7,FALSE),\"0\")+('LABB 2019'!Q17*1000))","v":0},null,16,"Renegade Human Lineman",6,3,3,8,null,50000,"GSPM","A",12,"Chaos Renegades",16,"Necromantic Horror",70000,"Necromantic Horror",0]
[null,null,null,null,null,null,"Right Stuff (Lanciami)",null,1,{"$f":"VLOOKUP('LABB 2019'!D18,$Q:$Z,2,FALSE)","v":{"$error":"#N/A"}},{"$f":"VLOOKUP('LABB 2019'!D18,$Q:$Z,3,FALSE)","v":{"$error":"#N/A"}},{"$f":"VLOOKUP('LABB 2019'!D18,$Q:$Z,4,FALSE)","v":{"$error":"#N/A"}},{"$f":"VLOOKUP('LABB 2019'!D18,$Q:$Z,5,FALSE)","v":{"$error":"#N/A"}},{"$f":"(IF('LABB 2019'!D18<>\"\",VLOOKUP('LABB 2019'!D18,Q:Z,7,FALSE),\"0\")+('LABB 2019'!Q18*1000))","v":0},null,17,"Renegade Goblin",6,2,3,7,"Animosity, Dodge, Right Stuff, Stunty",40000,"AM","GSP",1,null,17,"Norse",60000,"Norse",1]
[null,null,null,null,null,null,"Secret Weapon (Arma segreta)",null,null,null,null,null,null,null,null,18,"Renegade Orc Lineman",5,3,3,9,"Animosity",50000,"GM","ASP",1,null,18,"Nurgle",70000,"Nurgle",0]
[null,null,null,null,null,null,"Stab (Pugnale)",null,null,null,null,null,null,null,null,19,"Renegade Skaven Lineman",7,3,3,7,"Animosity",50000,"GM","ASP",1,null,19,"Ogre",70000,"Ogre",1]
[null,null,null,null,null,null,"Stakes (Paletto)",null,null,null,null,null,null,null,null,20,"Renegade Dark Elf  Lineman",6,3,4,8,"Animosity",70000,"GAM","SP",1,null,20,"Orc",60000,"Orc",1,null,"",""]
[null,null,null,null,null,null,"Stunty (Piccoletto)",null,null,24,null,null,null,null,null,21,"Troll°°",4,5,1,9,"Loner, Always Hungry, Mighty Blow, Really Stupid, Regeneration, Throw Team-Mate",110000,"S","GAPM",1,null,21,"Shambling Undead",70000,"Shambling Undead",0,null,"",""]
[null,null,null,null,null,null,"Take Root (Mette radici)",null,null,null,null,null,null,null,null,22,"Ogre°°",5,5,2,9,"Loner, Bone-head, Mighty Blow, Thick Skull, Throw Team-Mate",140000,"S","GAPM",1,null,22,"Skaven",60000,"Skaven",1,null,"",""]
[null,null,null,null,null,null,"Throw Team-Mate (Lanciare compagni)",null,null,null,null,null,null,null,null,23,"Minotaur°°",5,5,2,8,"Loner, Frenzy, Horns, Mighty Blow, Thick Skull, Wild Animal",150000,"S","GAPM",1,null,23,"Slann",50000,"Slann",1]
[null,null,null,null,null,null,"Titchy (Minuscolo)",null,null,null,null,null,null,null,null,24,"Dark Elf Lineman",6,3,4,8,null,70000,"GA","SP",16,"Dark Elf",24,"Underworld",70000,"Underworld",1]
[null,null,null,null,null,null,"Wild Animal (Animale selvaggio)",null,null,null,null,null,null,null,null,25,"Dark Elf Runner",7,3,4,7,"Dump-Off",80000,"GAP","S",2,null,25,"Vampire",70000,"Vampire",1]
[null,null,null,null,null,null,null,null,null,null,null,null,null,null,null,26,"Assassin",6,3,4,7,"Shadowing, Stab",90000,"GA","SP",2,null,26,"Wood Elf",50000,"Wood Elf",1]
[null,null,null,null,null,null,null,null,null,null,null,null,null,null,null,27,"Dark Elf Blitzer",7,3,4,8,"Block",100000,"GA","SP",4,null,27]
[null,null,null,null,null,null,null,null,null,null,null,null,null,null,null,28,"Witch Elf",7,3,4,7,"Frenzy, Dodge, Jump Up",110000,"GA","SP",2]
[null,null,null,null,null,null,null,null,null,null,null,null,null,null,null,29,"Pit Fighter",6,3,3,8,"Frenzy",60000,"GP","AS",16,"Daemons of Khorne"]
[null,null,null,null,null,null,null,null,null,null,null,null,null,null,null,30,"Bloodletter Daemon",6,3,3,7,"Horns, Juggernaut, Regeneration",80000,"GAS","P",4]
[null,null,null,null,null,null,null,null,null,null,null,null,null,null,null,31,"Khorne Herald",6,3,3,8,"Frenzy, Horns, Juggernaut",90000,"GS","AP",2]
[null,null,null,null,null,null,null,null,null,null,null,null,null,null,null,32,"Bloodthirster",6,5,1,9,"Loner, Wild Animal, Claw, Frenzy, Horns, Juggernaut, Regeneration",180000,"S","GAP",1]
[null,null,null,null,null,null,null,null,null,null,null,null,null,null,null,33,"Dwarf Blocker",4,3,2,9,"Block, Tackle, Thick Skull",70000,"GS","AP",16,"Dwarf"]
[null,null,null,null,null,null,null,null,null,null,null,null,null,null,null,34,"Dwarf Runner",6,3,3,8,"Sure Hands, Thick Skull",80000,"GP","AS",2]
[null,null,null,null,null,null,null,null,null,null,null,null,null,null,null,35,"Dwarf Blitzer",5,3,3,9,"Block, Thick Skull",80000,"GS","AP",2]
[null,null,null,null,null,null,null,null,null,null,null,null,null,null,null,36,"Troll Slayer",5,3,2,8,"Block, Dauntless, Frenzy, Thick Skull",90000,"GS","AP",2]
[null,null,null,null,null,null,null,null,null,null,null,null,null,null,null,37,"Deathroller",4,7,1,10,"Loner, Break Tackle, Dirty Player, Juggernaut, Mighty Blow, No Hands, Secret Weapon, Stand Firm",160000,"S","GAP",1,null,null,null,null,null,null,null,{"$f":"IF(AI38=\"\",\"\",#REF!+1)","v":""}]
[null,null,null,null,null,null,null,null,null,null,null,null,null,null,null,38,"Elven Union Lineman",6,3,4,7,null,60000,"GA","SP",16,"Elven Union",null,null,null,null,null,null,{"$f":"IF(AI39=\"\",\"\",AH38+1)","v":""}]
[null,null,null,null,null,null,null,null,null,null,null,null,null,null,null,39,"Elven Union Thrower",6,3,4,7,"Pass",70000,"GAP","S",2,null,null,null,null,null,null,null,""]
[null,null,null,null,null,null,null,null,null,null,null,null,null,null,null,40,"Elven Union Catcher",8,3,4,7,"Catch, Nerves of Steel",100000,"GA","SP",4,null,null,null,null,null,null,null,""]
[null,null,null,null,null,null,null,null,null,null,null,null,null,null,null,41,"Elven Union Blitzer",7,3,4,8,"Block, Side Step",110000,"GA","SP",2,null,null,null,null,null,null,null,""]
[null,null,null,null,null,null,null,null,null,null,null,null,null,null,null,42,"Goblin",6,2,3,7,"Dodge, Right Stuff, Stunty",40000,"A","GSP",16,"Goblin",null,null,null,null,null,null,"",{"$f":"IF(AJ43=0,\"\",AJ43)","v":""}]
[null,null,null,null,null,null,null,null,null,null,null,null,null,null,null,43,"Bomma",6,2,3,7,"Bombardier, Dodge, Secret Weapon, Stunty",40000,"A","GSP",1,null,null,null,null,null,null,null,"",""]
[null,null,null,null,null,null,null,null,null,null,null,null,null,null,null,44,"Looney",6,2,3,7,"Chainsaw, Secret Weapon, Stunty",40000,"A","GSP",1,null,null,null,null,null,null,null,"",""]
[null,null,null,null,null,null,null,null,null,null,null,null,null,null,null,45,"Fanatic",3,7,3,7,"Ball & Chain, No Hands, Secret Weapon, Stunty",70000,"S","GAP",1,null,null,null,null,null,null,null,"",""]
[null,null,null,null,null,null,null,null,null,null,null,null,null,null,null,46,"Doom Diver",6,2,3,7,"Right Stuff, Stunty, Swoop",60000,"A","GSP",1,null,null,null,null,null,null,null,"",""]
[null,null,null,null,null,null,null,null,null,null,null,null,null,null,null,47,"Pogoer",7,2,3,7,"Dodge, Leap, Stunty, Very Long Legs",70000,"A","GSP",1,null,null,null,null,null,null,null,"",""]
[null,null,null,null,null,null,null,null,null,null,null,null,null,null,null,48,"Ooligan",6,2,3,7,"Disturbing Presence, Dodge, Fan Favourite, Right Stuff, Stunty",70000,"A","GSP",1]
[null,null,null,null,null,null,null,null,null,null,null,null,null,null,null,49,"Troll",4,5,1,9,"Loner, Always Hungry, Mighty Blow, Really Stupid, Regeneration, Throw Team-Mate",110000,"S","GAP",2]
[null,null,null,null,null,null,null,null,null,null,null,null,null,null,null,50,"Halfling Hopeful",5,2,3,6,"Dodge, Right Stuff, Stunty",30000,"A","GSP",16,"Halfling"]
[null,null,null,null,null,null,null,null,null,null,null,null,null,null,null,51,"Treeman",2,6,1,10,"Mighty Blow, Stand Firm, Strong Arm, Take Root, Thick Skull, Throw Team-Mate, Timmm-ber!",120000,"S","GAP",2]
[null,null,null,null,null,null,null,null,null,null,null,null,null,null,null,52,"High Elf Lineman",6,3,4,8,null,70000,"GA","SP",16,"High Elf"]
[null,null,null,null,null,null,null,null,null,null,null,null,null,null,null,53,"High Elf Thrower",6,3,4,8,"Pass, Safe Throw",90000,"GAP","S",2]
[null,null,null,null,null,null,null,null,null,null,null,null,null,null,null,54,"High Elf Catcher",8,3,4,7,"Catch",90000,"GA","SP",4]
[null,null,null,null,null,null,null,null,null,null,null,null,null,null,null,55,"High Elf Blitzer",7,3,4,8,"Block",100000,"GA","SP",2]
[null,null,null,null,null,null,null,null,null,null,null,null,null,null,null,56,"Human Lineman",6,3,3,8,null,50000,"G","ASP",16,"Human"]
[null,null,null,null,null,null,null,null,null,null,null,null,null,null,null,57,"Human Catcher",8,2,3,7,"Catch, Dodge",60000,"GA","SP",4]
[null,null,null,null,null,null,null,null,null,null,null,null,null,null,null,58,"Human Thrower",6,3,3,8,"Sure Hands, Pass",70000,"GP","AS",2]
[null,null,null,null,null,null,null,null,null,null,null,null,null,null,null,59,"Human Blitzer",7,3,3,8,"Block",90000,"GS","AP",4]
[null,null,null,null,null,null,null,null,null,null,null,null,null,null,null,60,"Ogre",5,5,2,9,"Loner, Bone-head, Mighty Blow, Thick Skull, Throw Team-Mate",140000,"S","GAP",1]
[null,null,null,null,null,null,null,null,null,null,null,null,null,null,null,61,"Skeleton Lineman",5,3,2,7,"Regeneration, Thick Skull",40000,"G","ASP",16,"Khemri Tomb Kings"]
[null,null,null,null,null,null,null,null,null,null,null,null,null,null,null,62,"Anointed Thrower",6,3,2,7,"Pass, Regeneration, Sure Hands",70000,"GP","AS",2]
[null,null,null,null,null,null,null,null,null,null,null,null,null,null,null,63,"Anointed Blitzer",6,3,2,8,"Block, Regeneration",90000,"GS","AP",2]
[null,null,null,null,null,null,null,null,null,null,null,null,null,null,null,64,"Tomb Guardian",4,5,1,9,"Decay, Regeneration",100000,"S","GAP",4]
[null,null,null,null,null,null,null,null,null,null,null,null,null,null,null,65,"Skink Runner",8,2,3,7,"Dodge, Stunty",60000,"A","GSP",16,"Lizardman"]
[null,null,null,null,null,null,null,null,null,null,null,null,null,null,null,66,"Saurus Blocker",6,4,1,9,null,80000,"GS","AP",6]
[null,null,null,null,null,null,null,null,null,null,null,null,null,null,null,67,"Kroxigor",6,5,1,9,"Loner, Bone-head, Mighty Blow, Prehensile Tail, Thick Skull",140000,"S","GAP",1]
[null,null,null,null,null,null,null,null,null,null,null,null,null,null,null,68,"Zombie",4,3,2,8,"Regeneration",40000,"G","ASP",16,"Necromantic Horror"]
[null,null,null,null,null,null,null,null,null,null,null,null,null,null,null,69,"Ghoul Runner°",7,3,3,7,"Dodge",70000,"GA","SP",2]
[null,null,null,null,null,null,null,null,null,null,null,null,null,null,null,70,"Wight Blitzer",6,3,3,8,"Block, Regeneration",90000,"GS","AP",2]
[null,null,null,null,null,null,null,null,null,null,null,null,null,null,null,71,"Flesh Golem",4,4,2,9,"Regeneration, Stand Firm, Thick Skull",110000,"GS","AP",2]
[null,null,null,null,null,null,null,null,null,null,null,null,null,null,null,72,"Werewolf",8,3,3,8,"Claws, Frenzy, Regeneration",120000,"GA","SP",2]
[null,null,null,null,null,null,null,null,null,null,null,null,null,null,null,73,"Norse Lineman",6,3,3,7,"Block",50000,"G","ASP",16,"Norse"]
[null,null,null,null,null,null,null,null,null,null,null,null,null,null,null,74,"Norse Thrower",6,3,3,7,"Block, Pass",70000,"GP","AS",2]
[null,null,null,null,null,null,null,null,null,null,null,null,null,null,null,75,"Norse Catcher",7,3,3,7,"Block, Dauntless",90000,"GA","SP",2]
[null,null,null,null,null,null,null,null,null,null,null,null,null,null,null,76,"Norse Berserker",6,3,3,7,"Block, Frenzy, Jump Up",90000,"GS","AP",2]
[null,null,null,null,null,null,null,null,null,null,null,null,null,null,null,77,"Ulfwerenar",6,4,2,8,"Frenzy",110000,"GS","AP",2]
[null,null,null,null,null,null,null,null,null,null,null,null,null,null,null,78,"Yhetee",5,5,1,8,"Loner, Claws, Disturbing Presence, Frenzy, Wild Animal",140000,"S","GAP",1]
[null,null,null,null,null,null,null,null,null,null,null,null,null,null,null,79,"Rotter",5,3,3,8,"Decay, Nurgle's Rot",40000,"GM","ASP",16,"Nurgle"]
[null,null,null,null,null,null,null,null,null,null,null,null,null,null,null,80,"Pestigor",6,3,3,8,"Horns, Nurgle's Rot, Regeneration",80000,"GSM","AP",4]
[null,null,null,null,null,null,null,null,null,null,null,null,null,null,null,81,"Bloater",4,4,2,9,"Disturbing Presence, Foul Appearance, Nurgle's Rot, Regeneration",110000,"GSM","AP",4]
[null,null,null,null,null,null,null,null,null,null,null,null,null,null,null,82,"Rotspawn",4,5,1,9,"Loner, Disturbing Presence, Foul Appearance, Mighty Blow, Nurgle's Rot, Really Stupid, Regeneration, Tentacles",140000,"S","GAPM",1]
[null,null,null,null,null,null,null,null,null,null,null,null,null,null,null,83,"Runt",5,1,3,5,"Dodge, Right Stuff, Side Step, Stunty, Titchy",20000,"A","GSP",16,"Ogre"]
[null,null,null,null,null,null,null,null,null,null,null,null,null,null,null,84,"Ogre°",5,5,2,9,"Bone-head, Mighty Blow, Thick Skull, Throw Team-Mate",140000,"S","GAP",6]
[null,null,null,null,null,null,null,null,null,null,null,null,null,null,null,85,"Orc Lineman",5,3,3,9,null,50000,"G","ASP",16,"Orc"]
[null,null,null,null,null,null,null,null,null,null,null,null,null,null,null,86,"Goblin°",6,2,3,7,"Right Stuff, Dodge, Stunty",40000,"A","GSP",4]
[null,null,null,null,null,null,null,null,null,null,null,null,null,null,null,87,"Orc Thrower",5,3,3,8,"Sure Hands, Pass",70000,"GP","AS",2]
[null,null,null,null,null,null,null,null,null,null,null,null,null,null,null,88,"Black Orc Blocker",4,4,2,9,null,80000,"GS","AP",4]
[null,null,null,null,null,null,null,null,null,null,null,null,null,null,null,89,"Orc Blitzer",6,3,3,9,"Block",80000,"GS","AP",4]
[null,null,null,null,null,null,null,null,null,null,null,null,null,null,null,90,"Troll°",4,5,1,9,"Loner, Always Hungry, Mighty Blow, Really Stupid, Regeneration, Throw Team-Mate",110000,"S","GAP",1]
[null,null,null,null,null,null,null,null,null,null,null,null,null,null,null,91,"Skaven Lineman",7,3,3,7,null,50000,"G","ASPM",16,"Skaven"]
[null,null,null,null,null,null,null,null,null,null,null,null,null,null,null,92,"Skaven Thrower",7,3,3,7,"Pass, Sure Hands",70000,"GP","ASM",2]
[null,null,null,null,null,null,null,null,null,null,null,null,null,null,null,93,"Gutter Runner",9,2,4,7,"Dodge, Weeping Dagger",80000,"GA","SPM",4]
[null,null,null,null,null,null,null,null,null,null,null,null,null,null,null,94,"Skaven Blitzer",7,3,3,8,"Block",90000,"GS","APM",2]
[null,null,null,null,null,null,null,null,null,null,null,null,null,null,null,95,"Rat Ogre",6,5,2,8,"Loner, Frenzy, Mighty Blow, Prehensile Tail, Wild Animal",150000,"S","GAPM",1]
[null,null,null,null,null,null,null,null,null,null,null,null,null,null,null,96,"Slann Lineman",6,3,3,8,"Leap, Very Long Legs",60000,"G","ASP",16,"Slann"]
[null,null,null,null,null,null,null,null,null,null,null,null,null,null,null,97,"Slann Catcher",7,2,4,7,"Diving Catch, Leap, Very Long Legs",80000,"GA","SP",4]
[null,null,null,null,null,null,null,null,null,null,null,null,null,null,null,98,"Slann Blitzer",7,3,3,8,"Diving Tackle, Jump Up, Leap, Very Long Legs",110000,"GAS","P",4]
[null,null,null,null,null,null,null,null,null,null,null,null,null,null,null,99,"Kroxigor°",6,5,1,9,"Loner, Bone-head, Mighty Blow, Prehensile Tail, Thick Skull",140000,"S","GAP",1]
[null,null,null,null,null,null,null,null,null,null,null,null,null,null,null,100,"Skeleton Lineman",5,3,2,7,"Regeneration, Thick Skull",40000,"G","ASP",16,"Shambling Undead"]
[null,null,null,null,null,null,null,null,null,null,null,null,null,null,null,101,"Zombie",4,3,2,8,"Regeneration",40000,"G","ASP",16]
[null,null,null,null,null,null,null,null,null,null,null,null,null,null,null,102,"Ghoul Runner",7,3,3,7,"Dodge",70000,"GA","SP",4]
[null,null,null,null,null,null,null,null,null,null,null,null,null,null,null,103,"Wight Blitzer",6,3,3,8,"Block, Regeneration",90000,"GS","AP",2]
[null,null,null,null,null,null,null,null,null,null,null,null,null,null,null,104,"Mummy",3,5,1,9,"Mighty Blow, Regeneration",120000,"S","GAP",2]
[null,null,null,null,null,null,null,null,null,null,null,null,null,null,null,105,"Goblin°°",6,2,3,7,"Right Stuff, Dodge, Stunty",40000,"AM","GSP",12,"Underworld"]
[null,null,null,null,null,null,null,null,null,null,null,null,null,null,null,106,"Skaven Lineman°",7,3,3,7,"Animosity",50000,"GM","ASP",2]
[null,null,null,null,null,null,null,null,null,null,null,null,null,null,null,107,"Skaven Thrower°",7,3,3,7,"Animosity, Pass, Sure Hands",70000,"GPM","AS",2]
[null,null,null,null,null,null,null,null,null,null,null,null,null,null,null,108,"Skaven Blitzer°",7,3,3,8,"Animosity, Block",90000,"GSM","AP",2]
[null,null,null,null,null,null,null,null,null,null,null,null,null,null,null,109,"Troll°°°",4,5,1,9,"Loner, Always Hungry, Mighty Blow, Really Stupid, Regeneration, Throw Team-Mate",110000,"SM","GAP",1]
[null,null,null,null,null,null,null,null,null,null,null,null,null,null,null,110,"Thrall Lineman",6,3,3,7,null,40000,"G","ASP",16,"Vampire"]
[null,null,null,null,null,null,null,null,null,null,null,null,null,null,null,111,"Vampire Blitzer",6,4,4,8,"Blood Lust, Hypnotic Gaze, Regeneration",110000,"GAS","P",6]
[null,null,null,null,null,null,null,null,null,null,null,null,null,null,null,112,"Wood Elf Lineman",7,3,4,7,null,70000,"GA","SP",16,"Wood Elf"]
[null,null,null,null,null,null,null,null,null,null,null,null,null,null,null,113,"Wood Elf Catcher",8,2,4,7,"Catch, Dodge, Sprint",90000,"GA","SP",4]
[null,null,null,null,null,null,null,null,null,null,null,null,null,null,null,114,"Wood Elf Thrower",7,3,4,7,"Pass",90000,"GAP","S",2]
[null,null,null,null,null,null,null,null,null,null,null,null,null,null,null,115,"Wardancer",8,3,4,7,"Block, Dodge, Leap",120000,"GA","SP",2]
[null,null,null,null,null,null,null,null,null,null,null,null,null,null,null,116,"Treeman°",2,6,1,10,"Mighty Blow, Stand Firm, Strong Arm, Take Root, Thick Skull, Throw Team-Mate",120000,"S","GAP",1]
[null,null,null,null,null,null,null,null,null,null,null,null,null,null,null,117,"*Barik Farblast",6,3,3,8,"Loner, Hail Mary Pass, Pass, Secret Weapon, Strong Arm, Sure Hands, Thick Skull",60000,null,null,1,"Dwarf"]
[null,null,null,null,null,null,null,null,null,null,null,null,null,null,null,118,"*Bertha Bigfist",6,5,2,9,"Loner, Bone-head, Break Tackle, Dodge, Mighty Blow, Thick Skull, Throw Team-Mate",290000,null,null,1,"Amazon, Halfling, Ogre"]
[null,null,null,null,null,null,null,null,null,null,null,null,null,null,null,119,"*#Bo Gallanté",8,3,4,7,"Loner, Dodge, Side Step, Sprint, Sure Feet",160000,null,null,1,"High Elf"]
[null,null,null,null,null,null,null,null,null,null,null,null,null,null,null,120,"*Brick Far’th **",5,5,2,9,"Loner, Bone-head, Mighty Blow, Nerves of Steel, Strong Arm, Thick Skull, Throw Team-Mate",145000,null,null,1,"Chaos Chosen, Nurgle, Ogre **"]
[null,null,null,null,null,null,null,null,null,null,null,null,null,null,null,121,"*Grotty **",6,2,4,7,"Loner, Dodge, Right Stuff, Stunty",145000,null,null,1,"Chaos Chosen, Nurgle, Ogre **"]
[null,null,null,null,null,null,null,null,null,null,null,null,null,null,null,122,"*Bomber Dribblesnot",6,2,3,7,"Loner, Accurate, Bombardier, Dodge, Right Stuff, Secret Weapon, Stunty",60000,null,null,1,"Goblin, Ogre, Orc"]
[null,null,null,null,null,null,null,null,null,null,null,null,null,null,null,123,"*Boomer Eziasson",4,3,2,9,"Loner, Accurate, Block, Bombardier, Secret Weapon, Thick Skull",60000,null,null,1,"Dwarf, Norse"]
[null,null,null,null,null,null,null,null,null,null,null,null,null,null,null,124,"*Count Luthor Von Drakenborg",6,5,4,9,"Loner, Block, Hypnotic Gaze, Regeneration, Side Step",390000,null,null,1,"Necromantic Horror, Shambling Undead, Vampire"]
[null,null,null,null,null,null,null,null,null,null,null,null,null,null,null,125,"*Crazy Igor",6,3,3,8,"Loner, Dauntless, Regeneration, Thick Skull",120000,null,null,1,"Vampire, Chaos Renegades"]
[null,null,null,null,null,null,null,null,null,null,null,null,null,null,null,126,"*Deeproot Strongbranch",2,7,1,10,"Loner, Block, Mighty Blow, Stand Firm, Strong Arm, Thick Skull, Throw Team-Mate",300000,null,null,1,"Halfling"]
[null,null,null,null,null,null,null,null,null,null,null,null,null,null,null,127,"*Dolfar Longstride",7,3,4,7,"Loner, Diving Catch, Hail Mary Pass, Kick, Kick-off Return, Pass Block",150000,null,null,1,"Elven Union, High Elf, Wood Elf"]
[null,null,null,null,null,null,null,null,null,null,null,null,null,null,null,128,"*#Eldril Sidewinder",8,3,4,7,"Loner, Catch, Dodge, Hypnotic Gaze, Nerves of Steel, Pass Block",200000,null,null,1,"Dark Elf, Elven Union, High Elf, Wood Elf"]
[null,null,null,null,null,null,null,null,null,null,null,null,null,null,null,129,"*Fezglitch",4,7,3,7,"Loner, Ball & Chain, Disturbing Presence, Foul Appearance, No Hands, Secret Weapon",100000,null,null,1,"Skaven, Chaos Renegades, Underworld"]
[null,null,null,null,null,null,null,null,null,null,null,null,null,null,null,130,"*Flint Churnblade",5,3,2,8,"Loner, Block, Chainsaw, Secret Weapon, Thick Skull",130000,null,null,1,"Dwarf"]
[null,null,null,null,null,null,null,null,null,null,null,null,null,null,null,131,"*Fungus the Loon",4,7,3,7,"Loner, Ball & Chain, Mighty Blow, No Hands, Secret Weapon, Stunty",80000,null,null,1,"Goblin"]
[null,null,null,null,null,null,null,null,null,null,null,null,null,null,null,132,"*#Glart Smashrip",5,4,2,8,"Loner, Block, Claws, Juggernaut, Grab, Stand Firm",190000,null,null,1,"Skaven, Underworld"]
[null,null,null,null,null,null,null,null,null,null,null,null,null,null,null,133,"*Glart Smashrip Jr.",7,4,3,8,"Loner, Block, Claws, Juggernaut",210000,null,null,1,"Skaven, Underworld"]
[null,null,null,null,null,null,null,null,null,null,null,null,null,null,null,134,"*Grashnak Blackhoof",6,6,2,8,"Loner, Frenzy, Horns, Mighty Blow, Thick Skull",310000,null,null,1,"Chaos Chosen, Chaos Dwarf, Nurgle"]
[null,null,null,null,null,null,null,null,null,null,null,null,null,null,null,135,"*#Griff Oberwald",7,4,4,8,"Loner, Block, Dodge, Fend, Sprint, Sure Feet",320000,null,null,1,"Human"]
[null,null,null,null,null,null,null,null,null,null,null,null,null,null,null,136,"*#Grim Ironjaw",5,4,3,8,"Loner, Block, Dauntless, Frenzy, Multiple Block, Thick Skull",220000,null,null,1,"Dwarf"]
[null,null,null,null,null,null,null,null,null,null,null,null,null,null,null,137,"*#Guffle Pusmaw",5,3,4,9,"Loner, Foul Appearance, Monstrous Mouth, Nurgle's Rot",210000,null,null,1,"Nurgle"]
[null,null,null,null,null,null,null,null,null,null,null,null,null,null,null,138,"*Hack Enslash",6,3,2,7,"Loner, Chainsaw, Regeneration, Secret Weapon, Side Step",120000,null,null,1,"Khemri Tomb Kings, Necromantic Horror, Shambling Undead"]
[null,null,null,null,null,null,null,null,null,null,null,null,null,null,null,139,"*#Hakflem Skuttlespike",9,3,4,7,"Loner, Dodge, Extra Arms, Prehensile Tail, Two Heads",200000,null,null,1,"Skaven"]
[null,null,null,null,null,null,null,null,null,null,null,null,null,null,null,140,"*Headsplitter",6,6,3,8,"Loner, Frenzy, Mighty Blow, Prehensile Tail",340000,null,null,1,"Skaven"]
[null,null,null,null,null,null,null,null,null,null,null,null,null,null,null,141,"*Helmut Wulf",6,3,3,8,"Loner, Chainsaw, Secret Weapon, Stand Firm",110000,null,null,1,"Amazon, Human, Lizardman, Norse, Vampire"]
[null,null,null,null,null,null,null,null,null,null,null,null,null,null,null,142,"*Hemlock",8,2,3,7,"Loner, Block, Dodge, Side Step, Jump Up, Stab, Stunty",170000,null,null,1,"Lizardman"]
[null,null,null,null,null,null,null,null,null,null,null,null,null,null,null,143,"*Horkon Heartripper",7,3,4,7,"Loner, Dodge, Leap, Multiple Block, Shadowing, Stab",210000,null,null,1,"Dark Elf"]
[null,null,null,null,null,null,null,null,null,null,null,null,null,null,null,144,"*Hthark the Unstoppable",6,5,2,9,"Loner, Block, Break Tackle, Juggernaut, Sprint, Sure Feet, Thick Skull",330000,null,null,1,"Chaos Dwarf"]
[null,null,null,null,null,null,null,null,null,null,null,null,null,null,null,145,"*Hubris Rakarth",7,4,4,8,"Loner, Block, Dirty Player, Jump Up, Mighty Blow, Strip Ball",260000,null,null,1,"Dark Elf, Elven Union"]
[null,null,null,null,null,null,null,null,null,null,null,null,null,null,null,146,"*Humerus Carpal",7,2,3,7,"Loner, Catch, Dodge, Regeneration, Nerves of Steel",130000,null,null,1,"Khemri Tomb Kings"]
[null,null,null,null,null,null,null,null,null,null,null,null,null,null,null,147,"*Icepelt Hammerblow",5,6,1,8,"Loner, Claws, Disturbing Presence, Frenzy, Regeneration, Thick Skull",330000,null,null,1,"Norse"]
[null,null,null,null,null,null,null,null,null,null,null,null,null,null,null,148,"*Ithaca Benoin",7,3,3,7,"Loner, Accurate, Dump Off, Nerves of Steel, Pass, Regeneration, Sure Hands",220000,null,null,1,"Dark Elf, Khemri Tomb Kings"]
[null,null,null,null,null,null,null,null,null,null,null,null,null,null,null,149,"*J Earlice",8,3,3,7,"Loner, Catch, Diving Catch, Dodge, Sprint",180000,null,null,1,"Necromantic Horror, Shambling Undead, Vampire"]
[null,null,null,null,null,null,null,null,null,null,null,null,null,null,null,150,"*#Jordell Freshbreeze",8,3,5,7,"Loner, Block, Diving Catch, Dodge, Leap, Side Step",260000,null,null,1,"Elven Union, Wood Elf"]
[null,null,null,null,null,null,null,null,null,null,null,null,null,null,null,151,"*#Karla von Kill",6,4,3,8,"Loner, Block, Dauntless, Dodge, Jump Up",220000,null,null,1,"Amazon, Halfling, Human, Norse"]
[null,null,null,null,null,null,null,null,null,null,null,null,null,null,null,152,"*#Kreek Rustgouger",5,7,2,9,"Loner, Ball&Chain, Mighty Blow, No Hands, Prehensile Tail, Secret Weapon",130000,null,null,1,"Skaven, Underworld"]
[null,null,null,null,null,null,null,null,null,null,null,null,null,null,null,153,"*Lewdgrip Whiparm",6,3,3,9,"Loner, Pass, Strong Arm, Sure Hands, Tentacles",150000,null,null,1,"Chaos Chosen, Nurgle"]
[null,null,null,null,null,null,null,null,null,null,null,null,null,null,null,154,"*Lord Borak the Despoiler",5,5,3,9,"Loner, Block, Dirty Player, Mighty Blow",300000,null,null,1,"Chaos Chosen, Nurgle"]
[null,null,null,null,null,null,null,null,null,null,null,null,null,null,null,155,"*Lottabottol",8,3,3,8,"Loner, Catch, Diving Tackle, Jump Up, Leap, Pass Block, Shadowing, Very Long Legs",220000,null,null,1,"Lizardman, Slann"]
[null,null,null,null,null,null,null,null,null,null,null,null,null,null,null,156,"*#Madcap Miggz",6,4,3,8,"Loner, Break Tackle, Claws, Leap, No Hands, Very Long Legs, Wild Animal",170000,null,null,1,"Goblin, Underworld"]
[null,null,null,null,null,null,null,null,null,null,null,null,null,null,null,157,"*Max Spleenripper",5,4,3,8,"Loner, Chainsaw, Secret Weapon",130000,null,null,1,"Chaos Chosen, Nurgle"]
[null,null,null,null,null,null,null,null,null,null,null,null,null,null,null,158,"*#Mighty Zug",4,5,2,9,"Loner, Block, Mighty Blow",260000,null,null,1,"Human"]
[null,null,null,null,null,null,null,null,null,null,null,null,null,null,null,159,"*#Morg ’n’ Thorg",6,6,3,10,"Loner, Block, Mighty Blow, Thick Skull, Throw Team-Mate",430000,null,null,1,"Any team except: Khemri Tomb Kings, Necromantic Horror, Shambling Undead"]
[null,null,null,null,null,null,null,null,null,null,null,null,null,null,null,160,"*Nobbla Blackwart",6,2,3,7,"Loner, Block, Dodge, Chainsaw, Secret Weapon, Stunty",130000,null,null,1,"Chaos Dwarf, Goblin, Ogre"]
[null,null,null,null,null,null,null,null,null,null,null,null,null,null,null,161,"*#Prince Moranion",7,4,4,8,"Loner, Block, Dauntless, Tackle, Wrestle",230000,null,null,1,"Elven Union, High Elf"]
[null,null,null,null,null,null,null,null,null,null,null,null,null,null,null,162,"*Puggy Baconbreath",5,3,3,6,"Loner, Block, Dodge, Nerves of Steel, Right Stuff, Stunty",140000,null,null,1,"Halfling, Human"]
[null,null,null,null,null,null,null,null,null,null,null,null,null,null,null,163,"*Quetzal Leap",8,2,4,7,"Loner, Catch, Diving Catch, Fend, Kick-off Return, Leap, Nerves of Steel, Very Long Legs",250000,null,null,1,"Lizardman, Slann"]
[null,null,null,null,null,null,null,null,null,null,null,null,null,null,null,164,"*Ramtut III",5,6,1,9,"Loner, Break Tackle, Mighty Blow, Regeneration, Wrestle",380000,null,null,1,"Khemri Tomb Kings, Necromantic Horror, Shambling Undead"]
[null,null,null,null,null,null,null,null,null,null,null,null,null,null,null,165,"*Rashnak Backstabber",7,3,3,7,"Loner, Dodge, Side Step, Sneaky Git, Stab",200000,null,null,1,"Chaos Dwarf"]
[null,null,null,null,null,null,null,null,null,null,null,null,null,null,null,166,"*Ripper Bolgrot",4,6,1,9,"Loner, Grab, Mighty Blow, Regeneration, Throw Team-Mate",270000,null,null,1,"Goblin, Orc"]
[null,null,null,null,null,null,null,null,null,null,null,null,null,null,null,167,"*#Roxanna Darknail",8,3,5,7,"Loner, Dodge, Frenzy, Jump Up, Juggernaut, Leap",250000,null,null,1,"Amazon, Dark Elf"]
[null,null,null,null,null,null,null,null,null,null,null,null,null,null,null,168,"*Scrappa Sorehead",7,2,3,7,"Loner, Dirty Player, Dodge, Leap, Right Stuff, Sprint, Stunty, Sure Feet, Very Long Legs",150000,null,null,1,"Goblin, Ogre, Orc"]
[null,null,null,null,null,null,null,null,null,null,null,null,null,null,null,169,"*Setekh",6,4,2,8,"Loner, Block, Break Tackle, Juggernaut, Regeneration, Strip Ball",220000,null,null,1,"Khemri Tomb Kings, Necromantic Horror, Shambling Undead"]
[null,null,null,null,null,null,null,null,null,null,null,null,null,null,null,170,"*Slibli",7,4,1,9,"Loner, Block, Grab, Guard, Stand Firm",250000,null,null,1,"Lizardman"]
[null,null,null,null,null,null,null,null,null,null,null,null,null,null,null,171,"*Sinnedbad",6,3,2,7,"Loner, Block, Jump Up, Pass Block, Regeneration, Secret Weapon, Side Step, Stab",80000,null,null,1,"Khemri Tomb Kings, Shambling Undead"]
[null,null,null,null,null,null,null,null,null,null,null,null,null,null,null,172,"*Skitter Stab-Stab",9,2,4,7,"Loner, Dodge, Prehensile Tail, Shadowing, Stab",160000,null,null,1,"Skaven"]
[null,null,null,null,null,null,null,null,null,null,null,null,null,null,null,173,"*Soaren Hightower",6,3,4,8,"Loner, Fend, Kick-off Return, Pass, Safe Throw, Sure Hands, Strong Arm",180000,null,null,1,"High Elf"]
[null,null,null,null,null,null,null,null,null,null,null,null,null,null,null,174,"*#The Swift Twin Lucien",7,3,4,8,"Loner, Block, Mighty Blow, Tackle",195000,null,null,1,"High Elf, Elven Union, Wood Elf"]
[null,null,null,null,null,null,null,null,null,null,null,null,null,null,null,175,"*#The Swift Twin Valen",7,3,5,7,"Loner, Accurate, Nerves of Steel, Pass, Safe Throw, Sure Hands",195000,null,null,1,"High Elf, Elven Union, Wood Elf"]
[null,null,null,null,null,null,null,null,null,null,null,null,null,null,null,176,"*Ugroth Bolgrot",5,3,3,9,"Loner, Chainsaw, Secret Weapon",100000,null,null,1,"Orc"]
[null,null,null,null,null,null,null,null,null,null,null,null,null,null,null,177,"*#Varag Ghoul-Chewer",6,4,3,9,"Loner, Block, Jump Up, Mighty Blow, Thick Skull",290000,null,null,1,"Orc"]
[null,null,null,null,null,null,null,null,null,null,null,null,null,null,null,178,"*Wilhelm Chaney",8,4,3,8,"Loner, Catch, Claws, Frenzy, Regeneration, Wrestle",240000,null,null,1,"Necromantic Horror, Norse, Vampire"]
[null,null,null,null,null,null,null,null,null,null,null,null,null,null,null,179,"*Willow Rosebark",5,4,3,8,"Loner, Dauntless, Side Step, Thick Skull",150000,null,null,1,"Amazon, Halfling, Wood Elf"]
[null,null,null,null,null,null,null,null,null,null,null,null,null,null,null,180,"*Zara the Slayer",6,4,3,8,"Loner, Block, Dauntless, Dodge, Jump Up, Stab, Stakes",270000,null,null,1,"Amazon, Dwarf, Halfling, High Elf, Human, Norse, Wood Elf"]
[null,null,null,null,null,null,null,null,null,null,null,null,null,null,null,181,"*Zzharg Madeye",4,4,3,9,"Loner, Hail Mary Pass, Pass, Secret Weapon, Strong Arm, Sure Hands, Tackle, Thick Skull",90000,null,null,1,"Chaos Dwarf"]
[null,null,null,null,null,null,null,null,null,null,null,null,null,null,null,182,"Amazon Loner",6,3,3,7,"Loner, Dodge",50000,"G","ASP",11,"Amazon"]
[null,null,null,null,null,null,null,null,null,null,null,null,null,null,null,183,"Bretonnia Loner",6,3,2,7,"Fend",40000,"G","ASP",11,"Bretonnia"]
[null,null,null,null,null,null,null,null,null,null,null,null,null,null,null,184,"Beastman Loner",6,3,3,8,"Loner, Horns",60000,"GSM","AP",11,"Chaos"]
[null,null,null,null,null,null,null,null,null,null,null,null,null,null,null,185,"Hobgoblin Loner",6,3,3,7,"Loner",40000,"G","ASP",11,"Chaos Dwarf"]
[null,null,null,null,null,null,null,null,null,null,null,null,null,null,null,186,"Renegade Human Loner",6,3,3,8,"Loner",50000,"GSPM","A",11,"Chaos Renegades"]
[null,null,null,null,null,null,null,null,null,null,null,null,null,null,null,187,"Dark Elf Loner",6,3,4,8,"Loner",70000,"GA","SP",11,"Dark Elf"]
[null,null,null,null,null,null,null,null,null,null,null,null,null,null,null,188,"Pit Fighter Loner",6,3,3,8,"Frenzy",60000,"GP","AS",11,"Daemons of Khorne"]
[null,null,null,null,null,null,null,null,null,null,null,null,null,null,null,189,"Blocker Loner",4,3,2,9,"Loner, Block, Tackle, Thick Skull",70000,"GS","AP",11,"Dwarf"]
[null,null,null,null,null,null,null,null,null,null,null,null,null,null,null,190,"Elven Union Loner",6,3,4,7,"Loner",60000,"GA","SP",11,"Elven Union"]
[null,null,null,null,null,null,null,null,null,null,null,null,null,null,null,191,"Goblin Loner",6,2,3,7,"Loner, Dodge, Right Stuff, Stunty",40000,"A","GSP",11,"Goblin"]
[null,null,null,null,null,null,null,null,null,null,null,null,null,null,null,192,"Halfling Loner",5,2,3,6,"Loner, Dodge, Right Stuff, Stunty",30000,"A","GSP",11,"Halfling"]
[null,null,null,null,null,null,null,null,null,null,null,null,null,null,null,193,"High Elf Loner",6,3,4,8,"Loner",70000,"GA","SP",11,"High Elf"]
[null,null,null,null,null,null,null,null,null,null,null,null,null,null,null,194,"Human Loner",6,3,3,8,"Loner",50000,"G","ASP",11,"Human"]
[null,null,null,null,null,null,null,null,null,null,null,null,null,null,null,195,"Skeleton Loner°",5,3,2,7,"Loner, Regeneration, Thick Skull",40000,"G","ASP",11,"Khemri Tomb Kings"]
[null,null,null,null,null,null,null,null,null,null,null,null,null,null,null,196,"Skink Loner",8,2,3,7,"Loner, Dodge, Stunty",60000,"A","GSP",11,"Lizardman"]
[null,null,null,null,null,null,null,null,null,null,null,null,null,null,null,197,"Zombie Loner°",4,3,2,8,"Loner, Regeneration",40000,"G","ASP",11,"Necromantic Horror"]
[null,null,null,null,null,null,null,null,null,null,null,null,null,null,null,198,"Norse Loner",6,3,3,7,"Loner, Block",50000,"G","ASP",11,"Norse"]
[null,null,null,null,null,null,null,null,null,null,null,null,null,null,null,199,"Rotter Loner",5,3,3,8,"Loner, Decay, Nurgle's Rot",40000,"GM","ASP",11,"Nurgle"]
[null,null,null,null,null,null,null,null,null,null,null,null,null,null,null,200,"Snotling Loner",5,1,3,5,"Loner, Dodge, Right Stuff, Side Step, Stunty, Titchy",20000,"A","GSP",11,"Ogre"]
[null,null,null,null,null,null,null,null,null,null,null,null,null,null,null,201,"Orc Loner",5,3,3,9,"Loner",50000,"G","ASP",11,"Orc"]
[null,null,null,null,null,null,null,null,null,null,null,null,null,null,null,202,"Skaven Loner",7,3,3,7,"Loner",50000,"G","ASPM",11,"Skaven"]
[null,null,null,null,null,null,null,null,null,null,null,null,null,null,null,203,"Slann Loner",6,3,3,8,"Loner, Leap, Very Long Legs",60000,"G","ASP",11,"Slann"]
[null,null,null,null,null,null,null,null,null,null,null,null,null,null,null,204,"Skeleton Loner",5,3,2,7,"Loner, Regeneration, Thick Skull",40000,"G","ASP",11,"Shambling Undead"]
[null,null,null,null,null,null,null,null,null,null,null,null,null,null,null,205,"Zombie Loner",4,3,2,8,"Loner, Regeneration",40000,"G","ASP",11,"Shambling Undead"]
[null,null,null,null,null,null,null,null,null,null,null,null,null,null,null,206,"Goblin Loner°",6,2,3,7,"Loner, Right Stuff, Dodge, Stunty",40000,"AM","GSP",11,"Underworld"]
[null,null,null,null,null,null,null,null,null,null,null,null,null,null,null,207,"Thrall Loner",6,3,3,7,"Loner",40000,"G","ASP",11,"Vampire"]
[null,null,null,null,null,null,null,null,null,null,null,null,null,null,null,208,"Wood Elf Loner",7,3,4,7,"Loner",70000,"GA","SP",11,"Wood Elf"]
[null,null,null,null,null,null,null,null,null,null,null,null,null,null,null,209,"**Alahel \"oak\" Qwellinir ",7,3,4,9,"Loner, Block, Dodge, Strip Ball, Dauntless",250000,null,null,1,"High Elf, Elven Union, Bretonnia"]
[null,null,null,null,null,null,null,null,null,null,null,null,null,null,null,210,"**Allanon",8,3,4,7,"Loner, Block, Dodge, Leap, Mighty Blow, Tackle, Colpo Strappa Spalle",220000,null,null,1,"Wood Elf, Elven Union"]
[null,null,null,null,null,null,null,null,null,null,null,null,null,null,null,211,"**Alvin",6,2,4,7,"Loner, Dodge, Right Stuff, Stunty, Sure Feet, Sprint, Block",210000,null,null,1,"Goblin, Orc, Ogre"]
[null,null,null,null,null,null,null,null,null,null,null,null,null,null,null,212,"**Bollicina",10,3,5,7,"Loner, Catch, Dodge, Block, Sure Feet, Super Star Player",340000,null,null,1,"Wood Elf, Elven Union, High Elf"]
[null,null,null,null,null,null,null,null,null,null,null,null,null,null,null,213,"** Bruce Dickinson",6,4,5,8,"Loner, Hypnotic Gaze, Regeneration, Dodge, Block, Niggling",290000,null,null,1,"Vampire, Norse, Skaven, Wood Elf"]
[null,null,null,null,null,null,null,null,null,null,null,null,null,null,null,214,"**Ciuffino",8,3,5,7,"Loner, Block, Dodge, Leap, Strip Ball, Tackle, Wrestle, Super Star Player",340000,null,null,1,"Wood Elf, Elven Union, High Elf"]
[null,null,null,null,null,null,null,null,null,null,null,null,null,null,null,215,"**Cumino",3,6,1,10,"Loner, Mighty Blow, Stand Firm, Strong Arm, Thick Skull, Throw Team-Mate, Break Tackle, Guard, Nerves of Steel, Sprint, Sure Feet",310000,null,null,1,"Halfling"]
[null,null,null,null,null,null,null,null,null,null,null,null,null,null,null,216,"**En-zuma",7,3,3,7,"Loner, Block, Dodge, Sure Hands, Dirty Player, Scheletro alle calcagna",210000,null,null,1,"Chaos Dwarf, Chaos Chosen, Khemri Tomb Kings, Nurgle"]
[null,null,null,null,null,null,null,null,null,null,null,null,null,null,null,217,"**Gambetta Vieinà",8,3,4,7,"Loner, Block, Dodge, Leap, Sure Hands, Dauntless, Strip Ball, ***, Dio ha buttato lo stampino",300000,null,null,1,"Wood Elf, Elven Union"]
[null,null,null,null,null,null,null,null,null,null,null,null,null,null,null,218,"** Garrincha",6,2,5,7,"Loner, Dodge, Right Stuff, Stunty, Sure Landing",190000,null,null,1,"Goblin, Orc, Ogre"]
[null,null,null,null,null,null,null,null,null,null,null,null,null,null,null,219,"**Gollum",7,3,3,7,"Loner, Block, Dodge, Side Step, Sure Hands",220000,null,null,1,"Shambling Undead, Necro, Vampire"]
[null,null,null,null,null,null,null,null,null,null,null,null,null,null,null,220,"**Hwol Ammazza Draghi",5,4,2,8,"Loner, Block, Frenzy, Dauntless, Thick Skull, Mighty Blow, Stand Firm",220000,null,null,1,"Dwarf"]
[null,null,null,null,null,null,null,null,null,null,null,null,null,null,null,221,"**Jake the Snake",6,4,4,9,"Loner, Block, Dodge, Sure Hands",310000,null,null,1,"Orc"]
[null,null,null,null,null,null,null,null,null,null,null,null,null,null,null,222,"**Jean Castaneda",9,2,3,7,"Loner, Block, Dodge, Catch, Diving Catch, Sprint, Froci o campioni?",230000,null,null,1,"Human, Norse, Amazon"]
[null,null,null,null,null,null,null,null,null,null,null,null,null,null,null,223,"**Joe Kane",6,3,3,8,"Loner, Pass, Sure Hands, Strong Arm, Accurate, Hail Mary Pass, Nerves of Steel, Froci o campioni?",240000,null,null,1,"Human, Norse, Amazon"]
[null,null,null,null,null,null,null,null,null,null,null,null,null,null,null,224,"**Joèl Nigsedatter",7,3,3,8,"Loner, Wrestle, Tuvbo Nevd",220000,null,null,1,"Skaven, Chaos Renegades"]
[null,null,null,null,null,null,null,null,null,null,null,null,null,null,null,225,"**John Norum",6,3,3,8,"Loner, Pass, Sure Hands, Strong Arm, Accurate, Alcolizzato",190000,null,null,1,"Human, Dwarf, Lizardman"]
[null,null,null,null,null,null,null,null,null,null,null,null,null,null,null,226,"**Josh Winters",7,3,4,8,"Loner, Block, Dodge, Guard, Tuvbo Nevd",220000,null,null,1,"High Elf"]
[null,null,null,null,null,null,null,null,null,null,null,null,null,null,null,227,"**Kaen \"Baba\" Nagò",6,3,3,8,"Loner, Sure Hands, Thick Skull, Block, Dodge, Sure Feet, Strip Ball",250000,null,null,1,"Dwarf"]
[null,null,null,null,null,null,null,null,null,null,null,null,null,null,null,228,"**Killer Kowalski",4,4,2,9,"Loner, Block, Piling on, Mighty Blow",190000,null,null,1,"Orc, Goblin"]
[null,null,null,null,null,null,null,null,null,null,null,null,null,null,null,229,"**Manaccia",8,4,3,7,"Loner, Block, Dodge",240000,null,null,1,"Norse"]
[null,null,null,null,null,null,null,null,null,null,null,null,null,null,null,230,"**Marcelo Alejandro Otero",8,2,4,7,"Loner, Block, Dodge, Catch, Strip Ball, Dauntless, La maledizione degli antichi",250000,null,null,1,"Human, Lizardmen, Halfling, Slann"]
[null,null,null,null,null,null,null,null,null,null,null,null,null,null,null,231,"**OJ Simpson",8,3,3,8,"Loner, Block, Dodge, Leader, Stand Firm, Pelle nera",260000,null,null,1,"Human, Skaven, Bretonnia"]
[null,null,null,null,null,null,null,null,null,null,null,null,null,null,null,232,"**Pedro Medina \"The Chair\"",6,3,4,8,"Loner, Block, Dirty Player",170000,null,null,1,"Human, Shambling Undead, Necro, Vampire, Khorne"]
[null,null,null,null,null,null,null,null,null,null,null,null,null,null,null,233,"**Pierogay",6,3,4,9,"Loner, Block, Dodge, Guard, Mighty Blow, Tackle",270000,null,null,1,"Orc"]
[null,null,null,null,null,null,null,null,null,null,null,null,null,null,null,234,"**Raidel Taiyo ",6,4,4,8,"Loner, Block",190000,null,null,1,"Dark Elf, Elven Union, Chaos Renegades"]
[null,null,null,null,null,null,null,null,null,null,null,null,null,null,null,235,"**Riblades Grad",9,2,4,7,"Loner, Dodge, Very Long Legs, Sure Feet, Sprint, Block",290000,null,null,1,"Skaven, Slann"]
[null,null,null,null,null,null,null,null,null,null,null,null,null,null,null,236,"**Rocky Joe",7,4,3,7,"Loner, Block, Dirty Player",180000,null,null,1,"Skaven, Underworld"]
[null,null,null,null,null,null,null,null,null,null,null,null,null,null,null,237,"** Sacro Gatto I",6,3,3,8,"Loner, Block, Regeneration, Dodge, Side Step, Mighty Blow, Tackle",300000,null,null,1,"Khemri Tomb Kings, Dark Elf, Shambling Undead"]
[null,null,null,null,null,null,null,null,null,null,null,null,null,null,null,238,"**Super Stellino",8,3,5,7,"Loner, Block, Dodge, Leap, Guard, Side Step, Jump Up, Leader, Super Star Player",340000,null,null,1,"Wood Elf, Elven Union, High Elf"]
[null,null,null,null,null,null,null,null,null,null,null,null,null,null,null,239,"**Washington Banton",5,3,4,9,"Loner, Block, Thick Skull, Guard, Mighty Blow",210000,null,null,1,"Dwarf"]
[null,null,null,null,null,null,null,null,null,null,null,null,null,null,null,240,"**Wolf",7,3,4,8,"Loner, Horns, Block, Sprint",210000,null,null,1,"Chaos Chosen, Chaos Dwarf, Nurgle, Khorne"]
[null,null,null,null,null,null,null,null,null,null,null,null,null,null,null,241,"**Yoshimitsu",5,4,3,8,"Loner, Pass, Sure Hands, Block, Dodge, Leader, Kick-Off Return",260000,null,null,1,"Orc, Underworld"]
[null,null,null,null,null,null,null,null,null,null,null,null,null,null,null,242,"**Gino Mattanza",6,3,3,10,"Block, Dauntless, Mighty Blow, Sure Hands",260000,null,null,1,"any team"]

{"sheet":"MacroLega","index":2,"n_rows":117,"n_cols":71,"rows_kept":117,"cut":false,"hidden":true,"merged":[[83,39,84,39],[112,39,116,39],[29,39,32,39],[42,39,49,39],[16,39,23,39],[85,39,90,39],[91,39,95,39],[96,39,99,39],[100,39,104,39],[105,39,109,39],[110,39,111,39],[61,39,64,39],[65,39,67,39],[68,39,72,39],[73,39,78,39],[79,39,82,39],[2,39,5,39],[6,39,8,39],[9,39,11,39],[12,39,15,39],[24,39,28,39],[33,39,37,39],[38,39,41,39],[50,39,51,39],[52,39,55,39],[56,39,60,39]]}
[null,null,null,null,null,null,null,null,null,null,null,null,null,null,null,null,null,null,null,null,null,null,null,null,null,null,null,null,null,null,null,null,null,null,null,null,null,null,null,null,null,1]
[null,1,null,null,null,"Nota: quanti incrementi",null,null,null,null,"Nota: tabella numero skill",null,null,null,null,null,null,"Nota: tabella nomi abilità",null,null,null,null,null,null,null,"MA","ST","AG","AV",null,null,1,"Ruolo","MA","ST","AG","VA","Skill","gp","Razza",null,{"$f":"IF(AQ2=\"\",\"\",AP1+1)","v":2},{"$f":"IF(AR2=0,\"\",AR2)","v":"Underworld Goblin Mercenary"},{"$f":"HLOOKUP('LABB 2019'!$O$19,$AT$2:$BS$10,2,FALSE)","v":"Underworld Goblin Mercenary"},null,"Amazon","Bretonnia","Chaos Chosen","Chaos Dwarf","Chaos Renegades","Dark Elf","Daemon of Khorne","Dwarf","Elven Union","Goblin","Halfling","High Elf","Human","Khemri Tomb Kings","Lizardman","Necromantic Horror","Norse","Nurgle","Ogre","Orc","Shambling Undead","Skaven","Slann","Underworld","Vampire","Wood Elf"]
[null,2,"--GENERAL--",null,null,{"$f":"COUNTIF(K20:P20, 1)","v":0},{"$f":"COUNTIF(K20:P20, 2)","v":0},{"$f":"COUNTIF(K20:P20, 3)","v":0},{"$f":"COUNTIF(K20:P20, 4)","v":0},null,1,1,0,0,0,0,null,{"$f":"IF(K3>1,VLOOKUP(K3,$B$2:$C$67,2),\"\")","v":""},{"$f":"IF(L3>1,VLOOKUP(L3,$B$2:$C$65,2),\"\")","v":""},{"$f":"IF(M3>1,VLOOKUP(M3,$B$2:$C$65,2),\"\")","v":""},{"$f":"IF(N3>1,VLOOKUP(N3,$B$2:$C$65,2),\"\")","v":""},{"$f":"IF(O3>1,VLOOKUP(O3,$B$2:$C$65,2),\"\")","v":""},{"$f":"IF(P3>1,VLOOKUP(P3,$B$2:$C$65,2),\"\")","v":""},null,1,{"$f":"VLOOKUP('LABB 2019'!#REF!,$AG:$AM,2,FALSE)","v":{"$error":"#REF!"}},{"$f":"VLOOKUP('LABB 2019'!#REF!,$AG:$AM,3,FALSE)","v":{"$error":"#REF!"}},{"$f":"VLOOKUP('LABB 2019'!#REF!,$AG:$AM,4,FALSE)","v":{"$error":"#REF!"}},{"$f":"VLOOKUP('LABB 2019'!#REF!,$AG:$AM,5,FALSE)","v":{"$error":"#REF!"}},{"$f":"(IF('LABB 2019'!#REF!<>\"\",VLOOKUP('LABB 2019'!#REF!,$AG:$AM,7,FALSE),\"0\"))","v":{"$error":"#REF!"}},null,2,"Linewoman Amazon Mercenary",6,3,3,7,"Loner, Dodge",80000,"Amazon",null,3,"Underworld Skaven Lineman Mercenary",{"$f":"HLOOKUP('LABB 2019'!$O$19,$AT$2:$BS$10,3,FALSE)","v":"Underworld Skaven Lineman Mercenary"},null,"Linewoman Amazon Mercenary","Lineman Bretonnia Mercenary","Beastman Mercenary","Hobgoblin Mercenary","Marauders Mercenary","Lineman Dark Elf Mercenary","Pit Fighter Mercenary","Blocker Mercenary","Lineman Elf Mercenary","Goblin Mercenary","Halfling Mercenary","Lineman High Elf Mercenary","Lineman Human Mercenary","Skeleton° Mercenary","Skink Mercenary","Zombie° Mercenary","Lineman Norse Mercenary","Rotter Mercenary","Snotling Mercenary","Lineman Orc Mercenary","Skeleton Mercenary","Lineman Skaven Mercenary","Lineman Slann Mercenary","Underworld Goblin Mercenary","Thrall Mercenary","Lineman Wood Elf Mercenary"]
[null,3,"Block","General",null,{"$f":"COUNTIF(K21:P21, 1)","v":0},{"$f":"COUNTIF(K21:P21, 2)","v":0},{"$f":"COUNTIF(K21:P21, 3)","v":0},{"$f":"COUNTIF(K21:P21, 4)","v":0},null,1,0,0,0,0,0,null,{"$f":"IF(K4>1,VLOOKUP(K4,$B$2:$C$67,2),\"\")","v":""},"","","","","",null,1,{"$f":"VLOOKUP('LABB 2019'!#REF!,$AG:$AM,2,FALSE)","v":{"$error":"#REF!"}},{"$f":"VLOOKUP('LABB 2019'!#REF!,$AG:$AM,3,FALSE)","v":{"$error":"#REF!"}},{"$f":"VLOOKUP('LABB 2019'!#REF!,$AG:$AM,4,FALSE)","v":{"$error":"#REF!"}},{"$f":"VLOOKUP('LABB 2019'!#REF!,$AG:$AM,5,FALSE)","v":{"$error":"#REF!"}},{"$f":"(IF('LABB 2019'!#REF!<>\"\",VLOOKUP('LABB 2019'!#REF!,$AG:$AM,7,FALSE),\"0\"))","v":{"$error":"#REF!"}},null,3,"Thrower Amazon Mercenary",6,3,3,7,"Loner, Dodge, Pass",100000,null,null,4,"Underworld Skaven Thrower Mercenary",{"$f":"HLOOKUP('LABB 2019'!$O$19,$AT$2:$BS$10,4,FALSE)","v":"Underworld Skaven Thrower Mercenary"},null,"Thrower Amazon Mercenary","Blitzer Bretonnia Mercenary","Chaos Warrior Mercenary","Chaos Dwarf Blocker Mercenary","Goblin Renegade Mercenary","Runner Dark Elf Mercenary","Bloodletter Daemon Mercenary","Runner Dwarf Mercenary","Thrower Elf Mercenary","Bombardier Mercenary","Treeman Mercenary","Thrower High Elf Mercenary","Catcher Human Mercenary","Thro-Ra Mercenary","Saurus Mercenary","Ghoul° Mercenary","Thrower Norse Mercenary","Pestigor Mercenary","Ogre° Mercenary","Goblin° Mercenary","Zombie Mercenary","Thrower Skaven Mercenary","Catcher Slann Mercenary","Underworld Skaven Lineman Mercenary","Vampire Mercenary","Catcher Wood Elf Mercenary"]
[null,4,"Dauntless","General",null,0,0,0,0,null,0,0,0,0,0,0,null,{"$f":"IF(K5>1,VLOOKUP(K5,$B$2:$C$67,2),\"\")","v":""},"","","","","",null,1,{"$f":"VLOOKUP('LABB 2019'!#REF!,$AG:$AM,2,FALSE)","v":{"$error":"#REF!"}},{"$f":"VLOOKUP('LABB 2019'!#REF!,$AG:$AM,3,FALSE)","v":{"$error":"#REF!"}},{"$f":"VLOOKUP('LABB 2019'!#REF!,$AG:$AM,4,FALSE)","v":{"$error":"#REF!"}},{"$f":"VLOOKUP('LABB 2019'!#REF!,$AG:$AM,5,FALSE)","v":{"$error":"#REF!"}},{"$f":"(IF('LABB 2019'!#REF!<>\"\",VLOOKUP('LABB 2019'!#REF!,$AG:$AM,7,FALSE),\"0\"))","v":{"$error":"#REF!"}},null,4,"Catcher Amazon Mercenary",6,3,3,7,"Loner, Dodge, Catch",100000,null,null,5,"Underworld Skaven Blitzer Mercenary",{"$f":"HLOOKUP('LABB 2019'!$O$19,$AT$2:$BS$10,5,FALSE)","v":"Underworld Skaven Blitzer Mercenary"},null,"Catcher Amazon Mercenary","Yeoman Mercenary","Minotaur Mercenary","Bull Centaur Mercenary","Skaven Renegade Mercenary","Assassin Mercenary","Khorne Herald Mercenary","Blitzer Dwarf Mercenary","Catcher Elf Mercenary","Looney Mercenary",null,"Catcher High Elf Mercenary","Thrower Human Mercenary","Blitz-Ra Mercenary","Kroxigor Mercenary","Wight° Mercenary","Catcher Norse Mercenary","Nurgle Warrior Mercenary",null,"Thrower Orc Mercenary","Ghoul Mercenary","Gutter Runner Mercenary","Blitzer Slann Mercenary","Underworld Skaven Thrower Mercenary",null,"Thrower Wood Elf Mercenary"]
[null,5,"Dirty Player","General",null,0,0,0,0,null,1,1,1,0,0,0,null,{"$f":"IF(K6>1,VLOOKUP(K6,$B$2:$C$67,2),\"\")","v":""},"","","","","",null,0,{"$f":"VLOOKUP('LABB 2019'!#REF!,$AG:$AM,2,FALSE)","v":{"$error":"#REF!"}},{"$f":"VLOOKUP('LABB 2019'!#REF!,$AG:$AM,3,FALSE)","v":{"$error":"#REF!"}},{"$f":"VLOOKUP('LABB 2019'!#REF!,$AG:$AM,4,FALSE)","v":{"$error":"#REF!"}},{"$f":"VLOOKUP('LABB 2019'!#REF!,$AG:$AM,5,FALSE)","v":{"$error":"#REF!"}},{"$f":"(IF('LABB 2019'!#REF!<>\"\",VLOOKUP('LABB 2019'!#REF!,$AG:$AM,7,FALSE),\"0\"))","v":{"$error":"#REF!"}},null,5,"Blitzer Amazon Mercenary",6,3,3,7,"Loner, Dodge, Block",120000,null,null,6,"Warpstone Troll Mercenary",{"$f":"HLOOKUP('LABB 2019'!$O$19,$AT$2:$BS$10,6,FALSE)","v":"Warpstone Troll Mercenary"},null,"Blitzer Amazon Mercenary",null,null,"Minotaur° Mercenary","Dark Elf Renegade Mercenary","Blitzer Dark Elf Mercenary","Bloodthirster Mercenary","Troll Slayer Mercenary","Blitzer Elf Mercenary","Doom Diver Mercenary",null,"Blitzer High Elf Mercenary","Blitzer Human Mercenary","Tomb Guardian Mercenary",null,"Flesh Golem Mercenary","Blitzer Norse Mercenary","Beast of Nurgle Mercenary",null,"Black Orc Blocker Mercenary","Wight Mercenary","Blitzer Skaven Mercenary","Kroxigor° Mercenary","Underworld Skaven Blitzer Mercenary",null,"Wardancer Mercenary"]
[null,6,"Fend","General",null,0,0,0,0,null,1,0,0,0,0,0,null,"","","","","","",null,0,{"$f":"VLOOKUP('LABB 2019'!#REF!,$AG:$AM,2,FALSE)","v":{"$error":"#REF!"}},{"$f":"VLOOKUP('LABB 2019'!#REF!,$AG:$AM,3,FALSE)","v":{"$error":"#REF!"}},{"$f":"VLOOKUP('LABB 2019'!#REF!,$AG:$AM,4,FALSE)","v":{"$error":"#REF!"}},{"$f":"VLOOKUP('LABB 2019'!#REF!,$AG:$AM,5,FALSE)","v":{"$error":"#REF!"}},{"$f":"(IF('LABB 2019'!#REF!<>\"\",VLOOKUP('LABB 2019'!#REF!,$AG:$AM,7,FALSE),\"0\"))","v":{"$error":"#REF!"}},null,6,"Lineman Bretonnia Mercenary",6,3,2,7,"Fend",70000,"Bretonnia",null,"","",{"$f":"HLOOKUP('LABB 2019'!$O$19,$AT$2:$BS$10,7,FALSE)","v":0},null,null,null,null,null,"Chaos Troll Mercenary","Witch Elf Mercenary",null,"Deathroller Mercenary",null,"Fanatic Mercenary",null,null,"Ogre Mercenary",null,null,"Werewolf Mercenary","Werewolf Norse Mercenary",null,null,"Blitzer Orc Mercenary","Mummy Mercenary","Rat Ogre Mercenary",null,"Warpstone Troll Mercenary",null,"Treeman° Mercenary"]
[null,7,"Frenzy","General",null,0,0,0,0,null,1,1,1,0,0,0,null,"","","","","","",null,0,{"$f":"VLOOKUP('LABB 2019'!#REF!,$AG:$AM,2,FALSE)","v":{"$error":"#REF!"}},{"$f":"VLOOKUP('LABB 2019'!#REF!,$AG:$AM,3,FALSE)","v":{"$error":"#REF!"}},{"$f":"VLOOKUP('LABB 2019'!#REF!,$AG:$AM,4,FALSE)","v":{"$error":"#REF!"}},{"$f":"VLOOKUP('LABB 2019'!#REF!,$AG:$AM,5,FALSE)","v":{"$error":"#REF!"}},{"$f":"(IF('LABB 2019'!#REF!<>\"\",VLOOKUP('LABB 2019'!#REF!,$AG:$AM,7,FALSE),\"0\"))","v":{"$error":"#REF!"}},null,7,"Blitzer Bretonnia Mercenary",7,3,3,8,"Block, Catch, Dauntless",140000,null,null,"","",{"$f":"HLOOKUP('LABB 2019'!$O$19,$AT$2:$BS$10,8,FALSE)","v":0},null,null,null,null,null,"Chaos Ogre Mercenary",null,null,null,null,"Ooligan Mercenary",null,null,null,null,null,null,"Yhetee Mercenary",null,null,"Troll° Mercenary"]
[null,8,"Kick","General",null,0,0,0,0,null,1,0,0,0,0,0,null,"","","","","","",null,0,{"$f":"VLOOKUP('LABB 2019'!#REF!,$AG:$AM,2,FALSE)","v":{"$error":"#REF!"}},{"$f":"VLOOKUP('LABB 2019'!#REF!,$AG:$AM,3,FALSE)","v":{"$error":"#REF!"}},{"$f":"VLOOKUP('LABB 2019'!#REF!,$AG:$AM,4,FALSE)","v":{"$error":"#REF!"}},{"$f":"VLOOKUP('LABB 2019'!#REF!,$AG:$AM,5,FALSE)","v":{"$error":"#REF!"}},{"$f":"(IF('LABB 2019'!#REF!<>\"\",VLOOKUP('LABB 2019'!#REF!,$AG:$AM,7,FALSE),\"0\"))","v":{"$error":"#REF!"}},null,8,"Yeoman Mercenary",6,3,3,8,"Wrestle",100000,null,null,"","",{"$f":"HLOOKUP('LABB 2019'!$O$19,$AT$2:$BS$10,9,FALSE)","v":0},null,null,null,null,null,"Minotaur°° Mercenary",null,null,null,null,"Pogoer Mercenary"]
[null,9,"Kick-Off Return","General",null,0,0,0,0,null,1,1,1,1,1,0,null,"","","","","","",null,0,{"$f":"VLOOKUP('LABB 2019'!#REF!,$AG:$AM,2,FALSE)","v":{"$error":"#REF!"}},{"$f":"VLOOKUP('LABB 2019'!#REF!,$AG:$AM,3,FALSE)","v":{"$error":"#REF!"}},{"$f":"VLOOKUP('LABB 2019'!#REF!,$AG:$AM,4,FALSE)","v":{"$error":"#REF!"}},{"$f":"VLOOKUP('LABB 2019'!#REF!,$AG:$AM,5,FALSE)","v":{"$error":"#REF!"}},{"$f":"(IF('LABB 2019'!#REF!<>\"\",VLOOKUP('LABB 2019'!#REF!,$AG:$AM,7,FALSE),\"0\"))","v":{"$error":"#REF!"}},null,9,"Beastman Mercenary",6,3,3,8,"Loner, Horns",90000,"Chaos Chosen",null,"","",{"$f":"HLOOKUP('LABB 2019'!$O$19,$AT$2:$BS$10,9,FALSE)","v":0},null,null,null,null,null,null,null,null,null,null,"Troll Mercenary"]
[null,10,"Pass Block","General",null,0,0,0,0,null,0,0,0,0,0,0,null,"","","","","","",null,null,null,null,null,null,null,null,10,"Chaos Warrior Mercenary",5,4,3,9,"Loner",130000]
[null,11,"Pro","General",null,0,0,0,0,null,0,0,0,0,0,0,null,"","","","","","",null,null,null,null,null,null,null,null,11,"Minotaur Mercenary",5,5,2,8,"Loner, Frenzy, Horns, Mighty Blow, Thick Skull, Wild Animal",180000]
[null,12,"Shadowing","General",null,0,0,0,0,null,0,0,0,0,0,0,null,"","","","","","",null,null,null,null,null,null,null,null,12,"Hobgoblin Mercenary",6,3,3,7,"Loner",70000,"Chaos Dwarf"]
[null,13,"Strip Ball","General",null,0,0,0,0,null,0,0,0,0,0,0,null,"","","","","","",null,null,null,null,null,null,null,null,13,"Chaos Dwarf Blocker Mercenary",4,3,2,9,"Loner, Block, Tackle, Thick Skull",100000]
[null,14,"Sure Hands","General",null,0,0,0,0,null,0,0,1,0,0,0,null,"","","","","","",null,null,null,null,null,null,null,null,14,"Bull Centaur Mercenary",6,4,2,9,"Loner, Sprint, Sure Feet, Thick Skull",160000]
[null,15,"Tackle","General",null,0,0,0,0,null,1,0,0,0,0,0,null,"","","","","","",null,null,null,null,null,null,null,null,15,"Minotaur° Mercenary",5,5,2,8,"Loner, Frenzy, Horns, Mighty Blow, Thick Skull, Wild Animal",180000]
[null,16,"Wrestle","General",null,0,0,0,0,null,1,0,0,0,0,0,null,"","","","","","",null,null,null,null,null,null,null,null,16,"Marauders Mercenary",6,3,3,8,"Loner",80000,"Chaos Renegade"]
[null,17,"--AGILITY--",null,null,0,0,0,0,null,1,1,0,0,0,0,null,"","","","","","",null,null,null,null,null,null,null,null,17,"Goblin Renegade Mercenary",6,2,3,7,"Loner, Animosity, Dodge, Right Stuff, Stunty",70000]
[null,18,"Catch","Agility",null,null,null,null,null,null,"Nota: incrementi (1ma-2st-3ag-4va)",null,null,null,null,null,null,"Nota: tabella categorie abilità",null,null,null,null,null,null,null,null,null,null,null,null,null,18,"Orc Renegade Lineman",5,3,3,9,"Loner, Animosity",50000]
[null,19,"Diving Catch","Agility",null,null,null,null,null,null,{"$f":"IF(K3=59, 1, (IF(K3=60, 4, (IF(K3=61, 3, (IF(K3=62, 2, 0)))))))","v":0},0,0,0,0,0,null,{"$f":"(IF(R3<>\"\",VLOOKUP(R3,$C$2:$D$67,2,FALSE),\"0\"))","v":"0"},{"$f":"(IF(S3<>\"\",VLOOKUP(S3,$C$2:$D$65,2,FALSE),\"0\"))","v":"0"},"0","0","0","0",null,null,null,null,null,null,null,null,19,"Skaven Renegade Mercenary",7,3,3,7,"Loner, Animosity",80000]
[null,20,"Diving Tackle","Agility",null,null,null,null,null,null,0,0,0,0,0,0,null,{"$f":"(IF(R4<>\"\",VLOOKUP(R4,$C$2:$D$67,2,FALSE),\"0\"))","v":"0"},"0","0","0","0","0",null,null,null,null,null,null,null,null,20,"Dark Elf Renegade Mercenary",6,3,4,8,"Loner, Animosity",100000]
[null,21,"Dodge","Agility",null,null,null,null,null,null,0,0,0,0,0,0,null,{"$f":"(IF(R5<>\"\",VLOOKUP(R5,$C$2:$D$67,2,FALSE),\"0\"))","v":"0"},"0","0","0","0","0",null,null,7,null,null,null,null,null,21,"Chaos Troll Mercenary",4,5,1,9,"Loner, Always Hungry, Mighty Blow, Really Stupid, Regeneration, Throw Team-Mate",140000]
[null,22,"Jump Up","Agility",null,null,null,null,null,null,0,0,0,0,0,0,null,{"$f":"(IF(R6<>\"\",VLOOKUP(R6,$C$2:$D$67,2,FALSE),\"0\"))","v":"0"},"0","0","0","0","0",null,null,null,null,null,null,null,null,22,"Chaos Ogre Mercenary",5,5,2,9,"Loner, Bone-head, Mighty Blow, Thick Skull, Throw Team-Mate",170000]
[null,23,"Leap","Agility",null,null,null,null,null,null,0,0,0,0,0,0,null,"0","0","0","0","0","0",null,null,null,null,null,null,null,null,23,"Minotaur°° Mercenary",5,5,2,8,"Loner, Frenzy, Horns, Mighty Blow, Thick Skull, Wild Animal",180000]
[null,24,"Side Step","Agility",null,null,null,null,null,null,0,0,0,0,0,0,null,"0","0","0","0","0","0",null,null,null,null,null,null,null,null,24,"Lineman Dark Elf Mercenary",6,3,4,8,"Loner",100000,"Dark Elf"]
[null,25,"Sneaky Git","Agility",null,null,null,null,null,null,0,0,0,0,0,0,null,"0","0","0","0","0","0",null,null,null,null,null,null,null,null,25,"Runner Dark Elf Mercenary",7,3,4,7,"Loner, Dump-Off",110000]
[null,26,"Sprint","Agility",null,null,null,null,null,null,0,0,0,0,0,0,null,"0","0","0","0","0","0",null,null,null,null,null,null,null,null,26,"Assassin Mercenary",6,3,4,7,"Loner, Shadowing, Stab",120000]
[null,27,"Sure Feet","Agility",null,null,null,null,null,null,0,0,0,0,0,0,null,"0","0","0","0","0","0",null,null,null,null,null,null,null,null,27,"Blitzer Dark Elf Mercenary",7,3,4,8,"Loner, Block",130000]
[null,28,"--PASSING--",null,null,null,null,null,null,null,0,0,0,0,0,0,null,"0","0","0","0","0","0",null,null,null,null,null,null,null,null,28,"Witch Elf Mercenary",7,3,4,7,"Loner, Frenzy, Dodge, Jump Up",140000]
[null,29,"Accurate","Passing",null,null,null,null,null,null,0,0,0,0,0,0,null,"0",{"$f":"(IF(S13<>\"\",VLOOKUP(S13,$C$2:$D$65,2,FALSE),\"0\"))","v":"0"},"0","0","0","0",null,null,null,null,null,null,null,null,29,"Pit Fighter Mercenary",6,3,3,8,"Loner, Frenzy",60000,"Daemons of Khorne"]
[null,30,"Dump-Off","Passing",null,null,null,null,null,null,0,0,0,0,0,0,null,"0","0","0","0","0","0",null,null,null,null,null,null,null,null,30,"Bloodletter Daemon Mercenary",6,3,3,7,"Loner, Horns, Juggernaut, Regeneration",80000]
[null,31,"Hail Mary Pass","Passing",null,null,null,null,null,null,0,0,0,0,0,0,null,"0","0","0","0","0","0",null,null,null,null,null,null,null,null,31,"Khorne Herald Mercenary",6,3,3,8,"Loner, Frenzy, Horns, Juggernaut",90000]
[null,32,"Leader","Passing",null,null,null,null,null,null,0,0,0,0,0,0,null,"0","0","0","0","0","0",null,null,null,null,null,null,null,null,32,"Bloodthirster Mercenary",6,5,1,9,"Loner, Wild Animal, Claw, Frenzy, Horns, Juggernaut, Regeneration",180000]
[null,33,"Nerves of Steel","Passing",null,null,null,null,null,null,0,0,0,0,0,0,null,"0","0","0","0","0","0",null,null,null,null,null,null,null,null,33,"Blocker Mercenary",4,3,2,9,"Loner, Block, Tackle, Thick Skull",100000,"Dwarf"]
[null,34,"Pass","Passing",null,null,null,null,null,null,0,0,0,0,0,0,null,"0","0","0","0","0","0",null,null,null,null,null,null,null,null,34,"Runner Dwarf Mercenary",6,3,3,8,"Loner, Sure Hands, Thick Skull",110000]
[null,35,"Safe Throw","Passing",null,null,null,null,null,null,null,null,null,"M poss.",null,"M data",null,"Nota: tabella tipologia skill",null,null,null,null,null,null,null,null,null,null,null,null,null,35,"Blitzer Dwarf Mercenary",5,3,3,9,"Loner, Block, Thick Skull",110000]
[null,36,"--STRENGTH--",null,null,null,null,null,null,null,null,null,null,{"$f":"IF(ISNUMBER(FIND(\"M\",'LABB 2019'!O3)),1,0)+IF(ISNUMBER(FIND(\"M\",'LABB 2019'!P3)),1,0)","v":0},null,{"$f":"IF(ISNUMBER(FIND(\"M\",R37)),1,0)+IF(ISNUMBER(FIND(\"M\",S37)),1,0)+IF(ISNUMBER(FIND(\"M\",T37)),1,0)+IF(ISNUMBER(FIND(\"M\",U37)),1,0)+IF(ISNUMBER(FIND(\"M\",V37)),1,0)+IF(ISNUMBER(FIND(\"M\",W37)),1,0)","v":0},null,{"$f":"IF(R20=\"General\",\"G\",(IF(R20=\"Agility\",\"A\",(IF(R20=\"Passing\",\"P\",(IF(R20=\"Strength\",\"S\",(IF(R20=\"Mutation\",\"M\",(IF(R20=\"Increase30\",30,(IF(R20=\"Increase40\",40,(IF(R20=\"Increase50\",50,0)))))))))))))))","v":0},0,0,0,0,0,null,null,null,null,null,null,null,null,36,"Troll Slayer Mercenary",5,3,2,8,"Loner, Block, Dauntless, Frenzy, Thick Skull",120000,null,null,{"$f":"IF(AQ37=\"\",\"\",#REF!+1)","v":""}]
[null,37,"Break Tackle","Strength",null,null,null,null,null,null,null,null,null,{"$f":"IF(ISNUMBER(FIND(\"M\",'LABB 2019'!O4)),1,0)+IF(ISNUMBER(FIND(\"M\",'LABB 2019'!P4)),1,0)","v":0},null,{"$f":"IF(ISNUMBER(FIND(\"M\",R38)),1,0)+IF(ISNUMBER(FIND(\"M\",S38)),1,0)+IF(ISNUMBER(FIND(\"M\",T38)),1,0)+IF(ISNUMBER(FIND(\"M\",U38)),1,0)+IF(ISNUMBER(FIND(\"M\",V38)),1,0)+IF(ISNUMBER(FIND(\"M\",W38)),1,0)","v":0},null,0,0,0,0,0,0,null,null,null,null,null,null,null,null,37,"Deathroller Mercenary",4,7,1,10,"Loner, Break Tackle, Dirty Player, Juggernaut, Mighty Blow, No Hands, Secret Weapon, Stand Firm",190000,null,null,{"$f":"IF(AQ38=\"\",\"\",AP37+1)","v":""}]
[null,38,"Grab","Strength",null,null,null,null,null,null,null,null,null,{"$f":"IF(ISNUMBER(FIND(\"M\",'LABB 2019'!O5)),1,0)+IF(ISNUMBER(FIND(\"M\",'LABB 2019'!P5)),1,0)","v":0},null,0,null,0,0,0,0,0,0,null,null,null,null,null,null,null,null,38,"Lineman Elf Mercenary",6,3,4,7,"Loner",90000,"Elven Union",null,""]
[null,39,"Guard","Strength",null,null,null,null,null,null,null,null,null,{"$f":"IF(ISNUMBER(FIND(\"M\",'LABB 2019'!O6)),1,0)+IF(ISNUMBER(FIND(\"M\",'LABB 2019'!P6)),1,0)","v":0},null,0,null,0,0,0,0,0,0,null,null,null,null,null,null,null,null,39,"Thrower Elf Mercenary",6,3,4,7,"Loner, Pass",100000,null,null,""]
[null,40,"Juggernaut","Strength",null,null,null,null,null,null,null,null,null,{"$f":"IF(ISNUMBER(FIND(\"M\",'LABB 2019'!O7)),1,0)+IF(ISNUMBER(FIND(\"M\",'LABB 2019'!P7)),1,0)","v":0},null,0,null,0,0,0,0,0,0,null,null,null,null,null,null,null,null,40,"Catcher Elf Mercenary",8,3,4,7,"Loner, Catch, Nerves of Steel",130000,null,null,""]
[null,41,"Mighty Blow","Strength",null,null,null,null,null,null,null,null,null,{"$f":"IF(ISNUMBER(FIND(\"M\",'LABB 2019'!O8)),1,0)+IF(ISNUMBER(FIND(\"M\",'LABB 2019'!P8)),1,0)","v":0},null,0,null,0,0,0,0,0,0,null,null,null,null,null,null,null,null,41,"Blitzer Elf Mercenary",7,3,4,8,"Loner, Block, Side Step",140000,null,null,"",{"$f":"IF(AR42=0,\"\",AR42)","v":""}]
[null,42,"Multiple Block","Strength",null,null,null,null,null,null,null,null,null,{"$f":"IF(ISNUMBER(FIND(\"M\",'LABB 2019'!O9)),1,0)+IF(ISNUMBER(FIND(\"M\",'LABB 2019'!P9)),1,0)","v":0},null,0,null,0,0,0,0,0,0,null,null,null,null,null,null,null,null,42,"Goblin Mercenary",6,2,3,7,"Loner, Dodge, Right Stuff, Stunty",70000,"Goblin",null,"",""]
[null,43,"Piling On","Strength",null,null,null,null,null,null,null,null,null,{"$f":"IF(ISNUMBER(FIND(\"M\",'LABB 2019'!O10)),1,0)+IF(ISNUMBER(FIND(\"M\",'LABB 2019'!P10)),1,0)","v":0},null,0,null,0,0,0,0,0,0,null,null,null,null,null,null,null,null,43,"Bombardier Mercenary",6,2,3,7,"Loner, Bombardier, Dodge, Secret Weapon, Stunty",70000,null,null,"",""]
[null,44,"Stand Firm","Strength",null,null,null,null,null,null,null,null,null,{"$f":"IF(ISNUMBER(FIND(\"M\",'LABB 2019'!O11)),1,0)+IF(ISNUMBER(FIND(\"M\",'LABB 2019'!P11)),1,0)","v":0},null,0,null,0,0,0,0,0,0,null,null,null,null,null,null,null,null,44,"Looney Mercenary",6,2,3,7,"Loner, Chainsaw, Secret Weapon, Stunty",70000,null,null,"",""]
[null,45,"Strong Arm","Strength",null,null,null,null,null,null,null,null,null,{"$f":"IF(ISNUMBER(FIND(\"M\",'LABB 2019'!O12)),1,0)+IF(ISNUMBER(FIND(\"M\",'LABB 2019'!P12)),1,0)","v":0},null,0,null,0,0,0,0,0,0,null,null,null,null,null,null,null,null,45,"Doom Diver Mercenary",6,2,3,7,"Loner, Right Stuff, Stunty, Swoop",60000,null,null,"",""]
[null,46,"Thick Skull","Strength",null,null,null,null,null,null,null,null,null,{"$f":"IF(ISNUMBER(FIND(\"M\",'LABB 2019'!O13)),1,0)+IF(ISNUMBER(FIND(\"M\",'LABB 2019'!P13)),1,0)","v":0},null,0,null,0,0,0,0,0,0,null,null,null,null,null,null,null,null,46,"Fanatic Mercenary",3,7,3,7,"Loner, Ball & Chain, No Hands, Secret Weapon, Stunty",100000,null,null,"",""]
[null,47,"--MUTATION--",null,null,null,null,null,null,null,null,null,null,{"$f":"IF(ISNUMBER(FIND(\"M\",'LABB 2019'!O14)),1,0)+IF(ISNUMBER(FIND(\"M\",'LABB 2019'!P14)),1,0)","v":0},null,0,null,0,0,0,0,0,0,null,null,null,null,null,null,null,null,47,"Ooligan Mercenary",6,2,3,7,"Loner, Disturbing Presence, Dodge, Fan Favourite, Right Stuff, Stunty",70000]
[null,48,"Big Hand","Mutation",null,null,null,null,null,null,null,null,null,{"$f":"IF(ISNUMBER(FIND(\"M\",'LABB 2019'!O15)),1,0)+IF(ISNUMBER(FIND(\"M\",'LABB 2019'!P15)),1,0)","v":0},null,0,null,0,0,0,0,0,0,null,null,null,null,null,null,null,null,48,"Pogoer Mercenary",7,2,3,7,"Loner, Dodge, Leap, Stunty, Very Long Legs",100000]
[null,49,"Claws","Mutation",null,null,null,null,null,null,null,null,null,{"$f":"IF(ISNUMBER(FIND(\"M\",'LABB 2019'!O16)),1,0)+IF(ISNUMBER(FIND(\"M\",'LABB 2019'!P16)),1,0)","v":0},null,0,null,0,0,0,0,0,0,null,null,null,null,null,null,null,null,49,"Troll Mercenary",4,5,1,9,"Loner, Always Hungry, Mighty Blow, Really Stupid, Regeneration, Throw Team-Mate",140000]
[null,50,"Disturbing Presence","Mutation",null,null,null,null,null,null,null,null,null,{"$f":"IF(ISNUMBER(FIND(\"M\",'LABB 2019'!O17)),1,0)+IF(ISNUMBER(FIND(\"M\",'LABB 2019'!P17)),1,0)","v":0},null,0,null,0,0,0,0,0,0,null,null,null,null,null,null,null,null,50,"Halfling Mercenary",5,2,3,6,"Loner, Dodge, Right Stuff, Stunty",60000,"Halfling"]
[null,51,"Extra Arms","Mutation",null,null,null,null,null,null,null,null,null,{"$f":"IF(ISNUMBER(FIND(\"M\",'LABB 2019'!O18)),1,0)+IF(ISNUMBER(FIND(\"M\",'LABB 2019'!P18)),1,0)","v":0},null,0,null,0,0,0,0,0,0,null,null,null,null,null,null,null,null,51,"Treeman Mercenary",2,6,1,10,"Loner, Mighty Blow, Stand Firm, Strong Arm, Take Root, Thick Skull, Throw Team-Mate",150000]
[null,52,"Foul Appearance","Mutation",null,null,null,null,null,null,null,null,null,null,null,null,null,null,null,null,null,null,null,null,null,null,null,null,null,null,null,52,"Lineman High Elf Mercenary",6,3,4,8,"Loner",100000,"High Elf"]
[null,53,"Horns","Mutation",null,null,null,null,null,null,null,null,null,null,null,null,null,null,null,null,null,null,null,null,null,null,null,null,null,null,null,53,"Thrower High Elf Mercenary",6,3,4,8,"Loner, Pass, Safe Throw",120000]
[null,54,"Prehensile Tail","Mutation",null,null,null,null,null,null,null,null,null,null,null,null,null,null,null,null,null,null,null,null,null,null,null,null,null,null,null,54,"Catcher High Elf Mercenary",8,3,4,7,"Loner, Catch",120000]
[null,55,"Tentacles","Mutation",null,null,null,null,null,null,null,null,null,null,null,null,null,null,null,null,null,null,null,null,null,null,null,null,null,null,null,55,"Blitzer High Elf Mercenary",7,3,4,8,"Loner, Block",130000]
[null,56,"Two Heads","Mutation",null,null,null,null,null,null,null,null,null,null,null,null,null,null,null,null,null,null,null,null,null,null,null,null,null,null,null,56,"Lineman Human Mercenary",6,3,3,8,"Loner",80000,"Human"]
[null,57,"Very Long Legs","Mutation",null,null,null,null,null,null,null,null,null,null,null,null,null,null,null,null,null,null,null,null,null,null,null,null,null,null,null,57,"Catcher Human Mercenary",8,2,3,7,"Loner, Catch, Dodge",100000]
[null,58,"--INCREASE--",null,null,null,null,null,null,null,null,null,null,null,null,null,null,null,null,null,null,null,null,null,null,null,null,null,null,null,null,58,"Thrower Human Mercenary",6,3,3,8,"Loner, Sure Hands, Pass",100000]
[null,59,"+1 MA","Increase30",null,null,null,null,null,null,null,null,null,null,null,null,null,null,null,null,null,null,null,null,null,null,null,null,null,null,null,59,"Blitzer Human Mercenary",7,3,3,8,"Loner, Block",120000]
[null,60,"+1 VA","Increase30",null,null,null,null,null,null,null,null,null,null,null,null,null,null,null,null,null,null,null,null,null,null,null,null,null,null,null,60,"Ogre Mercenary",5,5,2,9,"Loner, Bone-head, Mighty Blow, Thick Skull, Throw Team-Mate",170000]
[null,61,"+1 AG","Increase40",null,null,null,null,null,null,null,null,null,null,null,null,null,null,null,null,null,null,null,null,null,null,null,null,null,null,null,61,"Skeleton° Mercenary",5,3,2,7,"Loner, Regeneration, Thick Skull",70000,"Khemri Tomb Kings"]
[null,62,"+1 ST","Increase50",null,null,null,null,null,null,null,null,null,null,null,null,null,null,null,null,null,null,null,null,null,null,null,null,null,null,null,62,"Thro-Ra Mercenary",6,3,2,7,"Loner, Pass, Regeneration, Sure Hands",100000]
[null,null,null,null,null,null,null,null,null,null,null,null,null,null,null,null,null,null,null,null,null,null,null,null,null,null,null,null,null,null,null,63,"Blitz-Ra Mercenary",6,3,2,8,"Loner, Block, Regeneration",120000]
[null,null,null,null,null,null,null,null,null,null,null,null,null,null,null,null,null,null,null,null,null,null,null,null,null,null,null,null,null,null,null,64,"Tomb Guardian Mercenary",4,5,1,9,"Loner, Decay, Regeneration",130000]
[null,null,null,null,null,null,null,null,null,null,null,null,null,null,null,null,null,null,null,null,null,null,null,null,null,null,null,null,null,null,null,65,"Skink Mercenary",8,2,3,7,"Loner, Dodge, Stunty",90000,"Lizardman"]
[null,null,null,null,null,null,null,null,null,null,null,null,null,null,null,null,null,null,null,null,null,null,null,null,null,null,null,null,null,null,null,66,"Saurus Mercenary",6,4,1,9,"Loner",110000]
[null,null,null,null,null,null,null,null,null,null,null,null,null,null,null,null,null,null,null,null,null,null,null,null,null,null,null,null,null,null,null,67,"Kroxigor Mercenary",6,5,1,9,"Loner, Bone-head, Mighty Blow, Prehensile Tail, Thick Skull",170000]
[null,null,null,null,null,null,null,null,null,null,null,null,null,null,null,null,null,null,null,null,null,null,null,null,null,null,null,null,null,null,null,68,"Zombie° Mercenary",4,3,2,8,"Loner, Regeneration",70000,"Necromantic Horror"]
[null,null,null,null,null,null,null,null,null,null,null,null,null,null,null,null,null,null,null,null,null,null,null,null,null,null,null,null,null,null,null,69,"Ghoul° Mercenary",7,3,3,7,"Loner, Dodge",100000]
[null,null,null,null,null,null,null,null,null,null,null,null,null,null,null,null,null,null,null,null,null,null,null,null,null,null,null,null,null,null,null,70,"Wight° Mercenary",6,3,3,8,"Loner, Block, Regeneration",120000]
[null,null,null,null,null,null,null,null,null,null,null,null,null,null,null,null,null,null,null,null,null,null,null,null,null,null,null,null,null,null,null,71,"Flesh Golem Mercenary",4,4,2,9,"Loner, Regeneration, Stand Firm, Thick Skull",140000]
[null,null,null,null,null,null,null,null,null,null,null,null,null,null,null,null,null,null,null,null,null,null,null,null,null,null,null,null,null,null,null,72,"Werewolf Mercenary",8,3,3,8,"Loner, Claws, Frenzy, Regeneration",150000]
[null,null,null,null,null,null,null,null,null,null,null,null,null,null,null,null,null,null,null,null,null,null,null,null,null,null,null,null,null,null,null,73,"Lineman Norse Mercenary",6,3,3,7,"Loner, Block",80000,"Norse"]
[null,null,null,null,null,null,null,null,null,null,null,null,null,null,null,null,null,null,null,null,null,null,null,null,null,null,null,null,null,null,null,74,"Thrower Norse Mercenary",6,3,3,7,"Loner, Block, Pass",100000]
[null,null,null,null,null,null,null,null,null,null,null,null,null,null,null,null,null,null,null,null,null,null,null,null,null,null,null,null,null,null,null,75,"Catcher Norse Mercenary",7,3,3,7,"Loner, Block, Dauntless",120000]
[null,null,null,null,null,null,null,null,null,null,null,null,null,null,null,null,null,null,null,null,null,null,null,null,null,null,null,null,null,null,null,76,"Blitzer Norse Mercenary",6,3,3,7,"Loner, Block, Frenzy, Jump Up",120000]
[null,null,null,null,null,null,null,null,null,null,null,null,null,null,null,null,null,null,null,null,null,null,null,null,null,null,null,null,null,null,null,77,"Werewolf Norse Mercenary",6,4,2,8,"Loner, Frenzy",140000]
[null,null,null,null,null,null,null,null,null,null,null,null,null,null,null,null,null,null,null,null,null,null,null,null,null,null,null,null,null,null,null,78,"Yhetee Mercenary",5,5,1,8,"Loner, Claws, Disturbing Presence, Frenzy, Wild Animal",170000]
[null,null,null,null,null,null,null,null,null,null,null,null,null,null,null,null,null,null,null,null,null,null,null,null,null,null,null,null,null,null,null,79,"Rotter Mercenary",5,3,3,8,"Loner, Decay, Nurgle's Rot",70000,"Nurgle"]
[null,null,null,null,null,null,null,null,null,null,null,null,null,null,null,null,null,null,null,null,null,null,null,null,null,null,null,null,null,null,null,80,"Pestigor Mercenary",6,3,3,8,"Loner, Horns, Nurgle's Rot, Regeneration",110000]
[null,null,null,null,null,null,null,null,null,null,null,null,null,null,null,null,null,null,null,null,null,null,null,null,null,null,null,null,null,null,null,81,"Nurgle Warrior Mercenary",4,4,2,9,"Loner, Disturbing Presence, Foul Appearance, Nurgle's Rot, Regeneration",140000]
[null,null,null,null,null,null,null,null,null,null,null,null,null,null,null,null,null,null,null,null,null,null,null,null,null,null,null,null,null,null,null,82,"Beast of Nurgle Mercenary",4,5,1,9,"Loner, Disturbing Presence, Foul Appearance, Mighty Blow, Nurgle's Rot, Really Stupid, Regeneration, Tentacles",170000]
[null,null,null,null,null,null,null,null,null,null,null,null,null,null,null,null,null,null,null,null,null,null,null,null,null,null,null,null,null,null,null,83,"Snotling Mercenary",5,1,3,5,"Loner, Dodge, Right Stuff, Side Step, Stunty, Titchy",50000,"Ogre"]
[null,null,null,null,null,null,null,null,null,null,null,null,null,null,null,null,null,null,null,null,null,null,null,null,null,null,null,null,null,null,null,84,"Ogre° Mercenary",5,5,2,9,"Loner, Bone-head, Mighty Blow, Thick Skull, Throw Team-Mate",170000]
[null,null,null,null,null,null,null,null,null,null,null,null,null,null,null,null,null,null,null,null,null,null,null,null,null,null,null,null,null,null,null,85,"Lineman Orc Mercenary",5,3,3,9,"Loner",80000,"Orc"]
[null,null,null,null,null,null,null,null,null,null,null,null,null,null,null,null,null,null,null,null,null,null,null,null,null,null,null,null,null,null,null,86,"Goblin° Mercenary",6,2,3,7,"Loner, Right Stuff, Dodge, Stunty",70000]
[null,null,null,null,null,null,null,null,null,null,null,null,null,null,null,null,null,null,null,null,null,null,null,null,null,null,null,null,null,null,null,87,"Thrower Orc Mercenary",5,3,3,8,"Loner, Sure Hands, Pass",100000]
[null,null,null,null,null,null,null,null,null,null,null,null,null,null,null,null,null,null,null,null,null,null,null,null,null,null,null,null,null,null,null,88,"Black Orc Blocker Mercenary",4,4,2,9,"Loner",110000]
[null,null,null,null,null,null,null,null,null,null,null,null,null,null,null,null,null,null,null,null,null,null,null,null,null,null,null,null,null,null,null,89,"Blitzer Orc Mercenary",6,3,3,9,"Loner, Block",110000]
[null,null,null,null,null,null,null,null,null,null,null,null,null,null,null,null,null,null,null,null,null,null,null,null,null,null,null,null,null,null,null,90,"Troll° Mercenary",4,5,1,9,"Loner, Always Hungry, Mighty Blow, Really Stupid, Regeneration, Throw Team-Mate",140000]
[null,null,null,null,null,null,null,null,null,null,null,null,null,null,null,null,null,null,null,null,null,null,null,null,null,null,null,null,null,null,null,91,"Lineman Skaven Mercenary",7,3,3,7,"Loner",80000,"Skaven"]
[null,null,null,null,null,null,null,null,null,null,null,null,null,null,null,null,null,null,null,null,null,null,null,null,null,null,null,null,null,null,null,92,"Thrower Skaven Mercenary",7,3,3,7,"Loner, Pass, Sure Hands",100000]
[null,null,null,null,null,null,null,null,null,null,null,null,null,null,null,null,null,null,null,null,null,null,null,null,null,null,null,null,null,null,null,93,"Gutter Runner Mercenary",9,2,4,7,"Loner, Dodge",110000]
[null,null,null,null,null,null,null,null,null,null,null,null,null,null,null,null,null,null,null,null,null,null,null,null,null,null,null,null,null,null,null,94,"Blitzer Skaven Mercenary",7,3,3,8,"Loner, Block",120000]
[null,null,null,null,null,null,null,null,null,null,null,null,null,null,null,null,null,null,null,null,null,null,null,null,null,null,null,null,null,null,null,95,"Rat Ogre Mercenary",6,5,2,8,"Loner, Frenzy, Mighty Blow, Prehensile Tail, Wild Animal",180000]
[null,null,null,null,null,null,null,null,null,null,null,null,null,null,null,null,null,null,null,null,null,null,null,null,null,null,null,null,null,null,null,96,"Lineman Slann Mercenary",6,3,3,8,"Loner, Leap, Very Long Legs",90000,"Slann"]
[null,null,null,null,null,null,null,null,null,null,null,null,null,null,null,null,null,null,null,null,null,null,null,null,null,null,null,null,null,null,null,97,"Catcher Slann Mercenary",7,2,4,7,"Loner, Diving Catch, Leap, Very Long Legs",110000]
[null,null,null,null,null,null,null,null,null,null,null,null,null,null,null,null,null,null,null,null,null,null,null,null,null,null,null,null,null,null,null,98,"Blitzer Slann Mercenary",7,3,3,8,"Loner, Diving Tackle, Jump Up, Leap, Very Long Legs",140000]
[null,null,null,null,null,null,null,null,null,null,null,null,null,null,null,null,null,null,null,null,null,null,null,null,null,null,null,null,null,null,null,99,"Kroxigor° Mercenary",6,5,1,9,"Loner, Bone-head, Mighty Blow, Prehensile Tail, Thick Skull",170000]
[null,null,null,null,null,null,null,null,null,null,null,null,null,null,null,null,null,null,null,null,null,null,null,null,null,null,null,null,null,null,null,100,"Skeleton Mercenary",5,3,2,7,"Loner, Regeneration, Thick Skull",70000,"Shambling Undead"]
[null,null,null,null,null,null,null,null,null,null,null,null,null,null,null,null,null,null,null,null,null,null,null,null,null,null,null,null,null,null,null,101,"Zombie Mercenary",4,3,2,8,"Loner, Regeneration",70000]
[null,null,null,null,null,null,null,null,null,null,null,null,null,null,null,null,null,null,null,null,null,null,null,null,null,null,null,null,null,null,null,102,"Ghoul Mercenary",7,3,3,7,"Loner, Dodge",100000]
[null,null,null,null,null,null,null,null,null,null,null,null,null,null,null,null,null,null,null,null,null,null,null,null,null,null,null,null,null,null,null,103,"Wight Mercenary",6,3,3,8,"Loner, Block, Regeneration",120000]
[null,null,null,null,null,null,null,null,null,null,null,null,null,null,null,null,null,null,null,null,null,null,null,null,null,null,null,null,null,null,null,104,"Mummy Mercenary",3,5,1,9,"Loner, Mighty Blow, Regeneration",150000]
[null,null,null,null,null,null,null,null,null,null,null,null,null,null,null,null,null,null,null,null,null,null,null,null,null,null,null,null,null,null,null,105,"Underworld Goblin Mercenary",6,2,3,7,"Loner, Right Stuff, Dodge, Stunty",70000,"Underworld"]
[null,null,null,null,null,null,null,null,null,null,null,null,null,null,null,null,null,null,null,null,null,null,null,null,null,null,null,null,null,null,null,106,"Underworld Skaven Lineman Mercenary",7,3,3,7,"Loner, Animosity",80000]
[null,null,null,null,null,null,null,null,null,null,null,null,null,null,null,null,null,null,null,null,null,null,null,null,null,null,null,null,null,null,null,107,"Underworld Skaven Thrower Mercenary",7,3,3,7,"Loner, Animosity, Pass, Sure Hands",100000]
[null,null,null,null,null,null,null,null,null,null,null,null,null,null,null,null,null,null,null,null,null,null,null,null,null,null,null,null,null,null,null,108,"Underworld Skaven Blitzer Mercenary",7,3,3,8,"Loner, Animosity, Block",120000]
[null,null,null,null,null,null,null,null,null,null,null,null,null,null,null,null,null,null,null,null,null,null,null,null,null,null,null,null,null,null,null,109,"Warpstone Troll Mercenary",4,5,1,9,"Loner, Always Hungry, Mighty Blow, Really Stupid, Regeneration, Throw Team-Mate",140000]
[null,null,null,null,null,null,null,null,null,null,null,null,null,null,null,null,null,null,null,null,null,null,null,null,null,null,null,null,null,null,null,110,"Thrall Mercenary",6,3,3,7,"Loner",70000,"Vampire"]
[null,null,null,null,null,null,null,null,null,null,null,null,null,null,null,null,null,null,null,null,null,null,null,null,null,null,null,null,null,null,null,111,"Vampire Mercenary",6,4,4,8,"Loner, Blood Lust, Hypnotic Gaze, Regeneration",140000]
[null,null,null,null,null,null,null,null,null,null,null,null,null,null,null,null,null,null,null,null,null,null,null,null,null,null,null,null,null,null,null,112,"Lineman Wood Elf Mercenary",7,3,4,7,"Loner",100000,"Wood Elf"]
[null,null,null,null,null,null,null,null,null,null,null,null,null,null,null,null,null,null,null,null,null,null,null,null,null,null,null,null,null,null,null,113,"Catcher Wood Elf Mercenary",8,2,4,7,"Loner, Catch, Dodge, Sprint",120000]
[null,null,null,null,null,null,null,null,null,null,null,null,null,null,null,null,null,null,null,null,null,null,null,null,null,null,null,null,null,null,null,114,"Thrower Wood Elf Mercenary",7,3,4,7,"Loner, Pass",120000]
[null,null,null,null,null,null,null,null,null,null,null,null,null,null,null,null,null,null,null,null,null,null,null,null,null,null,null,null,null,null,null,115,"Wardancer Mercenary",8,3,4,7,"Loner, Block, Dodge, Leap",150000]
[null,null,null,null,null,null,null,null,null,null,null,null,null,null,null,null,null,null,null,null,null,null,null,null,null,null,null,null,null,null,null,116,"Treeman° Mercenary",2,6,1,10,"Loner, Mighty Blow, Stand Firm, Strong Arm, Take Root, Thick Skull, Throw Team-Mate",150000]